Workbook

Sheet Источники света
R1: ООО «Вольта Русланд»
R2: ИНН/КПП/ОГРН 7716662181 / 771901001 / 1107746281323
R3: 119361, г. Москва, ул. Наташи Ковшовой, д. 4, стр. 1, офис 23
R4: Тел.: +7(495) 651-87-22, факс: +7 (495) 721-24-20, info@wolta.ru
L6: Дата формирования прайс-листа: | Q6: 30.05.2019
A7: Номенклатура | L7: Заказ
A8: Фото | B8: Ссылка на сайт | C8: Штрихкод / Артикул | D8: Наименование | E8: Гарантия, г. | F8: МРОЦ, руб | G8: Базовая цена, руб. | H8: Ваша цена со скидкой, руб. | I8: Спец Цена, руб. | J8: Остаток | K8: Ближайшее поступление | L8: Кол-во, шт | M8: Сумма, руб. | N8: Вес, кг | O8: Объем, м3 | P8: Ед. изм. | Q8: Вес, кг | R8: Объем, м3
G11: Укажите свою скидку % | H11: 0
A12: LED FILAMENT
A13: A60 9W F
A14: WOLTA
B15: 25Y60BLFT9E27 | C15: 4260375488780 | D15: Лампа LED WOLTA FILAMENT A60 9Вт 900лм E27 3000K 1/10/50 | E15: 2 | F15: 154.68 | G15: 171.87 | H15: =G15*(1-$H$11/100) -> 171.87 | J15: >5000 | L15: 0 | M15: =L15*H15 -> 0 | N15: =L15*Q15 -> 0 | O15: =L15*R15 -> 0 | P15: шт | Q15: 0.07 | R15: 0.000461
B16: 25S60BLFT9E27 | C16: 4260375489534 | D16: Лампа LED WOLTA FILAMENT A60 9Вт 900лм E27 4000K 1/10/50 | E16: 2 | F16: 154.68 | G16: 171.87 | H16: =G16*(1-$H$11/100) -> 171.87 | J16: >5000 | L16: 0 | M16: =L16*H16 -> 0 | N16: =L16*Q16 -> 0 | O16: =L16*R16 -> 0 | P16: шт | Q16: 0.07 | R16: 0.000461
A17: G45 5W F
A18: WOLTA
B19: 25Y45GLFT5E14 | C19: 4260529291327 | D19: Лампа LED WOLTA FILAMENT G45 5Вт 545лм E14 3000K 1/10/50 | E19: 2 | F19: 86.96 | G19: 96.62 | H19: =G19*(1-$H$11/100) -> 96.62 | J19: >5000 | L19: 0 | M19: =L19*H19 -> 0 | N19: =L19*Q19 -> 0 | O19: =L19*R19 -> 0 | P19: шт | Q19: 0.038 | R19: 0.000223
B20: 25S45GLFT5E14 | C20: 4260529291358 | D20: Лампа LED WOLTA FILAMENT G45 5Вт 545лм E14 4000K 1/10/50 | E20: 2 | F20: 86.96 | G20: 96.62 | H20: =G20*(1-$H$11/100) -> 96.62 | J20: >5000 | L20: 0 | M20: =L20*H20 -> 0 | N20: =L20*Q20 -> 0 | O20: =L20*R20 -> 0 | P20: шт | Q20: 0.038 | R20: 0.000223
B21: 25Y45GLFT5E27 | C21: 4260529291389 | D21: Лампа LED WOLTA FILAMENT G45 5Вт 545лм E27 3000K 1/10/50 | E21: 2 | F21: 86.96 | G21: 96.62 | H21: =G21*(1-$H$11/100) -> 96.62 | J21: >5000 | L21: 0 | M21: =L21*H21 -> 0 | N21: =L21*Q21 -> 0 | O21: =L21*R21 -> 0 | P21: шт | Q21: 0.04 | R21: 0.000223
B22: 25S45GLFT5E27 | C22: 4260529291419 | D22: Лампа LED WOLTA FILAMENT G45 5Вт 545лм E27 4000K 1/10/50 | E22: 2 | F22: 86.96 | G22: 96.62 | H22: =G22*(1-$H$11/100) -> 96.62 | J22: >5000 | L22: 0 | M22: =L22*H22 -> 0 | N22: =L22*Q22 -> 0 | O22: =L22*R22 -> 0 | P22: шт | Q22: 0.04 | R22: 0.000223
A23: G45 7W F
A24: WOLTA
B25: 25Y45GLFT7E14 | C25: 4260375488759 | D25: Лампа LED WOLTA FILAMENT G45 7Вт 730лм E14 3000K 1/10/50 | E25: 2 | F25: 108.92 | G25: 121.02 | H25: =G25*(1-$H$11/100) -> 121.02 | J25: >5000 | L25: 0 | M25: =L25*H25 -> 0 | N25: =L25*Q25 -> 0 | O25: =L25*R25 -> 0 | P25: шт | Q25: 0.038 | R25: 0.000223
B26: 25S45GLFT7E14 | C26: 4260375489626 | D26: Лампа LED WOLTA FILAMENT G45 7Вт 730лм E14 4000K 1/10/50 | E26: 2 | F26: 108.92 | G26: 121.02 | H26: =G26*(1-$H$11/100) -> 121.02 | J26: >5000 | L26: 0 | M26: =L26*H26 -> 0 | N26: =L26*Q26 -> 0 | O26: =L26*R26 -> 0 | P26: шт | Q26: 0.038 | R26: 0.000223
B27: 25Y45GLFT7E27 | C27: 4260375489657 | D27: Лампа LED WOLTA FILAMENT G45 7Вт 730лм E27 3000K 1/10/50 | E27: 2 | F27: 108.92 | G27: 121.02 | H27: =G27*(1-$H$11/100) -> 121.02 | J27: >5000 | L27: 0 | M27: =L27*H27 -> 0 | N27: =L27*Q27 -> 0 | O27: =L27*R27 -> 0 | P27: шт | Q27: 0.04 | R27: 0.000223
B28: 25S45GLFT7E27 | C28: 4260375489688 | D28: Лампа LED WOLTA FILAMENT G45 7Вт 730лм E27 4000K 1/10/50 | E28: 2 | F28: 108.92 | G28: 121.02 | H28: =G28*(1-$H$11/100) -> 121.02 | J28: >5000 | L28: 0 | M28: =L28*H28 -> 0 | N28: =L28*Q28 -> 0 | O28: =L28*R28 -> 0 | P28: шт | Q28: 0.04 | R28: 0.000223
A29: C35 5W F
A30: WOLTA
B31: 25YCFT5E14 | C31: 4260529291174 | D31: Лампа LED WOLTA FILAMENT C35 5Вт 545лм E14 3000K 1/10/50 | E31: 2 | F31: 86.96 | G31: 96.62 | H31: =G31*(1-$H$11/100) -> 96.62 | J31: >5000 | L31: 0 | M31: =L31*H31 -> 0 | N31: =L31*Q31 -> 0 | O31: =L31*R31 -> 0 | P31: шт | Q31: 0.03 | R31: 0.000143
B32: 25SCFT5E14 | C32: 4260529291204 | D32: Лампа LED WOLTA FILAMENT C35 5Вт 545лм E14 4000K 1/10/50 | E32: 2 | F32: 86.96 | G32: 96.62 | H32: =G32*(1-$H$11/100) -> 96.62 | J32: >5000 | L32: 0 | M32: =L32*H32 -> 0 | N32: =L32*Q32 -> 0 | O32: =L32*R32 -> 0 | P32: шт | Q32: 0.03 | R32: 0.000143
A33: C35 7W F
A34: WOLTA
B35: 25YCFT7E14 | C35: 4260375487981 | D35: Лампа LED WOLTA FILAMENT C35 7Вт 730лм E14 3000K 1/10/50 | E35: 2 | F35: 108.92 | G35: 121.02 | H35: =G35*(1-$H$11/100) -> 121.02 | J35: >1000 | L35: 0 | M35: =L35*H35 -> 0 | N35: =L35*Q35 -> 0 | O35: =L35*R35 -> 0 | P35: шт | Q35: 0.03 | R35: 0.000143
B36: 25SCFT7E14 | C36: 4260375489565 | D36: Лампа LED WOLTA FILAMENT C35 7Вт 730лм E14 4000K 1/10/50 | E36: 2 | F36: 108.92 | G36: 121.02 | H36: =G36*(1-$H$11/100) -> 121.02 | J36: >5000 | L36: 0 | M36: =L36*H36 -> 0 | N36: =L36*Q36 -> 0 | O36: =L36*R36 -> 0 | P36: шт | Q36: 0.032 | R36: 0.000143
A37: CD35 5W F
A38: WOLTA
B39: 25YCDFT5E14 | C39: 4260375488636 | D39: Лампа LED WOLTA FILAMENT св н/в CD35 5Вт 545лм E14 3000K 1/10/50 | E39: 2 | F39: 86.96 | G39: 96.62 | H39: =G39*(1-$H$11/100) -> 96.62 | J39: >3000 | L39: 0 | M39: =L39*H39 -> 0 | N39: =L39*Q39 -> 0 | O39: =L39*R39 -> 0 | P39: шт | Q39: 0.034 | R39: 0.000162
B40: 25SCDFT5E14 | C40: 4260529291235 | D40: Лампа LED WOLTA FILAMENT св н/в CD35 5Вт 545лм E14 4000K 1/10/50 | E40: 2 | F40: 86.96 | G40: 96.62 | H40: =G40*(1-$H$11/100) -> 96.62 | J40: >5000 | L40: 0 | M40: =L40*H40 -> 0 | N40: =L40*Q40 -> 0 | O40: =L40*R40 -> 0 | P40: шт | Q40: 0.034 | R40: 0.000162
A41: CD35 7W F
A42: WOLTA
B43: 25YCDFT7E14 | C43: 4260375488667 | D43: Лампа LED WOLTA FILAMENT св н/в CD35 7Вт 730лм E14 3000K 1/10/50 | E43: 2 | F43: 108.92 | G43: 121.02 | H43: =G43*(1-$H$11/100) -> 121.02 | J43: >1000 | L43: 0 | M43: =L43*H43 -> 0 | N43: =L43*Q43 -> 0 | O43: =L43*R43 -> 0 | P43: шт | R43: 2e-06
B44: 25SCDFT7E14 | C44: 4260375489596 | D44: Лампа LED WOLTA FILAMENT св н/в CD35 7Вт 730лм E14 4000K 1/10/50 | E44: 2 | F44: 108.92 | G44: 121.02 | H44: =G44*(1-$H$11/100) -> 121.02 | J44: >5000 | L44: 0 | M44: =L44*H44 -> 0 | N44: =L44*Q44 -> 0 | O44: =L44*R44 -> 0 | P44: шт | Q44: 0.035 | R44: 0.000162
A45: CT35 5W F
A46: WOLTA
B47: 25YCTFT5E14 | C47: 4260375488070 | D47: Лампа LED WOLTA FILAMENT св вт CT35 5Вт 545лм E14 3000K 1/10/50 | E47: 2 | F47: 86.96 | G47: 96.62 | H47: =G47*(1-$H$11/100) -> 96.62 | J47: >5000 | L47: 0 | M47: =L47*H47 -> 0 | N47: =L47*Q47 -> 0 | O47: =L47*R47 -> 0 | P47: шт | Q47: 0.03 | R47: 0.000143
B48: 25SCTFT5E14 | C48: 4260529291266 | D48: Лампа LED WOLTA FILAMENT св вт CT35 5Вт 545лм E14 4000K 1/10/50 | E48: 2 | F48: 86.96 | G48: 96.62 | H48: =G48*(1-$H$11/100) -> 96.62 | J48: >5000 | L48: 0 | M48: =L48*H48 -> 0 | N48: =L48*Q48 -> 0 | O48: =L48*R48 -> 0 | P48: шт | Q48: 0.03 | R48: 0.000143
A49: CT35 7W F
A50: WOLTA
B51: 25YCTFT7E14 | C51: 4260375488100 | D51: Лампа LED WOLTA FILAMENT св вт CT35 7Вт 730лм E14 3000K 1/10/50 | E51: 2 | F51: 108.92 | G51: 121.02 | H51: =G51*(1-$H$11/100) -> 121.02 | J51: >5000 | L51: 0 | M51: =L51*H51 -> 0 | N51: =L51*Q51 -> 0 | O51: =L51*R51 -> 0 | P51: шт | Q51: 0.032 | R51: 0.000143
B52: 25SCTFT7E14 | C52: 4260529291297 | D52: Лампа LED WOLTA FILAMENT св вт CT35 7Вт 730лм E14 4000K 1/10/50 | E52: 2 | F52: 108.92 | G52: 121.02 | H52: =G52*(1-$H$11/100) -> 121.02 | J52: >5000 | L52: 0 | M52: =L52*H52 -> 0 | N52: =L52*Q52 -> 0 | O52: =L52*R52 -> 0 | P52: шт | Q52: 0.03 | R52: 0.000143
A53: LED 1.0
A54: A60 9W
A55: ВАША ЛАМПА
B56: 25Y60BL9E27-P | C56: 4260375488896 | D56: Лампа LED ВАША ЛАМПА A60 9Вт 800лм Е27 3000К 1/50 | E56: 1 | F56: 64.07 | G56: 71.19 | H56: =G56*(1-$H$11/100) -> 71.19 | J56: >5000 | L56: 0 | M56: =L56*H56 -> 0 | N56: =L56*Q56 -> 0 | O56: =L56*R56 -> 0 | P56: шт | Q56: 0.07 | R56: 0.000523 | S56: НОВИНКА!
B57: 25S60BL9E27-P | C57: 4260375488919 | D57: Лампа LED ВАША ЛАМПА A60 9Вт 800лм Е27 4000К 1/50 | E57: 1 | F57: 64.07 | G57: 71.19 | H57: =G57*(1-$H$11/100) -> 71.19 | J57: >3000 | L57: 0 | M57: =L57*H57 -> 0 | N57: =L57*Q57 -> 0 | O57: =L57*R57 -> 0 | P57: шт | Q57: 0.07 | R57: 0.000523 | S57: НОВИНКА!
A58: A60 12W
A59: WOLTA
B60: 25Y60BL12E27-S | C60: 4260375483495 | D60: Лампа LED WOLTA Simple A60 12Вт 1200лм Е27 3000К 1/50 | E60: 2 | F60: 64.07 | G60: 71.19 | H60: =G60*(1-$H$11/100) -> 71.19 | J60: >5000 | L60: 40 | M60: =L60*H60 -> 2847.6 | N60: =L60*Q60 -> 3.28 | O60: =L60*R60 -> 0.02416 | P60: шт | Q60: 0.082 | R60: 0.000604
B61: 25S60BL12E27 | C61: 4260529293703 | D61: Лампа LED WOLTA A60 12Вт 1150лм Е27 4000К 1/50 | E61: 2 | F61: 69.56 | G61: 77.29 | H61: =G61*(1-$H$11/100) -> 77.29 | J61: >5000 | L61: 0 | M61: =L61*H61 -> 0 | N61: =L61*Q61 -> 0 | O61: =L61*R61 -> 0 | P61: шт | Q61: 0.07 | R61: 0.000523
B62: 25W60BL12E27 | C62: 4260529293727 | D62: Лампа LED WOLTA A60 12Вт 1150лм Е27 6500К 1/50 | E62: 2 | F62: 69.56 | G62: 77.29 | H62: =G62*(1-$H$11/100) -> 77.29 | J62: >5000 | L62: 0 | M62: =L62*H62 -> 0 | N62: =L62*Q62 -> 0 | O62: =L62*R62 -> 0 | P62: шт | Q62: 0.07 | R62: 0.000523
A63: ВАША ЛАМПА
B64: 25Y60BL12E27-P | C64: 4260375483891 | D64: Лампа LED ВАША ЛАМПА A60 12Вт 1150лм Е27 3000К 1/50 | E64: 1 | F64: 69.56 | G64: 77.29 | H64: =G64*(1-$H$11/100) -> 77.29 | J64: >5000 | L64: 0 | M64: =L64*H64 -> 0 | N64: =L64*Q64 -> 0 | O64: =L64*R64 -> 0 | P64: шт | Q64: 0.07 | R64: 0.000523
A65: A60 15W
A66: WOLTA
B67: 25Y60BL15E27 | C67: 4260375483778 | D67: Лампа LED WOLTA A60 15Вт 1450лм Е27 3000К 1/50 | E67: 2 | F67: 94.28 | G67: 104.75 | H67: =G67*(1-$H$11/100) -> 104.75 | J67: >5000 | L67: 40 | M67: =L67*H67 -> 4190 | N67: =L67*Q67 -> 4.24 | O67: =L67*R67 -> 0.02396 | P67: шт | Q67: 0.106 | R67: 0.000599
B68: 25S60BL15E27 | C68: 4260375483808 | D68: Лампа LED WOLTA A60 15Вт 1450лм Е27 4000К 1/50 | E68: 2 | F68: 94.28 | G68: 104.75 | H68: =G68*(1-$H$11/100) -> 104.75 | J68: >5000 | L68: 0 | M68: =L68*H68 -> 0 | N68: =L68*Q68 -> 0 | O68: =L68*R68 -> 0 | P68: шт | Q68: 0.106 | R68: 0.000599
A69: ВАША ЛАМПА
B70: 25W60BL15E27-P | C70: 4260529290894 | D70: Лампа LED ВАША ЛАМПА A60 15Вт 1400лм Е27 6500К 1/50 | E70: 1 | F70: 94.28 | G70: 104.75 | H70: =G70*(1-$H$11/100) -> 104.75 | J70: >5000 | L70: 0 | M70: =L70*H70 -> 0 | N70: =L70*Q70 -> 0 | O70: =L70*R70 -> 0 | P70: шт | Q70: 0.072 | R70: 0.000545 | S70: НОВИНКА!
A71: A65 20W
A72: WOLTA
B73: 25Y65BL20E27 | C73: 4260375487905 | D73: Лампа LED WOLTA A65 20Вт 1800лм Е27 3000К 1/50 | E73: 3 | F73: 131.81 | G73: 146.45 | H73: =G73*(1-$H$11/100) -> 146.45 | J73: >5000 | L73: 0 | M73: =L73*H73 -> 0 | N73: =L73*Q73 -> 0 | O73: =L73*R73 -> 0 | P73: шт | Q73: 0.104 | R73: 0.00081
B74: 25S65BL20E27 | C74: 4260375487875 | D74: Лампа LED WOLTA A65 20Вт 1800лм Е27 4000К 1/50 | E74: 3 | F74: 131.81 | G74: 146.45 | H74: =G74*(1-$H$11/100) -> 146.45 | J74: >1000 | L74: 0 | M74: =L74*H74 -> 0 | N74: =L74*Q74 -> 0 | O74: =L74*R74 -> 0 | P74: шт | Q74: 0.104 | R74: 0.00081
A75: G45 5W
A76: ВАША ЛАМПА
B77: 25Y45GL5E14-P | C77: 4260375489015 | D77: Лампа LED ВАША ЛАМПА G45 5Вт 400лм Е14 3000К 1/50 | E77: 1 | F77: 54.92 | G77: 61.02 | H77: =G77*(1-$H$11/100) -> 61.02 | J77: >3000 | L77: 0 | M77: =L77*H77 -> 0 | N77: =L77*Q77 -> 0 | O77: =L77*R77 -> 0 | P77: шт | Q77: 0.044 | R77: 0.000238
B78: 25S45GL5E14-P | C78: 4260375489039 | D78: Лампа LED ВАША ЛАМПА G45 5Вт 400лм Е14 4000К 1/50 | E78: 1 | F78: 54.92 | G78: 61.02 | H78: =G78*(1-$H$11/100) -> 61.02 | J78: >5000 | L78: 0 | M78: =L78*H78 -> 0 | N78: =L78*Q78 -> 0 | O78: =L78*R78 -> 0 | P78: шт | Q78: 0.044 | R78: 0.000238
B79: 25Y45GL5E27-P | C79: 4260375489053 | D79: Лампа LED ВАША ЛАМПА G45 5Вт 400лм Е27 3000К 1/50 | E79: 1 | F79: 54.92 | G79: 61.02 | H79: =G79*(1-$H$11/100) -> 61.02 | J79: >5000 | L79: 0 | M79: =L79*H79 -> 0 | N79: =L79*Q79 -> 0 | O79: =L79*R79 -> 0 | P79: шт | Q79: 0.044 | R79: 0.000238
B80: 25S45GL5E27-P | C80: 4260375489077 | D80: Лампа LED ВАША ЛАМПА G45 5Вт 400лм Е27 4000К 1/50 | E80: 1 | F80: 54.92 | G80: 61.02 | H80: =G80*(1-$H$11/100) -> 61.02 | J80: >3000 | L80: 0 | M80: =L80*H80 -> 0 | N80: =L80*Q80 -> 0 | O80: =L80*R80 -> 0 | P80: шт | Q80: 0.044 | R80: 0.000238
A81: G45 7W
A82: ВАША ЛАМПА
B83: 25Y45GL7.5E14-P | C83: 4260375484058 | D83: Лампа LED ВАША ЛАМПА G45 7.5Вт 675лм Е14 3000К 1/50 | E83: 1 | F83: 58.58 | G83: 65.09 | H83: =G83*(1-$H$11/100) -> 65.09 | J83: >5000 | L83: 0 | M83: =L83*H83 -> 0 | N83: =L83*Q83 -> 0 | O83: =L83*R83 -> 0 | P83: шт | Q83: 0.034 | R83: 0.000238
B84: 25S45GL7.5E14-P | C84: 4260375484072 | D84: Лампа LED ВАША ЛАМПА G45 7.5Вт 675лм Е14 4000К 1/50 | E84: 1 | F84: 58.58 | G84: 65.09 | H84: =G84*(1-$H$11/100) -> 65.09 | J84: >5000 | L84: 0 | M84: =L84*H84 -> 0 | N84: =L84*Q84 -> 0 | O84: =L84*R84 -> 0 | P84: шт | Q84: 0.034 | R84: 0.000225
B85: 25W45GL7.5E14-P | C85: 4260529290955 | D85: Лампа LED ВАША ЛАМПА G45 7.5Вт 675лм Е14 6500К 1/50 | E85: 1 | F85: 58.58 | G85: 65.09 | H85: =G85*(1-$H$11/100) -> 65.09 | J85: >5000 | L85: 0 | M85: =L85*H85 -> 0 | N85: =L85*Q85 -> 0 | O85: =L85*R85 -> 0 | P85: шт | Q85: 0.034 | R85: 0.000225 | S85: НОВИНКА!
B86: 25Y45GL7.5E27-P | C86: 4260375484096 | D86: Лампа LED ВАША ЛАМПА G45 7.5Вт 675лм Е27 3000К 1/50 | E86: 1 | F86: 58.58 | G86: 65.09 | H86: =G86*(1-$H$11/100) -> 65.09 | J86: 12 | L86: 0 | M86: =L86*H86 -> 0 | N86: =L86*Q86 -> 0 | O86: =L86*R86 -> 0 | P86: шт | Q86: 0.036 | R86: 0.000225
B87: 25W45GL7.5E27-P | C87: 4260529290979 | D87: Лампа LED ВАША ЛАМПА G45 7.5Вт 675лм Е27 6500К 1/50 | E87: 1 | F87: 58.58 | G87: 65.09 | H87: =G87*(1-$H$11/100) -> 65.09 | J87: >5000 | L87: 0 | M87: =L87*H87 -> 0 | N87: =L87*Q87 -> 0 | O87: =L87*R87 -> 0 | P87: шт | Q87: 0.036 | R87: 0.000225 | S87: НОВИНКА!
A88: G45 7.5W
A89: WOLTA
B90: 25S45GL7.5E27 | C90: 4260529294069 | D90: Лампа LED WOLTA G45 7.5Вт 625лм Е27 4000К 1/50 | E90: 2 | F90: 58.58 | G90: 65.09 | H90: =G90*(1-$H$11/100) -> 65.09 | J90: >5000 | L90: 0 | M90: =L90*H90 -> 0 | N90: =L90*Q90 -> 0 | O90: =L90*R90 -> 0 | P90: шт | Q90: 0.036 | R90: 0.000225
A91: G45 8W
A92: WOLTA
B93: 25Y45GL8E14 | C93: 4260375483532 | D93: Лампа LED WOLTA G45 8Вт 800лм Е14 3000К 1/50 | E93: 3 | F93: 64.07 | G93: 71.19 | H93: =G93*(1-$H$11/100) -> 71.19 | J93: >5000 | L93: 0 | M93: =L93*H93 -> 0 | N93: =L93*Q93 -> 0 | O93: =L93*R93 -> 0 | P93: шт | Q93: 0.066 | R93: 0.000379
B94: 25S45GL8E14 | C94: 4260375483563 | D94: Лампа LED WOLTA G45 8Вт 800лм Е14 4000К 1/50 | E94: 3 | F94: 64.07 | G94: 71.19 | H94: =G94*(1-$H$11/100) -> 71.19 | J94: >5000 | L94: 0 | M94: =L94*H94 -> 0 | N94: =L94*Q94 -> 0 | O94: =L94*R94 -> 0 | P94: шт | Q94: 0.066 | R94: 0.000379
B95: 25Y45GL8E27 | C95: 4260375483594 | D95: Лампа LED WOLTA G45 8Вт 800лм Е27 3000К 1/50 | E95: 3 | F95: 64.07 | G95: 71.19 | H95: =G95*(1-$H$11/100) -> 71.19 | J95: >5000 | L95: 0 | M95: =L95*H95 -> 0 | N95: =L95*Q95 -> 0 | O95: =L95*R95 -> 0 | P95: шт | Q95: 0.066 | R95: 0.000379
B96: 25S45GL8E27 | C96: 4260375483624 | D96: Лампа LED WOLTA G45 8Вт 800лм Е27 4000К 1/50 | E96: 3 | F96: 64.07 | G96: 71.19 | H96: =G96*(1-$H$11/100) -> 71.19 | J96: >5000 | L96: 0 | M96: =L96*H96 -> 0 | N96: =L96*Q96 -> 0 | O96: =L96*R96 -> 0 | P96: шт | Q96: 0.066 | R96: 0.000379
A97: G45 10W
A98: ВАША ЛАМПА
B99: 25Y45GL10E14-P | C99: 4260529291662 | D99: Лампа LED ВАША ЛАМПА G45 10Вт 900лм Е14 3000К 1/50 | E99: 1 | F99: 79.63 | G99: 88.48 | H99: =G99*(1-$H$11/100) -> 88.48 | J99: >5000 | L99: 0 | M99: =L99*H99 -> 0 | N99: =L99*Q99 -> 0 | O99: =L99*R99 -> 0 | P99: шт | Q99: 0.046 | R99: 0.000273 | S99: НОВИНКА!
B100: 25S45GL10E14-P | C100: 4260529291686 | D100: Лампа LED ВАША ЛАМПА G45 10Вт 900лм Е14 4000К 1/50 | E100: 1 | F100: 79.63 | G100: 88.48 | H100: 88.48 | J100: >5000 | L100: 0 | M100: 0 | N100: 0 | O100: 0 | P100: шт | Q100: 0.046 | R100: 0.000273 | S100: НОВИНКА!
B101: 25W45GL10E14-P | C101: 4260529291709 | D101: Лампа LED ВАША ЛАМПА G45 10Вт 900лм Е14 6500К 1/50 | E101: 1 | F101: 79.63 | G101: 88.48 | H101: 88.48 | J101: >5000 | L101: 0 | M101: 0 | N101: 0 | O101: 0 | P101: шт | Q101: 0.046 | R101: 0.000273 | S101: НОВИНКА!
B102: 25Y45GL10E27-P | C102: 4260529291723 | D102: Лампа LED ВАША ЛАМПА G45 10Вт 900лм Е27 3000К 1/50 | E102: 1 | F102: 79.63 | G102: 88.48 | H102: 88.48 | J102: >5000 | L102: 0 | M102: 0 | N102: 0 | O102: 0 | P102: шт | Q102: 0.048 | R102: 0.000273 | S102: НОВИНКА!
B103: 25S45GL10E27-P | C103: 4260529291747 | D103: Лампа LED ВАША ЛАМПА G45 10Вт 900лм Е27 4000К 1/50 | E103: 1 | F103: 79.63 | G103: 88.48 | H103: 88.48 | J103: >5000 | L103: 0 | M103: 0 | N103: 0 | O103: 0 | P103: шт | Q103: 0.048 | R103: 0.000273 | S103: НОВИНКА!
B104: 25W45GL10E27-P | C104: 4260529291761 | D104: Лампа LED ВАША ЛАМПА G45 10Вт 900лм Е27 6500К 1/50 | E104: 1 | F104: 79.63 | G104: 88.48 | H104: 88.48 | J104: >5000 | L104: 0 | M104: 0 | N104: 0 | O104: 0 | P104: шт | Q104: 0.048 | R104: 0.000273 | S104: НОВИНКА!
A105: C37 5W
A106: ВАША ЛАМПА
B107: 25YC5E14-P | C107: 4260375488933 | D107: Лампа LED ВАША ЛАМПА C37 5Вт 400лм Е14 3000К 1/50 | E107: 1 | F107: 54.92 | G107: 61.02 | H107: =G107*(1-$H$11/100) -> 61.02 | J107: >5000 | L107: 0 | M107: =L107*H107 -> 0 | N107: =L107*Q107 -> 0 | O107: =L107*R107 -> 0 | P107: шт | Q107: 0.042 | R107: 0.000194
B108: 25SC5E14-P | C108: 4260375488957 | D108: Лампа LED ВАША ЛАМПА C37 5Вт 400лм Е14 4000К 1/50 | E108: 1 | F108: 54.92 | G108: 61.02 | H108: =G108*(1-$H$11/100) -> 61.02 | J108: >5000 | L108: 0 | M108: =L108*H108 -> 0 | N108: =L108*Q108 -> 0 | O108: =L108*R108 -> 0 | P108: шт | Q108: 0.042 | R108: 0.000194
B109: 25YC5E27-P | C109: 4260375488971 | D109: Лампа LED ВАША ЛАМПА C37 5Вт 400лм Е27 3000К 1/50 | E109: 1 | F109: 54.92 | G109: 61.02 | H109: =G109*(1-$H$11/100) -> 61.02 | J109: >1000 | L109: 0 | M109: =L109*H109 -> 0 | N109: =L109*Q109 -> 0 | O109: =L109*R109 -> 0 | P109: шт | Q109: 0.042 | R109: 0.000194
B110: 25SC5E27-P | C110: 4260375488995 | D110: Лампа LED ВАША ЛАМПА C37 5Вт 400лм Е27 4000К 1/50 | E110: 1 | F110: 54.92 | G110: 61.02 | H110: =G110*(1-$H$11/100) -> 61.02 | J110: >1000 | L110: 0 | M110: =L110*H110 -> 0 | N110: =L110*Q110 -> 0 | O110: =L110*R110 -> 0 | P110: шт | Q110: 0.042 | R110: 0.000194
A111: C37 7.5W
A112: WOLTA
B113: 25YC7.5E14 | C113: 4260529293802 | D113: Лампа LED WOLTA C37 7.5Вт 625лм Е14 3000К 1/50 | E113: 2 | F113: 58.58 | G113: 65.09 | H113: =G113*(1-$H$11/100) -> 65.09 | J113: >5000 | L113: 0 | M113: =L113*H113 -> 0 | N113: =L113*Q113 -> 0 | O113: =L113*R113 -> 0 | P113: шт | Q113: 0.04 | R113: 0.000194
A114: ВАША ЛАМПА
B115: 25SC7.5E14-P | C115: 4260375483990 | D115: Лампа LED ВАША ЛАМПА C37 7.5Вт 675лм Е14 4000К 1/50 | E115: 1 | F115: 58.58 | G115: 65.09 | H115: =G115*(1-$H$11/100) -> 65.09 | J115: >250 | L115: 0 | M115: =L115*H115 -> 0 | N115: =L115*Q115 -> 0 | O115: =L115*R115 -> 0 | P115: шт | Q115: 0.04 | R115: 0.000194
B116: 25WC7.5E14-P | C116: 4260529290917 | D116: Лампа LED ВАША ЛАМПА C37 7.5Вт 675лм Е14 6500К 1/50 | E116: 1 | F116: 58.58 | G116: 65.09 | H116: =G116*(1-$H$11/100) -> 65.09 | J116: >5000 | L116: 0 | M116: =L116*H116 -> 0 | N116: =L116*Q116 -> 0 | O116: =L116*R116 -> 0 | P116: шт | Q116: 0.04 | R116: 0.000194 | S116: НОВИНКА!
B117: 25YC7.5E27-P | C117: 4260375484010 | D117: Лампа LED ВАША ЛАМПА C37 7.5Вт 675лм Е27 3000К 1/50 | E117: 1 | F117: 58.58 | G117: 65.09 | H117: =G117*(1-$H$11/100) -> 65.09 | J117: >5000 | L117: 0 | M117: =L117*H117 -> 0 | N117: =L117*Q117 -> 0 | O117: =L117*R117 -> 0 | P117: шт | Q117: 0.04 | R117: 0.000203
B118: 25SC7.5E27-P | C118: 4260375484034 | D118: Лампа LED ВАША ЛАМПА C37 7.5Вт 675лм Е27 4000К 1/50 | E118: 1 | F118: 58.58 | G118: 65.09 | H118: =G118*(1-$H$11/100) -> 65.09 | J118: >5000 | L118: 0 | M118: =L118*H118 -> 0 | N118: =L118*Q118 -> 0 | O118: =L118*R118 -> 0 | P118: шт | Q118: 0.038 | R118: 0.000203
B119: 25WC7.5E27-P | C119: 4260529291884 | D119: Лампа LED ВАША ЛАМПА C37 7.5Вт 675лм Е27 6500К 1/50 | E119: 1 | F119: 58.58 | G119: 65.09 | H119: =G119*(1-$H$11/100) -> 65.09 | J119: >5000 | L119: 0 | M119: =L119*H119 -> 0 | N119: =L119*Q119 -> 0 | O119: =L119*R119 -> 0 | P119: шт | Q119: 0.04 | R119: 0.000203 | S119: НОВИНКА!
A120: C37 10W
A121: ВАША ЛАМПА
B122: 25YC10E14-P | C122: 4260529291488 | D122: Лампа LED ВАША ЛАМПА C37 10Вт 900лм Е14 3000К 1/50 | E122: 1 | F122: 79.63 | G122: 88.48 | H122: =G122*(1-$H$11/100) -> 88.48 | J122: >5000 | L122: 0 | M122: =L122*H122 -> 0 | N122: =L122*Q122 -> 0 | O122: =L122*R122 -> 0 | P122: шт | Q122: 0.044 | R122: 0.000236 | S122: НОВИНКА!
B123: 25SC10E14-P | C123: 4260529291501 | D123: Лампа LED ВАША ЛАМПА C37 10Вт 900лм Е14 4000К 1/50 | E123: 1 | F123: 79.63 | G123: 88.48 | H123: 88.48 | J123: >5000 | L123: 0 | M123: 0 | N123: 0 | O123: 0 | P123: шт | Q123: 0.044 | R123: 0.000236 | S123: НОВИНКА!
B124: 25WC10E14-P | C124: 4260529291525 | D124: Лампа LED ВАША ЛАМПА C37 10Вт 900лм Е14 6500К 1/50 | E124: 1 | F124: 79.63 | G124: 88.48 | H124: 88.48 | J124: >1000 | L124: 0 | M124: 0 | N124: 0 | O124: 0 | P124: шт | Q124: 0.04 | R124: 0.000236 | S124: НОВИНКА!
B125: 25YC10E27-P | C125: 4260529291549 | D125: Лампа LED ВАША ЛАМПА C37 10Вт 900лм Е27 3000К 1/50 | E125: 1 | F125: 79.63 | G125: 88.48 | H125: 88.48 | J125: >5000 | L125: 0 | M125: 0 | N125: 0 | O125: 0 | P125: шт | Q125: 0.046 | R125: 0.000236 | S125: НОВИНКА!
B126: 25SC10E27-P | C126: 4260529291563 | D126: Лампа LED ВАША ЛАМПА C37 10Вт 900лм Е27 4000К 1/50 | E126: 1 | F126: 79.63 | G126: 88.48 | H126: 88.48 | J126: >5000 | L126: 0 | M126: 0 | N126: 0 | O126: 0 | P126: шт | Q126: 0.046 | R126: 0.000236 | S126: НОВИНКА!
B127: 25WC10E27-P | C127: 4260529291587 | D127: Лампа LED ВАША ЛАМПА C37 10Вт 900лм Е27 6500К 1/50 | E127: 1 | F127: 79.63 | G127: 88.48 | H127: 88.48 | J127: >1000 | L127: 0 | M127: 0 | N127: 0 | O127: 0 | P127: шт | Q127: 0.046 | R127: 0.000236 | S127: НОВИНКА!
A128: CD37 7.5W
A129: ВАША ЛАМПА
B130: 25YCD7.5E14-P | C130: 4260375487479 | D130: Лампа LED ВАША ЛАМПА св н/в CD37 7.5Вт 675лм Е14 3000К 1/50 | E130: 1 | F130: 58.58 | G130: 65.09 | H130: =G130*(1-$H$11/100) -> 65.09 | J130: >5000 | L130: 0 | M130: =L130*H130 -> 0 | N130: =L130*Q130 -> 0 | O130: =L130*R130 -> 0 | P130: шт | Q130: 0.042 | R130: 0.000265
B131: 25SCD7.5E14-P | C131: 4260375487493 | D131: Лампа LED ВАША ЛАМПА св н/в CD37 7.5Вт 675лм Е14 4000К 1/50 | E131: 1 | F131: 58.58 | G131: 65.09 | H131: =G131*(1-$H$11/100) -> 65.09 | J131: 48 | L131: 0 | M131: =L131*H131 -> 0 | N131: =L131*Q131 -> 0 | O131: =L131*R131 -> 0 | P131: шт | Q131: 0.042 | R131: 0.000265
B132: 25WCD7.5E14-P | C132: 4260529290931 | D132: Лампа LED ВАША ЛАМПА св н/в CD37 7.5Вт 675лм Е14 6500К 1/50 | E132: 1 | F132: 58.58 | G132: 65.09 | H132: =G132*(1-$H$11/100) -> 65.09 | J132: >5000 | L132: 0 | M132: =L132*H132 -> 0 | N132: =L132*Q132 -> 0 | O132: =L132*R132 -> 0 | P132: шт | Q132: 0.042 | R132: 0.000265 | S132: НОВИНКА!
A133: R39 5W
A134: WOLTA
B135: 25Y39R5E14 | C135: 4260375481743 | D135: Лампа LED WOLTA R39 5Вт 400лм E14 3000K 1/50 | E135: 2 | F135: 74.14 | G135: 82.38 | H135: =G135*(1-$H$11/100) -> 82.38 | J135: >5000 | L135: 0 | M135: =L135*H135 -> 0 | N135: =L135*Q135 -> 0 | O135: =L135*R135 -> 0 | P135: шт | Q135: 0.052 | R135: 0.0003
B136: 25S39R5E14 | C136: 4260375481774 | D136: Лампа LED WOLTA R39 5Вт 400лм E14 4000K 1/50 | E136: 2 | F136: 74.14 | G136: 82.38 | H136: =G136*(1-$H$11/100) -> 82.38 | J136: >5000 | L136: 0 | M136: =L136*H136 -> 0 | N136: =L136*Q136 -> 0 | O136: =L136*R136 -> 0 | P136: шт | Q136: 0.052 | R136: 0.0003
A137: R50 7W
A138: WOLTA
B139: 25Y50R7E14 | C139: 4260375481804 | D139: Лампа LED WOLTA R50 7Вт 600лм E14 3000K 1/50 | E139: 2 | F139: 84.2 | G139: 93.56 | H139: =G139*(1-$H$11/100) -> 93.56 | J139: >1000 | L139: 0 | M139: =L139*H139 -> 0 | N139: =L139*Q139 -> 0 | O139: =L139*R139 -> 0 | P139: шт | Q139: 0.092 | R139: 0.000496
B140: 25S50R7E14 | C140: 4260375481835 | D140: Лампа LED WOLTA R50 7Вт 600лм E14 4000K 1/50 | E140: 2 | F140: 84.2 | G140: 93.56 | H140: =G140*(1-$H$11/100) -> 93.56 | J140: >3000 | L140: 0 | M140: =L140*H140 -> 0 | N140: =L140*Q140 -> 0 | O140: =L140*R140 -> 0 | P140: шт | Q140: 0.092 | R140: 0.000496
A141: R63 9W
A142: WOLTA
B143: 25Y63R9E27 | C143: 4260375481866 | D143: Лампа LED WOLTA R63 9Вт 810лм E27 3000K 1/50 | E143: 2 | F143: 94.28 | G143: 104.75 | H143: =G143*(1-$H$11/100) -> 104.75 | J143: >3000 | L143: 0 | M143: =L143*H143 -> 0 | N143: =L143*Q143 -> 0 | O143: =L143*R143 -> 0 | P143: шт | Q143: 0.162 | R143: 0.00082
B144: 25S63R9E27 | C144: 4260375481897 | D144: Лампа LED WOLTA R63 9Вт 810лм E27 4000K 1/50 | E144: 2 | F144: 94.28 | G144: 104.75 | H144: =G144*(1-$H$11/100) -> 104.75 | J144: >1000 | L144: 0 | M144: =L144*H144 -> 0 | N144: =L144*Q144 -> 0 | O144: =L144*R144 -> 0 | P144: шт | Q144: 0.162 | R144: 0.00082
A145: GU5.3 7.5W
A146: WOLTA
B147: 25YMR16-220-7.5GU5.3 | C147: 4260529294106 | D147: Лампа LED WOLTA MR16 7.5Вт 625лм GU5.3 3000К 1/50 | E147: 2 | F147: 58.58 | G147: 65.09 | H147: =G147*(1-$H$11/100) -> 65.09 | J147: >3000 | L147: 0 | M147: =L147*H147 -> 0 | N147: =L147*Q147 -> 0 | O147: =L147*R147 -> 0 | P147: шт | Q147: 0.04 | R147: 0.00019
B148: 25SMR16-220-7.5GU5.3 | C148: 4260529294120 | D148: Лампа LED WOLTA MR16 7.5Вт 625лм GU5.3 4000К 1/50 | E148: 2 | F148: 58.58 | G148: 65.09 | H148: =G148*(1-$H$11/100) -> 65.09 | J148: >5000 | L148: 0 | M148: =L148*H148 -> 0 | N148: =L148*Q148 -> 0 | O148: =L148*R148 -> 0 | P148: шт | Q148: 0.04 | R148: 0.00019
A149: ВАША ЛАМПА
B150: 25WMR16-220-7.5GU5.3-P | C150: 4260529290993 | D150: Лампа LED ВАША ЛАМПА MR16 7.5Вт 675лм GU5.3 6500К 1/50 | E150: 1 | F150: 58.58 | G150: 65.09 | H150: =G150*(1-$H$11/100) -> 65.09 | J150: >1000 | L150: 0 | M150: =L150*H150 -> 0 | N150: =L150*Q150 -> 0 | O150: =L150*R150 -> 0 | P150: шт | Q150: 0.04 | R150: 0.00019 | S150: НОВИНКА!
A151: GU5.3 10W
A152: WOLTA
B153: 25SMR16-220-10GU5.3 | C153: 4260529293642 | D153: Лампа LED WOLTA MR16 10Вт 825лм GU5.3 4000К 1/50 | E153: 2 | F153: 79.63 | G153: 88.48 | H153: =G153*(1-$H$11/100) -> 88.48 | J153: >5000 | L153: 0 | M153: =L153*H153 -> 0 | N153: =L153*Q153 -> 0 | O153: =L153*R153 -> 0 | P153: шт | Q153: 0.04 | R153: 0.000235
B154: 25WMR16-220-10GU5.3 | C154: 4260529293666 | D154: Лампа LED WOLTA MR16 10Вт 825лм GU5.3 6500К 1/50 | E154: 2 | F154: 79.63 | G154: 88.48 | H154: =G154*(1-$H$11/100) -> 88.48 | J154: >5000 | L154: 0 | M154: =L154*H154 -> 0 | N154: =L154*Q154 -> 0 | O154: =L154*R154 -> 0 | P154: шт | Q154: 0.04 | R154: 0.000235
A155: ВАША ЛАМПА
B156: 25YMR16-220-10GU5.3-P | C156: 4260529291822 | D156: Лампа LED ВАША ЛАМПА MR16 10Вт 900лм GU5.3 3000К 1/50 | E156: 1 | F156: 79.63 | G156: 88.48 | H156: =G156*(1-$H$11/100) -> 88.48 | J156: >3000 | L156: 0 | M156: =L156*H156 -> 0 | N156: =L156*Q156 -> 0 | O156: =L156*R156 -> 0 | P156: шт | Q156: 0.042 | R156: 0.000227 | S156: НОВИНКА!
A157: GU10 8W
A158: WOLTA
B159: 25YPAR16-230-8GU10 | C159: 4260375481569 | D159: Лампа LED WOLTA PAR16 8Вт 700лм GU10 3000К 1/50 | E159: 3 | F159: 83.75 | G159: 93.06 | H159: =G159*(1-$H$11/100) -> 93.06 | J159: >1000 | L159: 0 | M159: =L159*H159 -> 0 | N159: =L159*Q159 -> 0 | O159: =L159*R159 -> 0 | P159: шт | Q159: 0.07 | R159: 0.000348
B160: 25SPAR16-230-8GU10 | C160: 4260375481590 | D160: Лампа LED WOLTA PAR16 8Вт 700лм GU10 4000К 1/50 | E160: 3 | F160: 83.75 | G160: 93.06 | H160: =G160*(1-$H$11/100) -> 93.06 | J160: >1000 | L160: 0 | M160: =L160*H160 -> 0 | N160: =L160*Q160 -> 0 | O160: =L160*R160 -> 0 | P160: шт | Q160: 0.07 | R160: 0.000348
A161: GX53 7.5W
A162: WOLTA
B163: 25Y75R7.5GX53 | C163: 4260529293086 | D163: Лампа LED WOLTA R75 7.5Вт 625лм GX53 3000К 1/100 | E163: 2 | F163: 76.5 | G163: 85 | H163: =G163*(1-$H$11/100) -> 85 | J163: >100 | K163: >5000, поставка ожидается 2019-06-18 | L163: 0 | M163: =L163*H163 -> 0 | N163: =L163*Q163 -> 0 | O163: =L163*R163 -> 0 | P163: шт | R163: 3e-06 | S163: НОВИНКА!
B164: 25S75R7.5GX53 | C164: 4260529293109 | D164: Лампа LED WOLTA R75 7.5Вт 625лм GX53 4000К 1/100 | E164: 2 | F164: 76.5 | G164: 85 | H164: =G164*(1-$H$11/100) -> 85 | J164: >5000 | L164: 0 | M164: =L164*H164 -> 0 | N164: =L164*Q164 -> 0 | O164: =L164*R164 -> 0 | P164: шт | R164: 2e-06 | S164: НОВИНКА!
B165: 25W75R7.5GX53 | C165: 4260529293123 | D165: Лампа LED WOLTA R75 7.5Вт 625лм GX53 6500К 1/100 | E165: 2 | F165: 76.5 | G165: 85 | H165: =G165*(1-$H$11/100) -> 85 | J165: >1000 | L165: 0 | M165: =L165*H165 -> 0 | N165: =L165*Q165 -> 0 | O165: =L165*R165 -> 0 | P165: шт | R165: 4e-06 | S165: НОВИНКА!
A166: GX53 10W
A167: WOLTA
B168: 25Y75R10GX53 | C168: 4260529293147 | D168: Лампа LED WOLTA R75 10Вт 825лм GX53 3000К 1/100 | E168: 2 | F168: 90 | G168: 100 | H168: =G168*(1-$H$11/100) -> 100 | J168: >100 | K168: >3000, поставка ожидается 2019-06-18 | L168: 0 | M168: =L168*H168 -> 0 | N168: =L168*Q168 -> 0 | O168: =L168*R168 -> 0 | P168: шт | R168: 4e-06 | S168: НОВИНКА!
B169: 25S75R10GX53 | C169: 4260529293161 | D169: Лампа LED WOLTA R75 10Вт 825лм GX53 4000К 1/100 | E169: 2 | F169: 90 | G169: 100 | H169: =G169*(1-$H$11/100) -> 100 | J169: >3000 | L169: 0 | M169: =L169*H169 -> 0 | N169: =L169*Q169 -> 0 | O169: =L169*R169 -> 0 | P169: шт | R169: 2e-06 | S169: НОВИНКА!
B170: 25W75R10GX53 | C170: 4260529293185 | D170: Лампа LED WOLTA R75 10Вт 825лм GX53 6500К 1/100 | E170: 2 | F170: 90 | G170: 100 | H170: =G170*(1-$H$11/100) -> 100 | J170: >250 | K170: >3000, поставка ожидается 2019-06-18 | L170: 0 | M170: =L170*H170 -> 0 | N170: =L170*Q170 -> 0 | O170: =L170*R170 -> 0 | P170: шт | R170: 4e-06 | S170: НОВИНКА!
A171: Capsule G4 2.5W 12V AC/DC
A172: WOLTA
B173: 25YJC-12-2.5G4 | C173: 4260375482245 | D173: Лампа LED WOLTA JC 2.5Вт 200лм G4 12V AC/DC 3000K 1/5/100/1000 | E173: 3 | F173: 64.07 | G173: 71.19 | H173: =G173*(1-$H$11/100) -> 71.19 | J173: >5000 | L173: 0 | M173: =L173*H173 -> 0 | N173: =L173*Q173 -> 0 | O173: =L173*R173 -> 0 | P173: шт | Q173: 0.012 | R173: 3.9e-05 | S173: СНИЖЕНА ЦЕНА!
B174: 25SJC-12-2.5G4 | C174: 4260375482214 | D174: Лампа LED WOLTA JC 2.5Вт 200лм G4 12V AC/DC 4000K 1/5/100/1000 | E174: 3 | F174: 73.22 | G174: 81.36 | H174: =G174*(1-$H$11/100) -> 81.36 | J174: 0 | L174: 0 | M174: =L174*H174 -> 0 | N174: =L174*Q174 -> 0 | O174: =L174*R174 -> 0 | P174: шт | Q174: 0.012 | R174: 3.9e-05 | S174: СНИЖЕНА ЦЕНА!
A175: Capsule G4 2.5W
A176: WOLTA
B177: 25YJC-230-2.5G4 | C177: 4260375482184 | D177: Лампа LED WOLTA JC 2.5Вт 200лм G4 220V 3000K 1/5/100/1000 | E177: 3 | F177: 64.07 | G177: 71.19 | H177: =G177*(1-$H$11/100) -> 71.19 | J177: >3000 | L177: 0 | M177: =L177*H177 -> 0 | N177: =L177*Q177 -> 0 | O177: =L177*R177 -> 0 | P177: шт | Q177: 0.012 | R177: 3.9e-05 | S177: СНИЖЕНА ЦЕНА!
A178: capsule 5W G9
A179: WOLTA
B180: 25YJCD-230-5G9 | C180: 4260375482306 | D180: Лампа LED WOLTA JCD 5Вт 360лм G9 220V 3000K 1/5/100/1000 | E180: 3 | F180: 91.53 | G180: 101.7 | H180: =G180*(1-$H$11/100) -> 101.7 | J180: >5000 | L180: 0 | M180: =L180*H180 -> 0 | N180: =L180*Q180 -> 0 | O180: =L180*R180 -> 0 | P180: шт | Q180: 0.022 | R180: 6.4e-05 | S180: СНИЖЕНА ЦЕНА!
A181: LED T8
A182: T8 10W
A183: WOLTA
B184: 25ST8-10G13-R | C184: 4260375483051 | D184: Лампа LED WOLTA T8 60 10Вт 800лм G13-пов-й 4000K 1/25 | E184: 2 | F184: 110.75 | G184: 123.06 | H184: =G184*(1-$H$11/100) -> 123.06 | J184: >5000 | L184: 0 | M184: =L184*H184 -> 0 | N184: =L184*Q184 -> 0 | O184: =L184*R184 -> 0 | P184: шт | Q184: 0.136 | R184: 0.00095
B185: 25WT8-10G13-R | C185: 4260375483075 | D185: Лампа LED WOLTA T8 60 10Вт 800лм G13-пов-й 6500K 1/25 | E185: 2 | F185: 110.75 | G185: 123.06 | H185: =G185*(1-$H$11/100) -> 123.06 | J185: >5000 | L185: 0 | M185: =L185*H185 -> 0 | N185: =L185*Q185 -> 0 | O185: =L185*R185 -> 0 | P185: шт | Q185: 0.136 | R185: 0.00095
A186: T8 18W
A187: WOLTA
B188: 25ST8-18G13 | C188: 4260375482078 | D188: Лампа LED WOLTA T8 120 18Вт 1600лм G13 4000K 1/25 | E188: 2 | F188: 134.55 | G188: 149.5 | H188: =G188*(1-$H$11/100) -> 149.5 | J188: >5000 | L188: 0 | M188: =L188*H188 -> 0 | N188: =L188*Q188 -> 0 | O188: =L188*R188 -> 0 | P188: шт | Q188: 0.25 | R188: 0.001908
B189: 25WT8-18G13 | C189: 4260375482092 | D189: Лампа LED WOLTA T8 120 18Вт 1600лм G13 6500K 1/25 | E189: 2 | F189: 134.55 | G189: 149.5 | H189: =G189*(1-$H$11/100) -> 149.5 | J189: >5000 | L189: 0 | M189: =L189*H189 -> 0 | N189: =L189*Q189 -> 0 | O189: =L189*R189 -> 0 | P189: шт | Q189: 0.25 | R189: 0.001908
A190: T8 24W
A191: WOLTA
B192: 25ST8-24G13 | C192: 4260529295400 | D192: Лампа LED WOLTA T8 150 24Вт 1950лм G13 4000K 1/25 | E192: 2 | F192: 224.55 | G192: 249.5 | H192: =G192*(1-$H$11/100) -> 249.5 | J192: >1000 | L192: 0 | M192: =L192*H192 -> 0 | N192: =L192*Q192 -> 0 | O192: =L192*R192 -> 0 | P192: шт | Q192: 0.3 | R192: 0.002318 | S192: НОВИНКА СКОРО НА СКЛАДЕ!
B193: 25WT8-24G13 | C193: 4260529295424 | D193: Лампа LED WOLTA T8 150 24Вт 1950лм G13 6500K 1/25 | E193: 2 | F193: 224.55 | G193: 249.5 | H193: =G193*(1-$H$11/100) -> 249.5 | J193: >3000 | L193: 0 | M193: =L193*H193 -> 0 | N193: =L193*Q193 -> 0 | O193: =L193*R193 -> 0 | P193: шт | Q193: 0.3 | R193: 0.002318 | S193: НОВИНКА СКОРО НА СКЛАДЕ!
A194: LED HP
A196: WOLTA
B197: 25WHP30E27/40 | C197: 4260375487813 | D197: Лампа LED WOLTA HP 30Вт 2500лм E27/40 6500K 1/40 | E197: 2 | F197: 207 | G197: 230 | H197: =G197*(1-$H$11/100) -> 230 | J197: >500 | L197: 0 | M197: =L197*H197 -> 0 | N197: =L197*Q197 -> 0 | O197: =L197*R197 -> 0 | P197: шт | R197: 1.7e-05 | S197: СНИЖЕНА ЦЕНА!
B198: 25WHP40E27/40 | C198: 4260375487837 | D198: Лампа LED WOLTA HP 40Вт 3500лм E27/40 6500K 1/20 | E198: 2 | F198: 319.5 | G198: 355 | H198: =G198*(1-$H$11/100) -> 355 | J198: >100 | K198: >3000, поставка ожидается 2019-06-18 | L198: 0 | M198: =L198*H198 -> 0 | N198: =L198*Q198 -> 0 | O198: =L198*R198 -> 0 | P198: шт | Q198: 0.001 | R198: 2.2e-05 | S198: СНИЖЕНА ЦЕНА!
B199: 25WHP60E27/40 | C199: 4260529292409 | D199: Лампа LED WOLTA HP 60Вт 4500лм E27/40 6500K 1/12 | E199: 2 | F199: 540 | G199: 600 | H199: =G199*(1-$H$11/100) -> 600 | J199: >500 | L199: 0 | M199: =L199*H199 -> 0 | N199: =L199*Q199 -> 0 | O199: =L199*R199 -> 0 | P199: шт | Q199: 0.001 | R199: 2.2e-05 | S199: НОВИНКА!
B200: 25WHP60E40 | C200: 4260375487851 | D200: Лампа LED WOLTA HP 60Вт 5000лм E40 6500K 1/12 | E200: 2 | F200: 540 | G200: 600 | H200: =G200*(1-$H$11/100) -> 600 | J200: >100 | L200: 0 | M200: =L200*H200 -> 0 | N200: =L200*Q200 -> 0 | O200: =L200*R200 -> 0 | P200: шт | Q200: 0.692 | R200: 0.009429 | S200: СНИЖЕНА ЦЕНА!
B201: 25WHP90E27/40 | C201: 4260529292423 | D201: Лампа LED WOLTA HP 90Вт 7000лм E27/40 6500K 1/12 | E201: 2 | F201: 900 | G201: 1000 | H201: =G201*(1-$H$11/100) -> 1000 | J201: >1000 | L201: 0 | M201: =L201*H201 -> 0 | N201: =L201*Q201 -> 0 | O201: =L201*R201 -> 0 | P201: шт | Q201: 0.004 | R201: 4.8e-05 | S201: НОВИНКА!
K202: ИТОГО: | L202: =SUM(L12:L201) -> 80 | M202: =SUM(M12:M201) -> 7037.6 | N202: =SUM(N12:N201) -> 7.52 | O202: =SUM(O12:O201) -> 0.04812

Sheet Прожекторы,Уличный свет
R1: ООО «Вольта Русланд»
R2: ИНН/КПП/ОГРН 7716662181 / 771901001 / 1107746281323
R3: 119361, г. Москва, ул. Наташи Ковшовой, д. 4, стр. 1, офис 23
R4: Тел.: +7(495) 651-87-22, факс: +7 (495) 721-24-20, info@wolta.ru
L6: Дата формирования прайс-листа: | Q6: 30.05.2019
A7: Номенклатура | L7: Заказ
A8: Фото | B8: Ссылка на сайт | C8: Штрихкод / Артикул | D8: Наименование | E8: Гарантия, г. | F8: МРОЦ, руб | G8: Базовая цена, руб. | H8: Ваша цена со скидкой, руб. | I8: Спец Цена, руб. | J8: Остаток | K8: Ближайшее поступление | L8: Кол-во, шт | M8: Сумма, руб. | N8: Вес, кг | O8: Объем, м3 | P8: Ед. изм. | Q8: Вес, кг | R8: Объем, м3
G11: Укажите свою скидку % | H11: 0
A12: FL
A13: LFL-05
A14: Lumin'arte
B15: LFL-20/05 | C15: 4260375484355 | D15: Светодиодный прожектор LFL-20/05 5500K 20 вт LED IP65 1600 Лм | E15: 2 | F15: 233.41 | G15: 259.34 | H15: =G15*(1-$H$11/100) -> 259.34 | J15: >250 | L15: 0 | M15: =L15*H15 -> 0 | N15: =L15*Q15 -> 0 | O15: =L15*R15 -> 0 | P15: шт | Q15: 0.27 | R15: 0.001092
B16: LFL-20/05s | C16: 4260375484430 | D16: Светодиодный прожектор LFL-20/05s с датчиком движения 5500K 20 вт LED IP65 1600 Лм | E16: 2 | F16: 640.71 | G16: 711.9 | H16: =G16*(1-$H$11/100) -> 711.9 | J16: >500 | L16: 0 | M16: =L16*H16 -> 0 | N16: =L16*Q16 -> 0 | O16: =L16*R16 -> 0 | P16: шт | Q16: 0.345 | R16: 0.001259
B17: LFL-30/05 | C17: 4630015266014 | D17: Светодиодный прожектор LFL-30/05 5500K 30 Вт LED IP65 2400 Лм | E17: 2 | F17: 361.55 | G17: 401.72 | H17: =G17*(1-$H$11/100) -> 401.72 | J17: >100 | L17: 0 | M17: =L17*H17 -> 0 | N17: =L17*Q17 -> 0 | O17: =L17*R17 -> 0 | P17: шт | Q17: 0.464 | R17: 0.001909
B18: LFL-50/05 | C18: 4260375484393 | D18: Светодиодный прожектор LFL-50/05 5500K 50 Вт LED IP65 4000 Лм | E18: 2 | F18: 562.91 | G18: 625.46 | H18: =G18*(1-$H$11/100) -> 625.46 | J18: >3000 | L18: 0 | M18: =L18*H18 -> 0 | N18: =L18*Q18 -> 0 | O18: =L18*R18 -> 0 | P18: шт | Q18: 0.688 | R18: 0.002497
A19: WFL-05
A20: WOLTA
B21: WFL-10W/05s | C21: 4260375489886 | D21: Светодиодный прожектор WFL-10W/05s с датчиком движения 5500K 10 Вт LED IP65 800 Лм | E21: 2 | F21: 642.54 | G21: 713.93 | H21: =G21*(1-$H$11/100) -> 713.93 | J21: >5000 | L21: 0 | M21: =L21*H21 -> 0 | N21: =L21*Q21 -> 0 | O21: =L21*R21 -> 0 | P21: шт | Q21: 0.343 | R21: 0.001259
B22: WFL-20W/05s | C22: 4260375489909 | D22: Светодиодный прожектор WFL-20W/05s с датчиком движения 5500K 20 Вт LED IP65 1600 Лм | E22: 2 | F22: 695.63 | G22: 772.92 | H22: =G22*(1-$H$11/100) -> 772.92 | J22: >5000 | L22: 0 | M22: =L22*H22 -> 0 | N22: =L22*Q22 -> 0 | O22: =L22*R22 -> 0 | P22: шт | Q22: 0.343 | R22: 0.001259
B23: WFL-30W/05s | C23: 4260375489923 | D23: Светодиодный прожектор WFL-30W/05s с датчиком движения 5500K 30 Вт LED IP65 2400 Лм | E23: 2 | F23: 947.34 | G23: 1052.6 | H23: =G23*(1-$H$11/100) -> 1052.6 | J23: >5000 | L23: 0 | M23: =L23*H23 -> 0 | N23: =L23*Q23 -> 0 | O23: =L23*R23 -> 0 | P23: шт | Q23: 0.548 | R23: 0.002308
B24: WFL-50W/05s | C24: 4260529290108 | D24: Светодиодный прожектор WFL-50W/05s с датчиком движения 5500K 50 Вт LED IP65 4000 Лм | E24: 2 | F24: 1258.54 | G24: 1398.38 | H24: =G24*(1-$H$11/100) -> 1398.38 | J24: >1000 | L24: 0 | M24: =L24*H24 -> 0 | N24: =L24*Q24 -> 0 | O24: =L24*R24 -> 0 | P24: шт | Q24: 0.765 | R24: 0.003019
B25: WFLW-10W/05 | C25: 4260529292386 | D25: Светодиодный прожектор WFLW-10W/05 5500K 10 Вт LED IP65 белый 800 Лм | E25: 2 | F25: 329.51 | G25: 366.12 | H25: =G25*(1-$H$11/100) -> 366.12 | J25: >5000 | L25: 0 | M25: =L25*H25 -> 0 | N25: =L25*Q25 -> 0 | O25: =L25*R25 -> 0 | P25: шт | Q25: 0.223 | R25: 0.000689 | S25: НОВИНКА!
A26: WFL-06
A27: WOLTA
B28: WFL-10W/06 | C28: 4260375485079 | D28: Светодиодный прожектор WFL-10W/06 5500K 10 Вт SMD IP65 850 Лм | E28: 2 | F28: 175.5 | G28: 195 | H28: =G28*(1-$H$11/100) -> 195 | J28: >5000 | L28: 0 | M28: =L28*H28 -> 0 | N28: =L28*Q28 -> 0 | O28: =L28*R28 -> 0 | P28: шт | Q28: 0.211 | R28: 0.00065
B29: WFL-20W/06 | C29: 4260375485093 | D29: Светодиодный прожектор WFL-20W/06 5500K 20 Вт SMD IP65 1700 Лм | E29: 2 | F29: 291.07 | G29: 323.41 | H29: 323.41 | J29: >5000 | L29: 0 | M29: 0 | N29: 0 | O29: 0 | P29: шт | Q29: 0.319 | R29: 0.00104
B30: WFL-30W/06 | C30: 4260375485116 | D30: Светодиодный прожектор WFL-30W/06 5500K 30 Вт SMD IP65 2550 Лм | E30: 2 | F30: 432.94 | G30: 481.04 | H30: 481.04 | J30: >3000 | L30: 0 | M30: 0 | N30: 0 | O30: 0 | P30: шт | Q30: 0.46 | R30: 0.001457
B31: WFL-50W/06 | C31: 4260375485130 | D31: Светодиодный прожектор WFL-50W/06 5500K 50 Вт SMD IP 65 4250 Лм | E31: 2 | F31: 654.44 | G31: 727.16 | H31: 727.16 | J31: >5000 | L31: 0 | M31: 0 | N31: 0 | O31: 0 | P31: шт | Q31: 0.71 | R31: 0.002157
B32: WFL-70W/06 | C32: 4260529292362 | D32: Светодиодный прожектор WFL-70W/06 5500K 70 Вт SMD IP65 6000 Лм | E32: 2 | F32: 981.2 | G32: 1090.22 | H32: 1090.22 | J32: >5000 | L32: 0 | M32: 0 | N32: 0 | O32: 0 | P32: шт | Q32: 0.965 | R32: 0.003276
B33: WFL-100W/06 | C33: 4260375487516 | D33: Светодиодный прожектор WFL-100W/06 5500K 100 Вт SMD IP65 8500 Лм | E33: 2 | F33: 1383.93 | G33: 1537.7 | H33: 1537.7 | J33: >5000 | L33: 0 | M33: 0 | N33: 0 | O33: 0 | P33: шт | Q33: 1.684 | R33: 0.004641
B34: WFL-150W/06 | C34: 4260375487530 | D34: Светодиодный прожектор WFL-150W/06 5500K 150 Вт SMD IP65 12750 Лм | E34: 2 | F34: 2869.47 | G34: 3188.3 | H34: 3188.3 | J34: >3000 | L34: 0 | M34: 0 | N34: 0 | O34: 0 | P34: шт | Q34: 3.663 | R34: 0.006952
B35: WFL-200W/06 | C35: 4260375487554 | D35: Светодиодный прожектор WFL-200W/06 5500K 200 Вт SMD IP 65 17000 Лм | E35: 2 | F35: 3825.95 | G35: 4251.06 | H35: 4251.06 | J35: >1000 | L35: 0 | M35: 0 | N35: 0 | O35: 0 | P35: шт | Q35: 5.125 | R35: 0.010124
A36: WFL-06W
A37: WOLTA
B38: WFL-10W/06W | C38: 4260529295028 | D38: Светодиодный прожектор WFL-10W/06W белый 5500K 10 Вт SMD IP65 850 Лм | E38: 2 | F38: 175.5 | G38: 195 | H38: =G38*(1-$H$11/100) -> 195 | J38: >5000 | L38: 0 | M38: =L38*H38 -> 0 | N38: =L38*Q38 -> 0 | O38: =L38*R38 -> 0 | P38: шт | Q38: 0.21 | R38: 0.00065 | S38: НОВИНКА!
B39: WFL-20W/06W | C39: 4260529295042 | D39: Светодиодный прожектор WFL-20W/06W белый 5500K 20 Вт SMD IP65 1700 Лм | E39: 2 | F39: 291.07 | G39: 323.41 | H39: =G39*(1-$H$11/100) -> 323.41 | J39: >5000 | L39: 0 | M39: =L39*H39 -> 0 | N39: =L39*Q39 -> 0 | O39: =L39*R39 -> 0 | P39: шт | Q39: 0.32 | R39: 0.001024 | S39: НОВИНКА!
B40: WFL-30W/06W | C40: 4260529295066 | D40: Светодиодный прожектор WFL-30W/06W белый 5500K 30 Вт SMD IP65 2550 Лм | E40: 2 | F40: 432.94 | G40: 481.04 | H40: =G40*(1-$H$11/100) -> 481.04 | J40: >5000 | L40: 0 | M40: =L40*H40 -> 0 | N40: =L40*Q40 -> 0 | O40: =L40*R40 -> 0 | P40: шт | Q40: 0.478 | R40: 0.001462 | S40: НОВИНКА!
B41: WFL-50W/06W | C41: 4260529295080 | D41: Светодиодный прожектор WFL-50W/06W белый 5500K 50 Вт SMD IP 65 4250 Лм | E41: 2 | F41: 654.44 | G41: 727.16 | H41: =G41*(1-$H$11/100) -> 727.16 | J41: >5000 | L41: 0 | M41: =L41*H41 -> 0 | N41: =L41*Q41 -> 0 | O41: =L41*R41 -> 0 | P41: шт | Q41: 0.722 | R41: 0.002157 | S41: НОВИНКА!
A42: STL
A43: STL_01
A44: WOLTA
B45: STL-50W01 | C45: 4260375489947 | D45: Уличный светодиодный светильник STL-50W01 50Вт IP65 6000 лм 5500К 213x460x62 мм | E45: 3 | F45: 3315.21 | G45: 3683.57 | H45: =G45*(1-$H$11/100) -> 3683.57 | J45: >1000 | L45: 0 | M45: =L45*H45 -> 0 | N45: =L45*Q45 -> 0 | O45: =L45*R45 -> 0 | P45: шт | Q45: 2.361 | R45: 0.006874
B46: STL-100W01 | C46: 4260375489954 | D46: Уличный светодиодный светильник STL-100W01 100Вт IP65 12000 лм 5500К 538x68x264 мм | E46: 3 | F46: 4567.35 | G46: 5074.83 | H46: =G46*(1-$H$11/100) -> 5074.83 | J46: >1000 | L46: 0 | M46: =L46*H46 -> 0 | N46: =L46*Q46 -> 0 | O46: =L46*R46 -> 0 | P46: шт | Q46: 3.421 | R46: 0.011495
B47: STL-150W01 | C47: 4260375489961 | D47: Уличный светодиодный светильник STL-150W01 150Вт IP65 18000 лм 5500K 635x316x80 мм | E47: 3 | F47: 6397.95 | G47: 7108.83 | H47: =G47*(1-$H$11/100) -> 7108.83 | J47: >3000 | L47: 0 | M47: =L47*H47 -> 0 | N47: =L47*Q47 -> 0 | O47: =L47*R47 -> 0 | P47: шт | Q47: 4.75 | R47: 0.018866
A48: STL_02
A49: WOLTA
B50: STL-70W02 | C50: 4260529293284 | D50: Уличный светодиодный светильник STL-70W02 70Вт 6000K IP65 7000 Лм | E50: 2 | F50: 1528.55 | G50: 1698.39 | H50: =G50*(1-$H$11/100) -> 1698.39 | J50: 4 | L50: 0 | M50: =L50*H50 -> 0 | N50: =L50*Q50 -> 0 | O50: =L50*R50 -> 0 | P50: шт | Q50: 1.47 | R50: 0.01025 | S50: НОВИНКА!
B51: STL-120W02 | C51: 4260529293291 | D51: Уличный светодиодный светильник STL-120W02 120Вт 6000K IP65 12000 Лм | E51: 2 | F51: 2645.22 | G51: 2939.13 | H51: =G51*(1-$H$11/100) -> 2939.13 | J51: >1000 | L51: 0 | M51: =L51*H51 -> 0 | N51: =L51*Q51 -> 0 | O51: =L51*R51 -> 0 | P51: шт | Q51: 2.33 | R51: 0.015159 | S51: НОВИНКА!
A52: Кронштейны
A53: WOLTA
B54: К1П-03-035-1-012х06-Б | C54: 4260529296827 | D54: Кронштейн приставной для консольного светильника К1П-0,3-0,35-1-0,12х0,6 510х420х280 мм белый | E54: 1 | F54: 542.07 | G54: 602.3 | H54: =G54*(1-$H$11/100) -> 602.3 | J54: >1000 | L54: 0 | M54: =L54*H54 -> 0 | N54: =L54*Q54 -> 0 | O54: =L54*R54 -> 0 | P54: шт | Q54: 2.833 | R54: 0.011019 | S54: НОВИНКА!
B55: К1П-035-05-2-012х06-Б | C55: 4260529296841 | D55: Кронштейн приставной для консольного светильника К1П-0,35-0,5-2-0,12х0,6-Б 540х470х280 мм белый | E55: 1 | F55: 809.06 | G55: 898.95 | H55: =G55*(1-$H$11/100) -> 898.95 | J55: >500 | L55: 0 | M55: =L55*H55 -> 0 | N55: =L55*Q55 -> 0 | O55: =L55*R55 -> 0 | P55: шт | Q55: 3.85 | R55: 0.029323 | S55: НОВИНКА!
B56: К1Н-0-035-Б | C56: 4260529296803 | D56: Кронштейн универсальный для консольного светильника К1Н-0-0,35-Б 350х150х55 мм белый | E56: 1 | F56: 235.98 | G56: 262.2 | H56: =G56*(1-$H$11/100) -> 262.2 | J56: >3000 | L56: 0 | M56: =L56*H56 -> 0 | N56: =L56*Q56 -> 0 | O56: =L56*R56 -> 0 | P56: шт | Q56: 1.133 | R56: 0.001387 | S56: НОВИНКА!
K57: ИТОГО: | L57: =SUM(L12:L56) -> 0 | M57: =SUM(M12:M56) -> 0 | N57: =SUM(N12:N56) -> 0 | O57: =SUM(O12:O56) -> 0

Sheet Светильники
R1: ООО «Вольта Русланд»
R2: ИНН/КПП/ОГРН 7716662181 / 771901001 / 1107746281323
R3: 119361, г. Москва, ул. Наташи Ковшовой, д. 4, стр. 1, офис 23
R4: Тел.: +7(495) 651-87-22, факс: +7 (495) 721-24-20, info@wolta.ru
L6: Дата формирования прайс-листа: | Q6: 30.05.2019
A7: Номенклатура | L7: Заказ
A8: Фото | B8: Ссылка на сайт | C8: Штрихкод / Артикул | D8: Наименование | E8: Гарантия, г. | F8: МРОЦ, руб | G8: Базовая цена, руб. | H8: Ваша цена со скидкой, руб. | I8: Спец Цена, руб. | J8: Остаток | K8: Ближайшее поступление | L8: Кол-во, шт | M8: Сумма, руб. | N8: Вес, кг | O8: Объем, м3 | P8: Ед. изм. | Q8: Вес, кг | R8: Объем, м3
G11: Укажите свою скидку % | H11: 0
A12: LED PANEL
A13: Slim_02 БЕЛАЯ РАМКА
B15: Драйвер LD-40 | C15: 4260529296780 | D15: Драйвер для тонк пан LD-40 ДЛЯ LED ТОНКИХ ПАНЕЛЕЙ LPD/LPC (только в комплекте с панелями серии LPC-LPD-02-10) | F15: 352.07 | G15: 391.19 | H15: =G15*(1-$H$11/100) -> 391.19 | J15: >5000 | L15: 0 | M15: =L15*H15 -> 0 | N15: =L15*Q15 -> 0 | O15: =L15*R15 -> 0 | P15: шт | Q15: 0.5 | R15: 0.001885 | S15: НОВИНКА!
A16: WOLTA
B17: LPC40W60-02-10 | C17: 4260529295523 | D17: Светодиодная панель белая LPC40W60-02-10 40 Вт 6500 K 3200 лм 595*595*9 мм (без драйвера) | E17: 2 | F17: 653.84 | G17: 726.49 | H17: =G17*(1-$H$11/100) -> 726.49 | J17: >5000 | L17: 0 | M17: =L17*H17 -> 0 | N17: =L17*Q17 -> 0 | O17: =L17*R17 -> 0 | P17: шт | Q17: 1.69 | R17: 0.0059 | S17: НОВИНКА!
B18: LPD40W60-02-10 | C18: 4260529295509 | D18: Светодиодная панель белая LPD40W60-02-10 40 Вт 4000 K 3200 лм 595*595*9 мм (без драйвера) | E18: 2 | F18: 653.84 | G18: 726.49 | H18: =G18*(1-$H$11/100) -> 726.49 | J18: >5000 | L18: 0 | M18: =L18*H18 -> 0 | N18: =L18*Q18 -> 0 | O18: =L18*R18 -> 0 | P18: шт | Q18: 1.69 | R18: 0.0059 | S18: НОВИНКА!
A19: Slim
A20: WOLTA
B21: LPD40W60 | C21: 4260375487790 | D21: Светодиодная панель LPD40W60 40 Вт 4000К 3200 Лм 595*595*9 мм | E21: 2 | F21: 1005.91 | G21: 1117.68 | H21: =G21*(1-$H$11/100) -> 1117.68 | J21: >5000 | L21: 0 | M21: =L21*H21 -> 0 | N21: =L21*Q21 -> 0 | O21: =L21*R21 -> 0 | P21: шт | Q21: 2.27 | R21: 0.016781
B22: LPC40W60 | C22: 4260375487776 | D22: Светодиодная панель LPC40W60 40 Вт 6500K 3200 Лм 595*595*9 мм | E22: 2 | F22: 1005.91 | G22: 1117.68 | H22: =G22*(1-$H$11/100) -> 1117.68 | J22: >5000 | L22: 0 | M22: =L22*H22 -> 0 | N22: =L22*Q22 -> 0 | O22: =L22*R22 -> 0 | P22: шт | Q22: 2.27 | R22: 0.016781
A23: Universal 04
A24: WOLTA
B25: ULPD36W60-04 | C25: 4260529292539 | D25: Панель светодиодная универсальная WOLTA ULPD36W60-04 (дневной свет) 4000K 36 Вт 3000 Лм 595*595*19 мм | E25: 2 | F25: 540 | G25: 600 | H25: =G25*(1-$H$11/100) -> 600 | J25: >5000 | L25: 0 | M25: =L25*H25 -> 0 | N25: =L25*Q25 -> 0 | O25: =L25*R25 -> 0 | P25: шт | Q25: 1.21 | R25: 0.008331
B26: ULPC36W60-04 | C26: 4260529292553 | D26: Панель светодиодная универсальная WOLTA ULPC36W60-04 (холодный свет) 6500K 36 Вт 3000 Лм 595*595*19 мм | E26: 2 | F26: 540 | G26: 600 | H26: =G26*(1-$H$11/100) -> 600 | J26: >5000 | L26: 0 | M26: =L26*H26 -> 0 | N26: =L26*Q26 -> 0 | O26: =L26*R26 -> 0 | P26: шт | Q26: 1.538 | R26: 0.008331
A27: 72W
A28: WOLTA
B29: ULPD72W-04 | C29: 4260529294489 | D29: Панель светодиодная универсальная WOLTA ULPD72W-04 (дневной свет) 4500K 72 Вт 5760 Лм 595*595*19 мм | E29: 2 | F29: 1125 | G29: 1250 | H29: =G29*(1-$H$11/100) -> 1250 | J29: >1000 | L29: 0 | M29: =L29*H29 -> 0 | N29: =L29*Q29 -> 0 | O29: =L29*R29 -> 0 | P29: шт | Q29: 1.625 | R29: 0.008649 | S29: НОВИНКА!
B30: ULPC72W-04 | C30: 4260529294502 | D30: Панель светодиодная универсальная WOLTA ULPC72W-04 (холодный свет) 6500K 72 Вт 5760 Лм 595*595*19 мм | E30: 2 | F30: 1125 | G30: 1250 | H30: =G30*(1-$H$11/100) -> 1250 | J30: >5000 | L30: 0 | M30: =L30*H30 -> 0 | N30: =L30*Q30 -> 0 | O30: =L30*R30 -> 0 | P30: шт | Q30: 1.625 | R30: 0.008649 | S30: НОВИНКА!
A31: WLR
A32: WOLTA
B33: WLRD01 | C33: 4260529292614 | D33: Светодиодная панель WOLTA WLRD01 36 Вт 4000K 2800 Лм 1195*180*19 мм 1/4 | E33: 2 | F33: 723.09 | G33: 803.43 | H33: =G33*(1-$H$11/100) -> 803.43 | J33: >3000 | L33: 0 | M33: =L33*H33 -> 0 | N33: =L33*Q33 -> 0 | O33: =L33*R33 -> 0 | P33: шт | Q33: 1.1 | R33: 0.0055 | S33: НОВИНКА!
B34: WLRC01 | C34: 4260529292638 | D34: Светодиодная панель WOLTA WLRC01 36 Вт 6500K 2800 Лм 1195*180*19 мм 1/4 | E34: 2 | F34: 723.09 | G34: 803.43 | H34: =G34*(1-$H$11/100) -> 803.43 | J34: >1000 | L34: 0 | M34: =L34*H34 -> 0 | N34: =L34*Q34 -> 0 | O34: =L34*R34 -> 0 | P34: шт | Q34: 1.1 | R34: 0.0055 | S34: НОВИНКА!
A35: Ультратонкие светильнки
A36: WOLTA
B37: DLUS-12W-4K | C37: 4260529292805 | D37: Светильник WOLTA LED DLUS ультратонкий встраиваемый 12W 4000K 900LM 170X13 MM | E37: 1 | F37: 182.14 | G37: 202.38 | H37: =G37*(1-$H$11/100) -> 202.38 | J37: >5000 | L37: 0 | M37: =L37*H37 -> 0 | N37: =L37*Q37 -> 0 | O37: =L37*R37 -> 0 | P37: шт | Q37: 0.303 | R37: 0.001218
B38: DLUS-12W-6K | C38: 4260529292829 | D38: Светильник LED DLUS ультратонкий встраиваемый 12W 6000K 900LM 170X13 MM | E38: 1 | F38: 182.14 | G38: 202.38 | H38: 202.38 | J38: >3000 | L38: 0 | M38: 0 | N38: 0 | O38: 0 | P38: шт | Q38: 0.303 | R38: 0.001218
B39: DLUS-18W-4K | C39: 4260529292843 | D39: Светильник WOLTA LED DLUS ультратонкий встраиваемый 18W 4000K 1350LM 225X13 MM | E39: 1 | F39: 260.87 | G39: 289.85 | H39: 289.85 | J39: >3000 | L39: 0 | M39: 0 | N39: 0 | O39: 0 | P39: шт | Q39: 0.495 | R39: 0.001833
B40: DLUS-18W-6K | C40: 4260529292867 | D40: Светильник LED DLUS ультратонкий встраиваемый 18W 6000K 1350LM 225X13MM | E40: 1 | F40: 260.87 | G40: 289.85 | H40: 289.85 | J40: >3000 | L40: 0 | M40: 0 | N40: 0 | O40: 0 | P40: шт | Q40: 0.495 | R40: 0.001833
B41: DLUS-24W-4K | C41: 4260529292881 | D41: Светодиодный светильник WOLTA LED DLUS ультратонкий встраиваемый 24W 4000K 1800LM 300X13 MM | E41: 1 | F41: 489.69 | G41: 544.1 | H41: 544.1 | J41: >5000 | L41: 0 | M41: 0 | N41: 0 | O41: 0 | P41: шт | Q41: 0.935 | R41: 0.003528
B42: DLUS-24W-6K | C42: 4260529292904 | D42: Светодиодный светильник WOLTA LED DLUS ультратонкий встраиваемый 24W 6000K 1800LM 300X13 MM | E42: 1 | F42: 489.69 | G42: 544.1 | H42: 544.1 | J42: >5000 | L42: 0 | M42: 0 | N42: 0 | O42: 0 | P42: шт | Q42: 0.935 | R42: 0.003528
A43: ДПО
A45: Lumin'arte
B46: ДПО15-18-001-4К | C46: 4260529295752 | D46: Светодиодный светильник LUMINARTE ДПО15-18-001-4К 18Вт 1400 лм IP40 600х118х40 мм | E46: 2 | F46: 450 | G46: 500 | H46: =G46*(1-$H$11/100) -> 500 | J46: >100 | L46: 0 | M46: =L46*H46 -> 0 | N46: =L46*Q46 -> 0 | O46: =L46*R46 -> 0 | P46: шт | Q46: 0.53 | R46: 0.003536 | S46: НОВИНКА СКОРО НА СКЛАДЕ!
B47: ДПО15-18-001-6.5К | C47: 4260529295776 | D47: Светодиодный светильник LUMINARTE ДПО15-18-001-6.5К 18Вт 1400 лм IP40 600х118х40 мм | E47: 2 | F47: 450 | G47: 500 | H47: =G47*(1-$H$11/100) -> 500 | J47: >250 | L47: 0 | M47: =L47*H47 -> 0 | N47: =L47*Q47 -> 0 | O47: =L47*R47 -> 0 | P47: шт | Q47: 0.525 | R47: 0.003435 | S47: НОВИНКА СКОРО НА СКЛАДЕ!
B48: ДПО15-36-001-4К | C48: 4260529295790 | D48: Светодиодный светильник LUMINARTE ДПО15-36-001-4К 36 Вт 4000K IP40 2800 лм 1170х118х40 мм 1/10 | E48: 2 | F48: 641.57 | G48: 712.85 | H48: =G48*(1-$H$11/100) -> 712.85 | J48: >1000 | L48: 0 | M48: =L48*H48 -> 0 | N48: =L48*Q48 -> 0 | O48: =L48*R48 -> 0 | P48: шт | Q48: 0.938 | R48: 0.005412 | S48: НОВИНКА СКОРО НА СКЛАДЕ!
B49: ДПО15-36-001-6.5К | C49: 4260529295813 | D49: Светодиодный светильник LUMINARTE ДПО15-36-001-6.5К 36 Вт 6500K IP40 2800 лм 1170х118х40 мм 1/10 | E49: 2 | F49: 641.57 | G49: 712.85 | H49: =G49*(1-$H$11/100) -> 712.85 | J49: >1000 | L49: 0 | M49: =L49*H49 -> 0 | N49: =L49*Q49 -> 0 | O49: =L49*R49 -> 0 | P49: шт | Q49: 0.958 | R49: 0.005412 | S49: НОВИНКА СКОРО НА СКЛАДЕ!
A50: СПО светильники
A51: СПО светильники 02
A52: Lumin'arte
B53: LLFS18W02 | C53: 4260375484218 | D53: Светодиодный светильник LLFS18W02 18 Вт 4000K IP40 1260 Лм 22x60x590 | E53: 2 | F53: 244.39 | G53: 271.54 | H53: =G53*(1-$H$11/100) -> 271.54 | J53: >5000 | L53: 0 | M53: =L53*H53 -> 0 | N53: =L53*Q53 -> 0 | O53: =L53*R53 -> 0 | P53: шт | Q53: 0.179 | R53: 0.000585
B54: LLFW18W02 | C54: 4260375484171 | D54: Светодиодный светильник LLFW18W02 18 Вт 6500K IP40 1260 Лм 22x60x590 | E54: 2 | F54: 244.39 | G54: 271.54 | H54: =G54*(1-$H$11/100) -> 271.54 | J54: >5000 | L54: 0 | M54: =L54*H54 -> 0 | N54: =L54*Q54 -> 0 | O54: =L54*R54 -> 0 | P54: шт | Q54: 0.179 | R54: 0.000585
B55: LLFS36W02 | C55: 4260375484232 | D55: Светодиодный светильник LLFS36W02 36 Вт 4000К IP40 2520 Лм 22x60x1190 | E55: 2 | F55: 390.83 | G55: 434.26 | H55: =G55*(1-$H$11/100) -> 434.26 | J55: >5000 | L55: 0 | M55: =L55*H55 -> 0 | N55: =L55*Q55 -> 0 | O55: =L55*R55 -> 0 | P55: шт | Q55: 0.322 | R55: 0.001872
B56: LLFW36W02 | C56: 4260375484195 | D56: Светодиодный светильник LLFW36W02 36 Вт 6500К IP40 2520 Лм 22x60x1190 | E56: 2 | F56: 390.83 | G56: 434.26 | H56: =G56*(1-$H$11/100) -> 434.26 | J56: >5000 | L56: 0 | M56: =L56*H56 -> 0 | N56: =L56*Q56 -> 0 | O56: =L56*R56 -> 0 | P56: шт | Q56: 0.322 | R56: 0.001872
A57: WOLTA
B58: WLFS18W02 | C58: 4260375489787 | D58: Светодиодный светильник WLFS18W02 18 Вт 4000K IP40 1260 Лм 22x60x590 | E58: 2 | F58: 244.39 | G58: 271.54 | H58: =G58*(1-$H$11/100) -> 271.54 | J58: >100 | L58: 0 | M58: =L58*H58 -> 0 | N58: =L58*Q58 -> 0 | O58: =L58*R58 -> 0 | P58: шт | Q58: 0.23 | R58: 0.001281
A59: СПО светильники 03
B61: WLFS18W03 | C61: 4260529294564 | D61: Светодиодный светильник WLFS18W03 18 Вт 4000K IP40 1260 Лм 22x60x590 | E61: 2 | F61: 244.39 | G61: 271.54 | H61: =G61*(1-$H$11/100) -> 271.54 | J61: >100 | L61: 0 | M61: =L61*H61 -> 0 | N61: =L61*Q61 -> 0 | O61: =L61*R61 -> 0 | P61: шт | Q61: 0.184 | R61: 0.000936 | S61: НОВИНКА!
B62: WLFW18W03 | C62: 4260529294601 | D62: Светодиодный светильник WLFW18W03 18 Вт 6500K IP40 1260 Лм 22x60x590 | E62: 2 | F62: 244.39 | G62: 271.54 | H62: =G62*(1-$H$11/100) -> 271.54 | J62: >3000 | L62: 0 | M62: =L62*H62 -> 0 | N62: =L62*Q62 -> 0 | O62: =L62*R62 -> 0 | P62: шт | Q62: 0.18 | R62: 0.000936 | S62: НОВИНКА!
B63: WLFS36W03 | C63: 4260529294588 | D63: Светодиодный светильник WLFS36W03 36 Вт 4000К IP40 2520 Лм 22x60x1190 | E63: 2 | F63: 390.83 | G63: 434.26 | H63: =G63*(1-$H$11/100) -> 434.26 | J63: >5000 | L63: 0 | M63: =L63*H63 -> 0 | N63: =L63*Q63 -> 0 | O63: =L63*R63 -> 0 | P63: шт | Q63: 0.343 | R63: 0.00187 | S63: НОВИНКА!
B64: WLFW36W03 | C64: 4260529294625 | D64: Светодиодный светильник WLFW36W03 36 Вт 6500К IP40 2520 Лм 22x60x1190 | E64: 2 | F64: 390.83 | G64: 434.26 | H64: =G64*(1-$H$11/100) -> 434.26 | J64: 4 | K64: >5000, поставка ожидается 2019-06-03 | L64: 0 | M64: =L64*H64 -> 0 | N64: =L64*Q64 -> 0 | O64: =L64*R64 -> 0 | P64: шт | Q64: 0.345 | R64: 0.001872 | S64: НОВИНКА!
A65: СВЕТИЛЬНИКИ IP20 под LED лампы
A67: WOLTA
B68: WT8260-02 | C68: 4260529294663 | D68: Светильник светодиодный WT8260-02 (лампа в комплект не входит) IP20 632x118x40 | E68: 3 | F68: 228.83 | G68: 254.25 | H68: =G68*(1-$H$11/100) -> 254.25 | J68: >100 | L68: 0 | M68: =L68*H68 -> 0 | N68: =L68*Q68 -> 0 | O68: =L68*R68 -> 0 | P68: шт | Q68: 0.545 | R68: 0.003494
B69: WT82120-02 | C69: 4260529294649 | D69: Светильник светодиодный WT82120-02 (лампа в комплект не входит) IP20 1240x118x40 | E69: 3 | F69: 304.79 | G69: 338.66 | H69: =G69*(1-$H$11/100) -> 338.66 | J69: >3000 | L69: 0 | M69: =L69*H69 -> 0 | N69: =L69*Q69 -> 0 | O69: =L69*R69 -> 0 | P69: шт | Q69: 0.995 | R69: 0.006579
B70: WT82150-02 | C70: 4260529294687 | D70: Светильник светодиодный WT82150-02 (лампа в комплект не входит) IP20 1540х118х40 | E70: 3 | F70: 405 | G70: 450 | H70: =G70*(1-$H$11/100) -> 450 | J70: >100 | L70: 0 | M70: =L70*H70 -> 0 | N70: =L70*Q70 -> 0 | O70: =L70*R70 -> 0 | P70: шт | Q70: 1.38 | R70: 0.008074 | S70: НОВИНКА!
A71: Т4 светильники
B74: WT4S6W | C74: 4260529294304 | D74: Светильник светодиодный WT4S6W 6 Вт 4000К IP65 490 Лм 300x17x14 мм | E74: 2 | F74: 135 | G74: 150 | H74: =G74*(1-$H$11/100) -> 150 | J74: >1000 | L74: 0 | M74: =L74*H74 -> 0 | N74: =L74*Q74 -> 0 | O74: =L74*R74 -> 0 | P74: шт | Q74: 0.034 | R74: 0.000162 | S74: НОВИНКА!
B75: WT4W6W | C75: 4260529294281 | D75: Светильник светодиодный WT4W6W 6 Вт 6500К IP65 490 Лм 300x14x17 мм | E75: 2 | F75: 135 | G75: 150 | H75: 150 | J75: >1000 | L75: 0 | M75: 0 | N75: 0 | O75: 0 | P75: шт | Q75: 0.034 | R75: 0.000177 | S75: НОВИНКА!
B76: WT4S9W | C76: 4260529294342 | D76: Светильник светодиодный WT4S9W 9 Вт 4000К IP65 730 Лм 600x14x17 мм | E76: 2 | F76: 153 | G76: 170 | H76: 170 | J76: >5000 | L76: 0 | M76: 0 | N76: 0 | O76: 0 | P76: шт | Q76: 0.069 | R76: 0.000328 | S76: НОВИНКА!
B77: WT4W9W | C77: 4260529294328 | D77: Светильник светодиодный WT4W9W 9 Вт 6500К IP65 730 Лм 600x14x17 мм | E77: 2 | F77: 153 | G77: 170 | H77: 170 | J77: >5000 | L77: 0 | M77: 0 | N77: 0 | O77: 0 | P77: шт | Q77: 0.05 | R77: 0.000328 | S77: НОВИНКА!
B78: WT4S12W | C78: 4260529294380 | D78: Светильник светодиодный WT4S12W 12 Вт 4000К IP65 975 Лм 900x17x14 мм | E78: 2 | F78: 198 | G78: 220 | H78: 220 | J78: >5000 | L78: 0 | M78: 0 | N78: 0 | O78: 0 | P78: шт | Q78: 0.069 | R78: 0.000484 | S78: НОВИНКА!
B79: WT4W12W | C79: 4260529294366 | D79: Светильник светодиодный WT4W12W 12 Вт 6500К IP65 975 Лм 900x14x17 мм | E79: 2 | F79: 198 | G79: 220 | H79: 220 | J79: >5000 | L79: 0 | M79: 0 | N79: 0 | O79: 0 | P79: шт | Q79: 0.069 | R79: 0.000484 | S79: НОВИНКА!
A80: Т5 светильники
A82: Lumin'arte
B83: LT5W6S30 | C83: 4260375486991 | D83: Светильник светодиодный LT5W6S30 6 Вт 4000К IP20 420 Лм 35x23x288 мм | E83: 2 | F83: 209.6 | G83: 232.89 | H83: =G83*(1-$H$11/100) -> 232.89 | J83: 0 | L83: 0 | M83: =L83*H83 -> 0 | N83: =L83*Q83 -> 0 | O83: =L83*R83 -> 0 | P83: шт | Q83: 0.175 | R83: 0.000606
B84: LT5W16S90 | C84: 4260375487035 | D84: Светильник светодиодный LT5W16S90 16 Вт 4000К IP20 1120 Лм 23x35x873 мм | E84: 2 | F84: 302.05 | G84: 335.61 | H84: =G84*(1-$H$11/100) -> 335.61 | J84: 2 | L84: 0 | M84: =L84*H84 -> 0 | N84: =L84*Q84 -> 0 | O84: =L84*R84 -> 0 | P84: шт | Q84: 0.29 | R84: 0.001311
B85: LT5W14S120 | C85: 4630015265055 | D85: Светильник светодиодный LT5W14S120 16 Вт 4000К IP20 980 Лм 22x22x1178 мм | E85: 2 | F85: 307.54 | G85: 341.71 | H85: =G85*(1-$H$11/100) -> 341.71 | J85: 4 | L85: 0 | M85: =L85*H85 -> 0 | N85: =L85*Q85 -> 0 | O85: =L85*R85 -> 0 | P85: шт | Q85: 0.388 | R85: 0.0017
B86: LT5W20S120 | C86: 4260375487059 | D86: Светильник светодиодный LT5W20S120 20 Вт 4000К IP20 1400 Лм 35x23x1178 мм | E86: 2 | F86: 356.97 | G86: 396.63 | H86: =G86*(1-$H$11/100) -> 396.63 | J86: >3000 | L86: 0 | M86: =L86*H86 -> 0 | N86: =L86*Q86 -> 0 | O86: =L86*R86 -> 0 | P86: шт | Q86: 0.343 | R86: 0.0017
A87: WOLTA
B88: WT5W6W30 | C88: 4260529290474 | D88: Светильник светодиодный WT5W6W30 6 Вт 6500К IP20 420 Лм 32x23x305 мм | E88: 2 | F88: 209.6 | G88: 232.89 | H88: =G88*(1-$H$11/100) -> 232.89 | J88: >500 | L88: 0 | M88: =L88*H88 -> 0 | N88: =L88*Q88 -> 0 | O88: =L88*R88 -> 0 | P88: шт | Q88: 0.164 | R88: 0.000646
B89: WT5W10W60 | C89: 4260529290498 | D89: Светильник светодиодный WT5W10W60 10 Вт 6500К IP20 700 Лм 32x23x570 мм | E89: 2 | F89: 251.71 | G89: 279.68 | H89: 279.68 | J89: >100 | L89: 0 | M89: 0 | N89: 0 | O89: 0 | P89: шт | Q89: 0.2 | R89: 0.0009
B90: WT5W16W90 | C90: 4260529290511 | D90: Светильник светодиодный WT5W16W90 16 Вт 6500К IP20 1120 Лм 23x32x870 мм | E90: 2 | F90: 302.05 | G90: 335.61 | H90: 335.61 | J90: >3000 | L90: 0 | M90: 0 | N90: 0 | O90: 0 | P90: шт | Q90: 0.239 | R90: 0.0013
B91: WT5W20W120 | C91: 4260529290535 | D91: Светильник светодиодный WT5W20W120 20 Вт 6500К IP20 1400 Лм 32x23x1178 мм | E91: 2 | F91: 356.97 | G91: 396.63 | H91: 396.63 | J91: >1000 | L91: 0 | M91: 0 | N91: 0 | O91: 0 | P91: шт | Q91: 0.32 | R91: 0.001816
B92: WT5S6W30 | C92: 4260529295639 | D92: Светильник светодиодный WT5S6W30 6 Вт 4000К IP20 420 Лм 32x23x305 мм | E92: 2 | F92: 209.6 | G92: 232.89 | H92: 232.89 | J92: >3000 | L92: 0 | M92: 0 | N92: 0 | O92: 0 | P92: шт | Q92: 0.152 | R92: 0.0006 | S92: НОВИНКА!
B93: WT5S10W60 | C93: 4260529292447 | D93: Светильник светодиодный WT5S10W60 10 Вт 4000К IP20 700 Лм 32x23x570 мм | E93: 2 | F93: 251.71 | G93: 279.68 | H93: 279.68 | J93: >5000 | L93: 0 | M93: 0 | N93: 0 | O93: 0 | P93: шт | Q93: 0.197 | R93: 0.0009 | S93: НОВИНКА!
B94: WT5S16W90 | C94: 4260529295592 | D94: Светильник светодиодный WT5S16W90 16 Вт 4000К IP20 1120 Лм 23x32x870 мм | E94: 2 | F94: 302.05 | G94: 335.61 | H94: 335.61 | J94: >3000 | L94: 0 | M94: 0 | N94: 0 | O94: 0 | P94: шт | Q94: 0.239 | R94: 0.0013 | S94: НОВИНКА!
B95: WT5S20W120 | C95: 4260529295615 | D95: Светильник светодиодный WT5S20W120 20 Вт 4000К IP20 1400 Лм 32x23x1178 мм | E95: 2 | F95: 356.97 | G95: 396.63 | H95: 396.63 | J95: >1000 | L95: 0 | M95: 0 | N95: 0 | O95: 0 | P95: шт | Q95: 0.288 | R95: 0.001667 | S95: НОВИНКА!
A96: IP65
A97: WP
A98: Lumin'arte
B99: WPL20С60 | C99: 4260375487356 | D99: Светильник светодиодный влаг/защ эконом WPL20С60 20 Вт 6500 К IP65 1700 Лм 600x66x76 | E99: 2 | F99: 592.2 | G99: 658 | H99: =G99*(1-$H$11/100) -> 658 | J99: >1000 | L99: 0 | M99: =L99*H99 -> 0 | N99: =L99*Q99 -> 0 | O99: =L99*R99 -> 0 | P99: шт | Q99: 0.813 | R99: 0.004925
B100: WPL40С120 | C100: 4260375487370 | D100: Светильник светодиодный влаг/защ эконом WPL40С120 40 Вт 6500 К IP65 3400 Лм 1200x66x76 | E100: 2 | F100: 979.37 | G100: 1088.19 | H100: =G100*(1-$H$11/100) -> 1088.19 | J100: 0 | L100: 0 | M100: =L100*H100 -> 0 | N100: =L100*Q100 -> 0 | O100: =L100*R100 -> 0 | P100: шт | Q100: 1.25 | R100: 0.009004
A101: LWP
A102: WOLTA
B103: LWP18C-01 | C103: 4260529294526 | D103: Светильник светодиодный LWP18C-01 18 Вт 6500К IP65 1440 Лм 600x66x76 | E103: 2 | F103: 649.86 | G103: 722.07 | H103: =G103*(1-$H$11/100) -> 722.07 | J103: >5000 | L103: 0 | M103: =L103*H103 -> 0 | N103: =L103*Q103 -> 0 | O103: =L103*R103 -> 0 | P103: шт | Q103: 0.717 | R103: 0.004757 | S103: НОВИНКА!
B104: LWP36C-01 | C104: 4260529294540 | D104: Светильник светодиодный LWP36C-01 36 Вт 6500К IP65 2880 Лм 1200x66x76 | E104: 2 | F104: 979.37 | G104: 1088.19 | H104: =G104*(1-$H$11/100) -> 1088.19 | J104: >5000 | L104: 0 | M104: =L104*H104 -> 0 | N104: =L104*Q104 -> 0 | O104: =L104*R104 -> 0 | P104: шт | Q104: 1.079 | R104: 0.009004 | S104: НОВИНКА!
B105: LWP36D-02 | C105: 4260529293345 | D105: Светильник светодиодный прозрачный рассеиватель LWP36D-02 36 Вт 4000К IP65 2880 Лм 1200x66x76 | E105: 2 | F105: 979.37 | G105: 1088.19 | H105: =G105*(1-$H$11/100) -> 1088.19 | J105: >1000 | L105: 0 | M105: =L105*H105 -> 0 | N105: =L105*Q105 -> 0 | O105: =L105*R105 -> 0 | P105: шт | Q105: 1.083 | R105: 0.009004 | S105: НОВИНКА!
B106: LWP36C-02 | C106: 4260529293307 | D106: Светильник светодиодный прозрачный рассеиватель LWP36C-02 36 Вт 6500К IP65 2880 Лм 1200x66x76 | E106: 2 | F106: 979.37 | G106: 1088.19 | H106: =G106*(1-$H$11/100) -> 1088.19 | J106: >3000 | L106: 0 | M106: =L106*H106 -> 0 | N106: =L106*Q106 -> 0 | O106: =L106*R106 -> 0 | P106: шт | Q106: 1.079 | R106: 0.009004 | S106: НОВИНКА!
A107: LWP_SW
A108: WOLTA
B109: LWPS18W01 | C109: 4260375487073 | D109: Светодиодный светильник LWPS18W01 18 Вт IP65 4000K 1260 Лм 45x50x570 | E109: 2 | F109: 379.85 | G109: 422.06 | H109: =G109*(1-$H$11/100) -> 422.06 | J109: >3000 | L109: 0 | M109: =L109*H109 -> 0 | N109: =L109*Q109 -> 0 | O109: =L109*R109 -> 0 | P109: шт | Q109: 0.279 | R109: 0.001615
B110: LWPW18W01 | C110: 4260375487110 | D110: Светодиодный светильник LWPW18W01 18 Вт IP65 6500K 1260 Лм 570x50x45 | E110: 2 | F110: 379.85 | G110: 422.06 | H110: =G110*(1-$H$11/100) -> 422.06 | J110: >5000 | L110: 0 | M110: =L110*H110 -> 0 | N110: =L110*Q110 -> 0 | O110: =L110*R110 -> 0 | P110: шт | Q110: 0.28 | R110: 0.001615
B111: LWPS36W01 | C111: 4260375487097 | D111: Светодиодный светильник LWPS36W01 36 Вт IP65 4000K 2520 Лм 45x50x1170 | E111: 2 | F111: 613.25 | G111: 681.39 | H111: =G111*(1-$H$11/100) -> 681.39 | J111: >5000 | L111: 0 | M111: =L111*H111 -> 0 | N111: =L111*Q111 -> 0 | O111: =L111*R111 -> 0 | P111: шт | Q111: 0.58 | R111: 0.003856
B112: LWPW36W01 | C112: 4260375487134 | D112: Светодиодный светильник LWPW36W01 36 Вт IP65 6500K 2520 Лм 1170x50x45 | E112: 2 | F112: 613.25 | G112: 681.39 | H112: =G112*(1-$H$11/100) -> 681.39 | J112: >5000 | L112: 0 | M112: =L112*H112 -> 0 | N112: =L112*Q112 -> 0 | O112: =L112*R112 -> 0 | P112: шт | Q112: 0.483 | R112: 0.00327
A113: СВЕТИЛЬНИКИ_IP65 под LED лампы
A114: WOLTA
B115: WT8-01 | C115: 4260529293369 | D115: Светильник светодиодный WT8-01 (лампы в комплект не входит) 1266 мм IP65 1266x96x58 | E115: 2 | F115: 549.18 | G115: 610.2 | H115: =G115*(1-$H$11/100) -> 610.2 | J115: >5000 | L115: 0 | M115: =L115*H115 -> 0 | N115: =L115*Q115 -> 0 | O115: =L115*R115 -> 0 | P115: шт | Q115: 0.985 | R115: 0.008667 | S115: НОВИНКА!
A116: LCL
A117: WOLTA
B118: LCL12-OC | C118: 4260375484553 | D118: Светодиодный потолочный светильник LCL12-OC 12 Вт овал 6500K IP54 900 Лм 239х162х97 мм | E118: 2 | F118: 392.66 | G118: 436.29 | H118: =G118*(1-$H$11/100) -> 436.29 | J118: 5 | L118: 0 | M118: =L118*H118 -> 0 | N118: =L118*Q118 -> 0 | O118: =L118*R118 -> 0 | P118: шт | Q118: 0.54 | R118: 0.00449
B119: LCL12-OCs | C119: 4260375484539 | D119: Светодиодный потолочный светильник LCL12-OCs с датчиком движения 12 Вт овал 6500 K IP54 900 лм 239x162x97 мм | E119: 2 | F119: 823.77 | G119: 915.3 | H119: =G119*(1-$H$11/100) -> 915.3 | J119: >500 | L119: 0 | M119: =L119*H119 -> 0 | N119: =L119*Q119 -> 0 | O119: =L119*R119 -> 0 | P119: шт | Q119: 0.57 | R119: 0.00449
A120: ДПП01-7
A121: WOLTA
B122: ДПП01-7-001-4К | C122: 4260529296766 | D122: Светодиодный светильник ДПП01-7-001-4К 7 Вт круг 4000K IP65 520 Лм 154x48 мм | E122: 2 | F122: 213.26 | G122: 236.96 | H122: =G122*(1-$H$11/100) -> 236.96 | J122: >3000 | L122: 0 | M122: =L122*H122 -> 0 | N122: =L122*Q122 -> 0 | O122: =L122*R122 -> 0 | P122: шт | Q122: 0.148 | R122: 0.00126 | S122: НОВИНКА!
B123: ДПП01-7-021-4К-ОА | C123: 4260529296728 | D123: Светодиодный светильник с оптико-акуст датчиком ДПП01-7-021-4К-ОА 7 Вт круг 4000K IP65 520 Лм 154x48 мм | E123: 2 | F123: 352.4 | G123: 391.55 | H123: =G123*(1-$H$11/100) -> 391.55 | J123: >1000 | L123: 0 | M123: =L123*H123 -> 0 | N123: =L123*Q123 -> 0 | O123: =L123*R123 -> 0 | P123: шт | Q123: 0.148 | R123: 0.00126 | S123: НОВИНКА!
A124: ДПП01-12
A125: WOLTA
B126: ДПП01-12-001-6К | C126: 4260529296636 | D126: Светодиодный светильник ДПП01-12-001-6К 12Вт круг 6500K IP65 900 Лм 190x48 мм | E126: 2 | F126: 256.5 | G126: 285 | H126: =G126*(1-$H$11/100) -> 285 | J126: >3000 | L126: 0 | M126: =L126*H126 -> 0 | N126: =L126*Q126 -> 0 | O126: =L126*R126 -> 0 | P126: шт | Q126: 0.175 | R126: 0.001924 | S126: НОВИНКА!
A127: LCL7-02
A128: WOLTA
B129: LCL7-RC-02 | C129: 4260529294809 | D129: Светодиодный светильник LCL7-RC-02 7 Вт круг 4000K IP65 520 Лм 154x48 мм | E129: 2 | F129: 213.26 | G129: 236.96 | H129: =G129*(1-$H$11/100) -> 236.96 | J129: >100 | L129: 0 | M129: =L129*H129 -> 0 | N129: =L129*Q129 -> 0 | O129: =L129*R129 -> 0 | P129: шт | Q129: 0.148 | R129: 0.00126
B130: LCL7-RC-02C | C130: 4260529294847 | D130: Светодиодный светильник LCL7-RC-02C 7 Вт круг 6500K IP65 520 Лм 154x48 мм | E130: 2 | F130: 213.26 | G130: 236.96 | H130: =G130*(1-$H$11/100) -> 236.96 | J130: >1000 | L130: 0 | M130: =L130*H130 -> 0 | N130: =L130*Q130 -> 0 | O130: =L130*R130 -> 0 | P130: шт | Q130: 0.148 | R130: 0.00126 | S130: НОВИНКА!
B131: LCL7-RCoa-02 | C131: 4260529294823 | D131: Светодиодный светильник с оптико-акуст датчиком LCL7-RCoa-02 7 Вт круг 4000K IP65 520 Лм 154x48 мм | E131: 2 | F131: 352.4 | G131: 391.55 | H131: =G131*(1-$H$11/100) -> 391.55 | J131: >1000 | L131: 0 | M131: =L131*H131 -> 0 | N131: =L131*Q131 -> 0 | O131: =L131*R131 -> 0 | P131: шт | Q131: 0.148 | R131: 0.00126
A132: LCL12-02
A133: WOLTA
B134: LCL12-RC-02 | C134: 4260529294700 | D134: Светодиодный светильник LCL12-RC-02 12Вт круг 4000K IP65 900 Лм 190x48 мм | E134: 2 | F134: 256.5 | G134: 285 | H134: =G134*(1-$H$11/100) -> 285 | J134: >5000 | L134: 0 | M134: =L134*H134 -> 0 | N134: =L134*Q134 -> 0 | O134: =L134*R134 -> 0 | P134: шт | Q134: 0.208 | R134: 0.001924
B135: LCL12-RC-02C | C135: 4260529294861 | D135: Светодиодный светильник LCL12-RC-02C 12Вт круг 6500K IP65 900 Лм 190x48 мм | E135: 2 | F135: 256.5 | G135: 285 | H135: =G135*(1-$H$11/100) -> 285 | J135: >1000 | L135: 0 | M135: =L135*H135 -> 0 | N135: =L135*Q135 -> 0 | O135: =L135*R135 -> 0 | P135: шт | Q135: 0.14 | R135: 0.00102
B136: LCL12-RCoa-02 | C136: 4260529294786 | D136: Светодиодный светильник с оптико-акуст датчиком LCL12-RCoa-02 12 Вт круг 4000K IP65 900 Лм 190x48 мм | E136: 2 | F136: 434.77 | G136: 483.08 | H136: =G136*(1-$H$11/100) -> 483.08 | J136: >1000 | L136: 0 | M136: =L136*H136 -> 0 | N136: =L136*Q136 -> 0 | O136: =L136*R136 -> 0 | P136: шт | Q136: 0.219 | R136: 0.001925
B137: LCL12-RCs-02 | C137: 4260529294748 | D137: Светильник светодиодный c микров датчиком движения LCL12-RCs-02 12 Вт круг 4000K IP65 960 Лм 135x52 мм | E137: 2 | F137: 639 | G137: 710 | H137: =G137*(1-$H$11/100) -> 710 | J137: >1000 | L137: 0 | M137: =L137*H137 -> 0 | N137: =L137*Q137 -> 0 | O137: =L137*R137 -> 0 | P137: шт | Q137: 0.158 | R137: 0.001017 | S137: НОВИНКА!
B138: LCL12-RCs-02C | C138: 4260529294946 | D138: Светильник светодиодный c микров датчиком движения LCL12-RCs-02C 12 Вт круг 6500K IP65 960 Лм 135x52 мм | E138: 2 | F138: 639 | G138: 710 | H138: =G138*(1-$H$11/100) -> 710 | J138: >3000 | L138: 0 | M138: =L138*H138 -> 0 | N138: =L138*Q138 -> 0 | O138: =L138*R138 -> 0 | P138: шт | Q138: 0.158 | R138: 0.001017 | S138: НОВИНКА!
A139: LCL18-02
A140: WOLTA
B141: LCL18-RC-02 | C141: 4260529294724 | D141: Светодиодный светильник LCL18-RC-02 18 Вт круг 4000K IP65 1440 Лм 170x52 мм | E141: 2 | F141: 387 | G141: 430 | H141: =G141*(1-$H$11/100) -> 430 | J141: >1000 | L141: 0 | M141: =L141*H141 -> 0 | N141: =L141*Q141 -> 0 | O141: =L141*R141 -> 0 | P141: шт | Q141: 0.195 | R141: 0.001584 | S141: НОВИНКА!
B142: LCL18-RC-02C | C142: 4260529294922 | D142: Светодиодный светильник LCL18-RC-02C 18 Вт круг 6500K IP65 1440 Лм 170x52 мм | E142: 2 | F142: 387 | G142: 430 | H142: =G142*(1-$H$11/100) -> 430 | J142: >500 | L142: 0 | M142: =L142*H142 -> 0 | N142: =L142*Q142 -> 0 | O142: =L142*R142 -> 0 | P142: шт | Q142: 0.195 | R142: 0.001584 | S142: НОВИНКА!
B143: LCL18-RCs-02 | C143: 4260529294762 | D143: Светодиодный светильник с микров датчиком движения LCL18-RCs-02 18Вт круг 4000K IP65 1440 Лм 170x52 мм | E143: 2 | F143: 720 | G143: 800 | H143: =G143*(1-$H$11/100) -> 800 | J143: >1000 | L143: 0 | M143: =L143*H143 -> 0 | N143: =L143*Q143 -> 0 | O143: =L143*R143 -> 0 | P143: шт | Q143: 0.213 | R143: 0.001584 | S143: НОВИНКА!
B144: LCL18-RCs-02C | C144: 4260529294960 | D144: Светодиодный светильник с микров датчиком движения LCL18-RCs-02 18Вт круг 6500K IP65 1440 Лм 170x52 мм | E144: 2 | F144: 720 | G144: 800 | H144: =G144*(1-$H$11/100) -> 800 | J144: >1000 | L144: 0 | M144: =L144*H144 -> 0 | N144: =L144*Q144 -> 0 | O144: =L144*R144 -> 0 | P144: шт | Q144: 0.213 | R144: 0.001584 | S144: НОВИНКА!
K145: ИТОГО: | L145: =SUM(L12:L144) -> 0 | M145: =SUM(M12:M144) -> 0 | N145: =SUM(N12:N144) -> 0 | O145: =SUM(O12:O144) -> 0

Sheet Декор светильники
S1: ООО «Вольта Русланд»
S2: ИНН/КПП/ОГРН 7716662181 / 771901001 / 1107746281323
S3: 119361, г. Москва, ул. Наташи Ковшовой, д. 4, стр. 1, офис 23
S4: Тел.: +7(495) 651-87-22, факс: +7 (495) 721-24-20, info@wolta.ru
M6: Дата формирования прайс-листа: | R6: 30.05.2019
A7: Номенклатура | M7: Заказ
A8: Фото | B8: Ссылка на сайт | C8: Штрихкод / Артикул | D8: Наименование | E8: Гарантия, г. | F8: МРОЦ, руб | G8: РРЦ, руб Интернет цена | H8: Базовая цена, руб. | I8: Ваша цена со скидкой, руб. | J8: Спец Цена, руб. | K8: Остаток | L8: Ближайшее поступление | M8: Кол-во, шт | N8: Сумма, руб. | O8: Вес, кг | P8: Объем, м3 | Q8: Ед. изм. | R8: Вес, кг | S8: Объем, м3
H11: Укажите свою скидку % | I11: 0
A13: ALMAZ&CAVE 18W
A14: Lumin'arte
B15: CLL0418W-ALMAZ | C15: 4260375488469 | D15: Светильник LED ALMAZ 18W (100-700-1300LM) 4000K плафон с хром кантом и хрусталем регулировка выключателем 73x320MM IP20 | E15: 2 | F15: 1583.47 | G15: 2287.23 | H15: 1759.41 | I15: =H15*(1-$I$11/100) -> 1759.41 | K15: >1000 | M15: 0 | N15: =M15*I15 -> 0 | O15: =M15*R15 -> 0 | P15: =M15*S15 -> 0 | Q15: шт | R15: 1.1 | S15: 0.013192
B16: CLL0618W-CAVE | C16: 4260375488506 | D16: Светильник LED Cave 18W 1080 LM 4000K плафон c белым кантом 75x345MM IP20 | E16: 2 | F16: 792.05 | G16: 1144.08 | H16: 880.06 | I16: =H16*(1-$I$11/100) -> 880.06 | K16: >1000 | M16: 0 | N16: =M16*I16 -> 0 | O16: =M16*R16 -> 0 | P16: =M16*S16 -> 0 | Q16: шт | R16: 0.85 | S16: 0.011802
A17: ANDROMEDA
A18: Lumin'arte
B19: CLL2580WRGB-ANDROMEDA | C19: 4260529292928 | D19: Светильник LED ANDROMEDA RGB-X управляемый 80W димм. 3000-6500K max 7500LM пульт ДУ 145x760 MM IP20 | E19: 2 | F19: 8010.9 | G19: 11571.3 | H19: 8901 | I19: =H19*(1-$I$11/100) -> 8901 | K19: >500 | M19: 0 | N19: =M19*I19 -> 0 | O19: =M19*R19 -> 0 | P19: =M19*S19 -> 0 | Q19: шт | R19: 5.25 | S19: 0.107588
A20: APPOLO&LUNO
A21: Lumin'arte
B22: CLL1860W-APPOLO | C22: 4260529292157 | D22: Светильник LED APPOLO управляемый 60W димм. 3000-6500K max 5400LM пульт ДУ эффект "звездного неба",ободок "алмазные грани" 90x500MM IP20 | E22: 2 | F22: 4369.64 | G22: 6311.71 | H22: 4855.16 | I22: =H22*(1-$I$11/100) -> 4855.16 | K22: >1000 | M22: 0 | N22: =M22*I22 -> 0 | O22: =M22*R22 -> 0 | P22: =M22*S22 -> 0 | Q22: шт | R22: 2.34 | S22: 0.029405
B23: CLL1860WRGB-APPOLO | C23: 4260529292171 | D23: Светильник LED APPOLO RGB управляемый 60W+ 8WRGB димм. 3000-6500K max 5100LM пульт ДУ эффект "звездного неба" RGB по канту 90x500MM IP20 | E23: 2 | F23: 5268.94 | G23: 7610.69 | H23: 5854.38 | I23: =H23*(1-$I$11/100) -> 5854.38 | K23: >1000 | M23: 0 | N23: =M23*I23 -> 0 | O23: =M23*R23 -> 0 | P23: =M23*S23 -> 0 | Q23: шт | R23: 2.52 | S23: 0.029405
B24: CLL1960WRGB-LUNO | C24: 4260529292195 | D24: Светильник LED LUNO RGB управляемый 60W + 8W RGB димм. 3000-6500K max 4900LM пульт ДУ эффект "звездного неба" RGB по канту эффект "колотого льда" 74x500MM IP20 | E24: 2 | F24: 5512.28 | G24: 7962.19 | H24: 6124.76 | I24: =H24*(1-$I$11/100) -> 6124.76 | K24: >250 | M24: 0 | N24: =M24*I24 -> 0 | O24: =M24*R24 -> 0 | P24: =M24*S24 -> 0 | Q24: шт | R24: 2.44 | S24: 0.025542
A25: FENIX
A26: Lumin'arte
B27: CLL0924W-FENIX | C27: 4260529290795 | D27: Светильник LED FENIX 24W 1680LM 4000K плафон c эффектом "алмазных граней" 105x400MM IP20 | E27: 2 | F27: 1311.86 | G27: 1894.91 | H27: 1457.62 | I27: =H27*(1-$I$11/100) -> 1457.62 | K27: >1000 | M27: 0 | N27: =M27*I27 -> 0 | O27: =M27*R27 -> 0 | P27: =M27*S27 -> 0 | Q27: шт | R27: 1.508 | S27: 0.023154
B28: CLL0948W-FENIX | C28: 4260529290818 | D28: Светильник LED FENIX 48W 3300LM 4000K плафон c эффектом "алмазных граней" 105x510MM IP20 | E28: 2 | F28: 2248.89 | G28: 3248.4 | H28: 2498.77 | I28: =H28*(1-$I$11/100) -> 2498.77 | K28: 0 | M28: 0 | N28: =M28*I28 -> 0 | O28: =M28*R28 -> 0 | P28: =M28*S28 -> 0 | Q28: шт | R28: 1.1 | S28: 0.0181
B29: CLL0960W-FENIX | C29: 4260529290634 | D29: Светильник LED FENIX управляемый 60W димм. 3000-6500K max 6000LM пульт ДУ плафон c эффектом "алмазных граней" 105x510MM IP20 | E29: 2 | F29: 4409.37 | G29: 6369.09 | H29: 4899.3 | I29: =H29*(1-$I$11/100) -> 4899.3 | K29: >1000 | M29: 0 | N29: =M29*I29 -> 0 | O29: =M29*R29 -> 0 | P29: =M29*S29 -> 0 | Q29: шт | R29: 3.09 | S29: 0.048608
A30: ICELED
A31: Lumin'arte
B32: CLL1024W-ICELED | C32: 4260529290832 | D32: Светильник LED ICELED 24W 1680LM 6000K плафон c эффектом "колотого льда" 105x400 MM IP20 | E32: 2 | F32: 1499.27 | G32: 2165.61 | H32: 1665.85 | I32: =H32*(1-$I$11/100) -> 1665.85 | K32: >500 | M32: 0 | N32: =M32*I32 -> 0 | O32: =M32*R32 -> 0 | P32: =M32*S32 -> 0 | Q32: шт | R32: 1.445 | S32: 0.017719
B33: CLL1048W-ICELED | C33: 4260529290856 | D33: Светильник LED ICELED 48W 3300LM 6000K плафон c эффектом "колотого льда" 105x510MM IP20 | E33: 2 | F33: 2436.3 | G33: 3519.1 | H33: 2707 | I33: =H33*(1-$I$11/100) -> 2707 | K33: >1000 | M33: 0 | N33: =M33*I33 -> 0 | O33: =M33*R33 -> 0 | P33: =M33*S33 -> 0 | Q33: шт | R33: 2.46 | S33: 0.036322
B34: CLL1060W-ICELED | C34: 4260529290658 | D34: Светильник LED ICELED управляемый 60W димм. 3000-6500K max 6100LM пульт ДУ плафон c эффектом "колотого льда" 105x510MM IP20 | E34: 2 | F34: 5043.32 | G34: 7284.8 | H34: 5603.69 | I34: =H34*(1-$I$11/100) -> 5603.69 | K34: >1000 | M34: 0 | N34: =M34*I34 -> 0 | O34: =M34*R34 -> 0 | P34: =M34*S34 -> 0 | Q34: шт | R34: 3.172 | S34: 0.040454
A35: METEOR
A36: Lumin'arte
B37: CLL1560W-METEOR | C37: 4260529291099 | D37: Светильник LED METEOR управляемый 60W димм. 3000-6500K max 5600LM пульт ДУ эффект "звездного неба" плафон форма камня 110x560x600MM IP20 | E37: 2 | F37: 3643.19 | G37: 5262.39 | H37: 4047.99 | I37: =H37*(1-$I$11/100) -> 4047.99 | K37: >500 | M37: 0 | N37: =M37*I37 -> 0 | O37: =M37*R37 -> 0 | P37: =M37*S37 -> 0 | Q37: шт | R37: 2.675 | S37: 0.04862
B38: CLL2260WRGB-METEOR | C38: 4260529292270 | D38: Светильник LED METEOR управляемый 60W RGB димм. 3000-6500K max 5600LM пульт ДУ эффект "звездного неба" плафон форма камня 105x510x535 IP20 | E38: 2 | F38: 4407.7 | G38: 6366.67 | H38: 4897.44 | I38: =H38*(1-$I$11/100) -> 4897.44 | K38: >500 | M38: 0 | N38: =M38*I38 -> 0 | O38: =M38*R38 -> 0 | P38: =M38*S38 -> 0 | Q38: шт | R38: 2.4 | S38: 0.039107
B39: CLL22100WRGB-METEOR | C39: 4260529292317 | D39: Светильник LED METEOR управляемый 100W RGB димм. 3000-6500K max 9300LM пульт ДУ эффект "звездного неба" плафон форма камня 120x850x800 IP20 | E39: 2 | F39: 9369.36 | G39: 13533.52 | H39: 10410.4 | I39: =H39*(1-$I$11/100) -> 10410.4 | K39: >250 | M39: 0 | N39: =M39*I39 -> 0 | O39: =M39*R39 -> 0 | P39: =M39*S39 -> 0 | Q39: шт | R39: 5.7 | S39: 0.110739
B40: CLL22100WRGB-METEOR-X | D40: Светильник LED METEOR-X управляемый 100W RGB-X димм. 3000-6500K max 9300LM пульт ДУ эффект "звездного неба" плафон форма камня 120x850x800 IP20 | E40: 2 | F40: 10873.76 | G40: 15706.55 | H40: 12081.96 | I40: =H40*(1-$I$11/100) -> 12081.96 | K40: >100 | M40: 0 | N40: =M40*I40 -> 0 | O40: =M40*R40 -> 0 | P40: =M40*S40 -> 0 | Q40: шт | R40: 5.72 | S40: 0.108416
A41: POLARIS
A42: Lumin'arte
B43: CLL2148W-POLARIS | C43: 4260529295714 | D43: Светильник LED POLARIS управляемый 48W димм. 3000-6500K max 3840 LM пульт ДУ эффект "звездного неба" 80x380MM IP20 | E43: 2 | F43: 1909.09 | G43: 2757.57 | H43: 2121.21 | I43: =H43*(1-$I$11/100) -> 2121.21 | K43: >5000 | M43: 0 | N43: =M43*I43 -> 0 | O43: =M43*R43 -> 0 | P43: =M43*S43 -> 0 | Q43: шт | R43: 1.4 | S43: 0.019793 | T43: НОВИНКА!
B44: CLL2172W-POLARIS | C44: 4260529295738 | D44: Светильник LED POLARIS управляемый 72W димм. 3000-6500K max 5760 LM пульт ДУ эффект "звездного неба" 85x480MM IP20 | E44: 2 | F44: 2864.3 | G44: 4137.32 | H44: 3182.55 | I44: =H44*(1-$I$11/100) -> 3182.55 | K44: >3000 | M44: 0 | N44: =M44*I44 -> 0 | O44: =M44*R44 -> 0 | P44: =M44*S44 -> 0 | Q44: шт | R44: 2.167 | S44: 0.031034 | T44: НОВИНКА!
B45: CLL0325W-POLARIS | C45: 4260375488445 | D45: Светильник LED POLARIS управляемый 25W димм. 3000-6500K max 3000 LM пульт ДУ эффект "звездного неба" 97x350MM IP20 | E45: 2 | F45: 2000.71 | G45: 2889.91 | H45: 2223.01 | I45: =H45*(1-$I$11/100) -> 2223.01 | K45: >1000 | M45: 0 | N45: =M45*I45 -> 0 | O45: =M45*R45 -> 0 | P45: =M45*S45 -> 0 | Q45: шт | R45: 1.18 | S45: 0.018698
B46: CLL21100WRGB-POLARIS | C46: 4260529292331 | D46: Светильник LED POLARIS RGB управляемый 100W димм. 3000-6500K max 9300 LM пульт ДУ эффект "звездного неба" 127x760MM IP20 | E46: 2 | F46: 9585.28 | G46: 13845.4 | H46: 10650.31 | I46: =H46*(1-$I$11/100) -> 10650.31 | K46: >250 | M46: 0 | N46: =M46*I46 -> 0 | O46: =M46*R46 -> 0 | P46: =M46*S46 -> 0 | Q46: шт | R46: 5.8 | S46: 0.095256
A47: SAPHIR
A48: Lumin'arte
B49: CLL0518W-SAPHIR | C49: 4260375488483 | D49: Светильник LED SAPHIR 18W 1080 LM 4000K плафон с ободком "алмазных граней" 75x345MM IP20 | E49: 2 | F49: 869.54 | G49: 1256 | H49: 966.15 | I49: =H49*(1-$I$11/100) -> 966.15 | K49: >1000 | M49: 0 | N49: =M49*I49 -> 0 | O49: =M49*R49 -> 0 | P49: =M49*S49 -> 0 | Q49: шт | R49: 1.07 | S49: 0.015126
B50: CLL0548W-SAPHIR | C50: 4260529290733 | D50: Светильник LED SAPHIR 48W 3300LM 4000K плафон с кантом "алмазных граней" 85x490MM IP20 | E50: 2 | F50: 2123.44 | G50: 3067.19 | H50: 2359.38 | I50: =H50*(1-$I$11/100) -> 2359.38 | K50: >500 | M50: 0 | N50: =M50*I50 -> 0 | O50: =M50*R50 -> 0 | P50: =M50*S50 -> 0 | Q50: шт | R50: 2.05 | S50: 0.028938
B51: CLL0560W-SAPHIR | C51: 4260529290597 | D51: Светильник LED SAPHIR управляемый 60W димм. 3000-6500K max 5900LM пульт ДУ плафон с ободком "алмазных граней" 85x490MM IP20 | E51: 2 | F51: 4090 | G51: 5907.77 | H51: 4544.44 | I51: =H51*(1-$I$11/100) -> 4544.44 | K51: >1000 | M51: 0 | N51: =M51*I51 -> 0 | O51: =M51*R51 -> 0 | P51: =M51*S51 -> 0 | Q51: шт | R51: 2.868 | S51: 0.045472
A52: STARWOOD
A53: Lumin'arte
B54: CLL2040W-STARWOOD-WH | C54: 4260529292591 | D54: Светильник LED STARWOOD управляемый 40W димм. 3000-6500K max 4000LM пульт ДУ матовый белый плафон, основание декорировано вставкой под дерево 90x416MM IP20 | E54: 2 | F54: 3587.34 | G54: 5181.71 | H54: 3985.93 | I54: =H54*(1-$I$11/100) -> 3985.93 | K54: >250 | M54: 0 | N54: =M54*I54 -> 0 | O54: =M54*R54 -> 0 | P54: =M54*S54 -> 0 | Q54: шт | R54: 1.7 | S54: 0.02209
B55: CLL2060W-STARWOOD | C55: 4260529292218 | D55: Светильник LED STARWOOD управляемый 60W димм. 3000-6500K max 6100LM пульт ДУ эффект "звездного неба", основание декорировано вставкой под дерево 92x530MM IP20 | E55: 2 | F55: 4540.2 | G55: 6558.07 | H55: 5044.67 | I55: =H55*(1-$I$11/100) -> 5044.67 | K55: >500 | M55: 0 | N55: =M55*I55 -> 0 | O55: =M55*R55 -> 0 | P55: =M55*S55 -> 0 | Q55: шт | R55: 2.44 | S55: 0.033724
B56: CLL2060W-STARWOOD-WH | C56: 4260529292577 | D56: Светильник LED STARWOOD управляемый 60W димм. 3000-6500K max 6200LM пульт ДУ матовый белый плафон, основание декорировано вставкой под дерево 92x530MM IP20 | E56: 2 | F56: 4103.24 | G56: 5926.9 | H56: 4559.15 | I56: =H56*(1-$I$11/100) -> 4559.15 | K56: >250 | M56: 0 | N56: =M56*I56 -> 0 | O56: =M56*R56 -> 0 | P56: =M56*S56 -> 0 | Q56: шт | R56: 2.4 | S56: 0.033724
B57: CLL20100W-STARWOOD-WH | C57: 4260529292652 | D57: Светильник LED STARWOOD управляемый 100W димм. 3000-6500K max 9400LM пульт ДУ матовый белый плафон, основание декорировано вставкой под дерево 100x780MM IP20 | E57: 2 | F57: 10614.01 | G57: 15331.34 | H57: 11793.34 | I57: =H57*(1-$I$11/100) -> 11793.34 | K57: >250 | M57: 0 | N57: =M57*I57 -> 0 | O57: =M57*R57 -> 0 | P57: =M57*S57 -> 0 | Q57: шт | R57: 5.6 | S57: 0.101494
A58: SUPERNOVA BASE + RGB
A59: Lumin'arte
B60: CLL0230W-Supernova | C60: 4260375488421 | D60: Светильник LED Supernova управляемый 30W димм. 3000-6000K max 3400LM пульт ДУ эффект "звездного неба" 65x420MM IP20 | E60: 2 | F60: 2748.65 | G60: 3970.27 | H60: 3054.05 | I60: =H60*(1-$I$11/100) -> 3054.05 | K60: >1000 | M60: 0 | N60: =M60*I60 -> 0 | O60: =M60*R60 -> 0 | P60: =M60*S60 -> 0 | Q60: шт | R60: 1.56 | S60: 0.02281
B61: CLL0260W-Supernova | C61: 4260375489268 | D61: Светильник LED Supernova управляемый 60W димм. 3000-6500K max 5100LM пульт ДУ эффект "звездного неба" 100x510MM IP20 | E61: 2 | F61: 3203.55 | G61: 4627.35 | H61: 3559.5 | I61: =H61*(1-$I$11/100) -> 3559.5 | K61: >5000 | M61: 0 | N61: =M61*I61 -> 0 | O61: =M61*R61 -> 0 | P61: =M61*S61 -> 0 | Q61: шт | R61: 2.883 | S61: 0.04544
B62: CLL0260WRGB-Supernova | C62: 4260375489251 | D62: Светильник LED Supernova RGB управляемый 60W димм. 3000-6500K max 5100LM пульт ДУ эффект "звездного неба" 100x510MM IP20 | E62: 2 | F62: 4027.32 | G62: 5817.24 | H62: 4474.8 | I62: =H62*(1-$I$11/100) -> 4474.8 | K62: >1000 | M62: 0 | N62: =M62*I62 -> 0 | O62: =M62*R62 -> 0 | P62: =M62*S62 -> 0 | Q62: шт | R62: 2.903 | S62: 0.04544
B63: CLL02100W-Supernova | C63: 4260375489411 | D63: Светильник LED Supernova управляемый 100W димм. 3000-6500K max 8500LM пульт ДУ эффект "звездного неба" 141x800 MM IP20 | E63: 2 | F63: 7780.05 | G63: 11237.85 | H63: 8644.5 | I63: =H63*(1-$I$11/100) -> 8644.5 | K63: >1000 | M63: 0 | N63: =M63*I63 -> 0 | O63: =M63*R63 -> 0 | P63: =M63*S63 -> 0 | Q63: шт | R63: 4.7 | S63: 0.130152
B64: CLL02100WRGB-Supernova | C64: 4260529292294 | D64: Светильник LED Supernova RGB управляемый 100W димм. 3000-6500K max 8500LM пульт ДУ эффект "звездного неба" 130x750MM IP20 | E64: 2 | F64: 8465.83 | G64: 12228.42 | H64: 9406.48 | I64: =H64*(1-$I$11/100) -> 9406.48 | K64: 93 | M64: 0 | N64: =M64*I64 -> 0 | O64: =M64*R64 -> 0 | P64: =M64*S64 -> 0 | Q64: шт | R64: 5.8 | S64: 0.098411
A65: SUPERSERIA1
A66: Lumin'arte
B67: CLL1660W-ASTEROID | C67: 4260529291112 | D67: Светильник LED ASTEROID управляемый 60W димм. 3000-6500K max 5200LM пульт ДУ эффект "звездного неба" 115x600MM IP20 | E67: 2 | F67: 4133.16 | G67: 5970.12 | H67: 4592.4 | I67: =H67*(1-$I$11/100) -> 4592.4 | K67: >1000 | M67: 0 | N67: =M67*I67 -> 0 | O67: =M67*R67 -> 0 | P67: =M67*S67 -> 0 | Q67: шт | R67: 3.1 | S67: 0.059701
B68: CLL1360W-CALLISTO | C68: 4260529291051 | D68: Светильник LED CALLISTO управляемый 60W димм. 3000-6500K max 5200LM пульт ДУ эффект "звездного неба", декорирован хромированным ободком 120x600MM IP20 | E68: 2 | F68: 4390.07 | G68: 6341.22 | H68: 4877.86 | I68: 4877.86 | K68: >1000 | M68: 0 | N68: 0 | O68: 0 | P68: 0 | Q68: шт | R68: 3.1 | S68: 0.059431
B69: CLL1160W-ICEBERG | C69: 4260529291013 | D69: Светильник LED ICEBERG управляемый 60W димм. 3000-6500K max 5900LM пульт ДУ эффект "звездного неба" плафон с гранями, декорирован хромированным ободком 110x520MM IP20 | E69: 2 | F69: 4111.91 | G69: 5939.43 | H69: 4568.79 | I69: 4568.79 | K69: >500 | M69: 0 | N69: 0 | O69: 0 | P69: 0 | Q69: шт | R69: 2.425 | S69: 0.043513
B70: CLL1760W-IRBIS | C70: 4260529291136 | D70: Светильник LED IRBIS управляемый 60W димм. 3000-6500K max 5200LM пульт ДУ эффект "звездного неба" и "морозным узором" 100x550MM IP20 | E70: 2 | F70: 4354.21 | G70: 6289.41 | H70: 4838.01 | I70: 4838.01 | K70: >1000 | M70: 0 | N70: 0 | O70: 0 | P70: 0 | Q70: шт | R70: 2.5 | S70: 0.041984
B71: CLL1260W-JUPITER | C71: 4260529291037 | D71: Светильник LED JUPITER управляемый 60W димм. 3000-6500K max 5500LM пульт ДУ эффект "звездного неба" плафон с эффектом "колотого стекла" декорирован хромированным ободком 95x570MM IP20 | E71: 2 | F71: 5057.78 | G71: 7305.69 | H71: 5619.76 | I71: 5619.76 | K71: 8 | M71: 0 | N71: 0 | O71: 0 | P71: 0 | Q71: шт | R71: 3.05 | S71: 0.042171
B72: CLL2460W-MERCURY | C72: 4260529292232 | D72: Светильник LED MERCURY управляемый 60W димм. 3000-6500K max 6100LM пульт ДУ эффект "звездного неба" 90x510MM IP20 | E72: 2 | F72: 3594.38 | G72: 5191.89 | H72: 3993.76 | I72: 3993.76 | K72: 20 | M72: 0 | N72: 0 | O72: 0 | P72: 0 | Q72: шт | R72: 1.96 | S72: 0.029405
B73: CLL1460W-STARLUX | C73: 4260529291075 | D73: Светильник LED STARLUX управляемый 60W димм. 3000-6500K max 6000LM пульт ДУ эффект "звездного неба" и алмазными гранями по ободку 90x500MM IP20 | E73: 2 | F73: 3434.16 | G73: 4960.45 | H73: 3815.73 | I73: 3815.73 | K73: >3000 | M73: 0 | N73: 0 | O73: 0 | P73: 0 | Q73: шт | R73: 2.706 | S73: 0.03364
A74: VENUS
A75: Lumin'arte
B76: CLL2340W-VENUS | C76: 4260529292089 | D76: Светильник LED VENUS управляемый 40W димм. 3000-6500K max 4000LM пульт ДУ эффект "звездного неба" и "колотого льда" декорирован хромированным ободком 95x500MM IP20 | E76: 2 | F76: 4499.33 | G76: 6499.03 | H76: 4999.25 | I76: =H76*(1-$I$11/100) -> 4999.25 | K76: >250 | M76: 0 | N76: =M76*I76 -> 0 | O76: =M76*R76 -> 0 | P76: =M76*S76 -> 0 | Q76: шт | R76: 2.44 | S76: 0.032376
B77: CLL2360W-VENUS | C77: 4260529292102 | D77: Светильник LED VENUS управляемый 60W димм. 3000-6500K max 5200LM пульт ДУ эффект "звездного неба" и "колотого льда" декорирован хромированным ободком 95x570MM IP20 | E77: 2 | F77: 5549.45 | G77: 8015.87 | H77: 6166.05 | I77: =H77*(1-$I$11/100) -> 6166.05 | K77: >500 | M77: 0 | N77: =M77*I77 -> 0 | O77: =M77*R77 -> 0 | P77: =M77*S77 -> 0 | Q77: шт | R77: 2.85 | S77: 0.041605
A78: WAVE
A79: Lumin'arte
B80: CLL0724W-WAVE | C80: 4260529290696 | D80: Светильник LED WAVE 24W 1680 LM 4000K эффект "звездного неба" 55x380MM IP20 | E80: 2 | F80: 912.25 | G80: 1317.69 | H80: 1013.61 | I80: =H80*(1-$I$11/100) -> 1013.61 | K80: >1000 | M80: 0 | N80: =M80*I80 -> 0 | O80: =M80*R80 -> 0 | P80: =M80*S80 -> 0 | Q80: шт | R80: 1 | S80: 0.013421
B81: CLL0748W-WAVE | C81: 4260529290719 | D81: Светильник LED WAVE 48W 3300 LM 4000K эффект "звездного неба" 60x480MM IP20 | E81: 2 | F81: 2105.19 | G81: 3040.83 | H81: 2339.1 | I81: =H81*(1-$I$11/100) -> 2339.1 | K81: >1000 | M81: 0 | N81: =M81*I81 -> 0 | O81: =M81*R81 -> 0 | P81: =M81*S81 -> 0 | Q81: шт | R81: 1.73 | S81: 0.022976
B82: CLL0760W-WAVE | C82: 4260529290573 | D82: Светильник LED WAVE управляемый 60W димм. 3000-6500K max 5800LM пульт ДУ эффект "звездного неба" 60x480MM IP20 | E82: 2 | F82: 4096.15 | G82: 5916.66 | H82: 4551.28 | I82: =H82*(1-$I$11/100) -> 4551.28 | K82: >250 | M82: 0 | N82: =M82*I82 -> 0 | O82: =M82*R82 -> 0 | P82: =M82*S82 -> 0 | Q82: шт | R82: 2.616 | S82: 0.036064
A83: ZEPPELIN
A84: Lumin'arte
B85: CLL0824W-ZEPPELIN | C85: 4260529290757 | D85: Светильник LED ZEPPELIN 24W 1680 LM 4000K эффект "звездного неба" 60x380MM IP20 | E85: 2 | F85: 855.54 | G85: 1235.78 | H85: 950.6 | I85: =H85*(1-$I$11/100) -> 950.6 | K85: >1000 | M85: 0 | N85: =M85*I85 -> 0 | O85: =M85*R85 -> 0 | P85: =M85*S85 -> 0 | Q85: шт | R85: 1.094 | S85: 0.015347 | T85: НОВИНКА!
B86: CLL0848W-ZEPPELIN | C86: 4260529290771 | D86: Светильник LED ZEPPELIN 48W 3300 LM 4000K эффект "звездного неба" 70x480MM IP20 | E86: 2 | F86: 1662.44 | G86: 2401.31 | H86: 1847.16 | I86: =H86*(1-$I$11/100) -> 1847.16 | K86: >1000 | M86: 0 | N86: =M86*I86 -> 0 | O86: =M86*R86 -> 0 | P86: =M86*S86 -> 0 | Q86: шт | R86: 1.892 | S86: 0.028224 | T86: НОВИНКА!
B87: CLL0860W-ZEPPELIN | C87: 4260529290610 | D87: Светильник LED ZEPPELIN управляемый 60W димм. 3000-6500K max 5800LM пульт ДУ эффект "звездного неба" 70x480MM IP20 | E87: 2 | F87: 3947.29 | G87: 5701.64 | H87: 4385.88 | I87: =H87*(1-$I$11/100) -> 4385.88 | K87: >3000 | M87: 0 | N87: =M87*I87 -> 0 | O87: =M87*R87 -> 0 | P87: =M87*S87 -> 0 | Q87: шт | R87: 2.476 | S87: 0.036064
A88: CLL
A89: C01_ANTIQUE
A90: Lumin'arte
B91: C01LLY12W | C91: 4260375484706 | D91: Светильник светодиодный C01LLY12W 2700 К 12 Вт 780 Лм 250x100 мм | E91: 2 | F91: 405.48 | G91: 585.69 | H91: 450.53 | I91: =H91*(1-$I$11/100) -> 450.53 | K91: >250 | M91: 0 | N91: =M91*I91 -> 0 | O91: =M91*R91 -> 0 | P91: =M91*S91 -> 0 | Q91: шт | R91: 0.41 | S91: 0.007056 | T91: ВЫВОДИМЫЙ ИЗ АССОРТИМЕНТА
B92: C01LLW12W | C92: 4260375484690 | D92: Светильник светодиодный C01LLW12W 6000 К 12 Вт 780 Лм 250x100 мм | E92: 2 | F92: 405.48 | G92: 585.69 | H92: 450.53 | I92: =H92*(1-$I$11/100) -> 450.53 | K92: >100 | M92: 4 | N92: =M92*I92 -> 1802.12 | O92: =M92*R92 -> 1.772 | P92: =M92*S92 -> 0.0356 | Q92: шт | R92: 0.443 | S92: 0.0089 | T92: ВЫВОДИМЫЙ ИЗ АССОРТИМЕНТА
B93: C01LLW18W | C93: 4260375484713 | D93: Светильник светодиодный C01LLW18W 6000 К 18 Вт 1170 Лм 330x100 мм | E93: 2 | F93: 518.98 | G93: 749.63 | H93: 576.64 | I93: =H93*(1-$I$11/100) -> 576.64 | K93: >1000 | M93: 4 | N93: =M93*I93 -> 2306.56 | O93: =M93*R93 -> 2.388 | P93: =M93*S93 -> 0.04624 | Q93: шт | R93: 0.597 | S93: 0.01156 | T93: ВЫВОДИМЫЙ ИЗ АССОРТИМЕНТА
B94: C01LLS24W | C94: 4260375487318 | D94: Светильник светодиодный C01LLS24W 4000 К 24 Вт 1560 Лм 380x100 мм | E94: 2 | F94: 633.38 | G94: 914.89 | H94: 703.76 | I94: =H94*(1-$I$11/100) -> 703.76 | K94: >1000 | M94: 0 | N94: =M94*I94 -> 0 | O94: =M94*R94 -> 0 | P94: =M94*S94 -> 0 | Q94: шт | R94: 0.765 | S94: 0.016731 | T94: ВЫВОДИМЫЙ ИЗ АССОРТИМЕНТА
B95: C01LLW24W | C95: 4260375484737 | D95: Светильник светодиодный C01LLW24W 6000 К 24 Вт 1560 Лм 380x100 мм | E95: 2 | F95: 633.38 | G95: 914.89 | H95: 703.76 | I95: =H95*(1-$I$11/100) -> 703.76 | K95: 15 | M95: 0 | N95: =M95*I95 -> 0 | O95: =M95*R95 -> 0 | P95: =M95*S95 -> 0 | Q95: шт | R95: 0.765 | S95: 0.016731 | T95: ВЫВОДИМЫЙ ИЗ АССОРТИМЕНТА
A96: C02_FIESTA
A97: Lumin'arte
B98: C02LLW12W | C98: 4260375484751 | D98: Светильник светодиодный C02LLW12W 6000 К 12 Вт 780 Лм 250x100 мм | E98: 2 | F98: 405.48 | G98: 585.69 | H98: 450.53 | I98: =H98*(1-$I$11/100) -> 450.53 | K98: 16 | M98: 0 | N98: =M98*I98 -> 0 | O98: =M98*R98 -> 0 | P98: =M98*S98 -> 0 | Q98: шт | R98: 0.41 | S98: 0.007056
B99: C02LLS18W | C99: 4260375486793 | D99: Светильник светодиодный C02LLS18W 4000 К 18 Вт 1170 Лм 330x100 мм | E99: 2 | F99: 518.98 | G99: 749.63 | H99: 576.64 | I99: 576.64 | K99: >3000 | M99: 0 | N99: 0 | O99: 0 | P99: 0 | Q99: шт | R99: 0.589 | S99: 0.01156 | T99: ВЫВОДИМЫЙ ИЗ АССОРТИМЕНТА
B100: C02LLW18W | C100: 4260375484775 | D100: Светильник светодиодный C02LLW18W 6000 К 18 Вт 1170 Лм 330x100 мм | E100: 2 | F100: 518.98 | G100: 749.63 | H100: 576.64 | I100: 576.64 | K100: >5000 | M100: 0 | N100: 0 | O100: 0 | P100: 0 | Q100: шт | R100: 0.589 | S100: 0.01156
B101: C02LLY24W | C101: 4630015265260 | D101: Светильник светодиодный C02LLY24W 2700 К 24 Вт 1560 Лм 380x100 мм | E101: 2 | F101: 633.38 | G101: 914.89 | H101: 703.76 | I101: 703.76 | K101: >1000 | M101: 0 | N101: 0 | O101: 0 | P101: 0 | Q101: шт | R101: 0.765 | S101: 0.016731 | T101: ВЫВОДИМЫЙ ИЗ АССОРТИМЕНТА
B102: C02LLS24W | C102: 4260375486809 | D102: Светильник светодиодный C02LLS24W 4000 К 24 Вт 1560 Лм 380x100 мм | E102: 2 | F102: 633.38 | G102: 914.89 | H102: 703.76 | I102: 703.76 | K102: >3000 | M102: 0 | N102: 0 | O102: 0 | P102: 0 | Q102: шт | R102: 0.765 | S102: 0.016731 | T102: ВЫВОДИМЫЙ ИЗ АССОРТИМЕНТА
B103: C02LLW24W | C103: 4260375484799 | D103: Светильник светодиодный C02LLW24W 6000 К 24 Вт 1560 Лм 380x100 мм | E103: 2 | F103: 633.38 | G103: 914.89 | H103: 703.76 | I103: 703.76 | K103: 32 | M103: 0 | N103: 0 | O103: 0 | P103: 0 | Q103: шт | R103: 0.765 | S103: 0.016731 | T103: ВЫВОДИМЫЙ ИЗ АССОРТИМЕНТА
A104: C05_SALUTE
A105: Lumin'arte
B106: C05LLW18W | C106: 4630015265888 | D106: Светильник светодиодный C05LLW18W 6000 К 18 Вт 1170 Лм 330x100 мм | E106: 2 | F106: 518.98 | G106: 749.63 | H106: 576.64 | I106: =H106*(1-$I$11/100) -> 576.64 | K106: >3000 | M106: 4 | N106: =M106*I106 -> 2306.56 | O106: =M106*R106 -> 2.356 | P106: =M106*S106 -> 0.04624 | Q106: шт | R106: 0.589 | S106: 0.01156
B107: C05LLS24W | C107: 4260375487349 | D107: Светильник светодиодный C05LLS24W 4000 К 24 Вт 1560 Лм 380x100 мм | E107: 2 | F107: 633.38 | G107: 914.89 | H107: 703.76 | I107: =H107*(1-$I$11/100) -> 703.76 | K107: >3000 | M107: 0 | N107: =M107*I107 -> 0 | O107: =M107*R107 -> 0 | P107: =M107*S107 -> 0 | Q107: шт | R107: 0.765 | S107: 0.016731 | T107: ВЫВОДИМЫЙ ИЗ АССОРТИМЕНТА
B108: C05LLW24W | C108: 4630015265895 | D108: Светильник светодиодный C05LLW24W 6000 К 24 Вт 1560 Лм 380x100 мм | E108: 2 | F108: 633.38 | G108: 914.89 | H108: 703.76 | I108: =H108*(1-$I$11/100) -> 703.76 | K108: >3000 | M108: 2 | N108: =M108*I108 -> 1407.52 | O108: =M108*R108 -> 1.53 | P108: =M108*S108 -> 0.033462 | Q108: шт | R108: 0.765 | S108: 0.016731
A109: C06_STARTREK
A110: Lumin'arte
B111: C06LLW12W | C111: 4630015265932 | D111: Светильник светодиодный C06LLW12W 6000 К 12 Вт 780 Лм 250x100 мм | E111: 2 | F111: 405.48 | G111: 585.69 | H111: 450.53 | I111: =H111*(1-$I$11/100) -> 450.53 | K111: 83 | M111: 2 | N111: =M111*I111 -> 901.06 | O111: =M111*R111 -> 0.93 | P111: =M111*S111 -> 0.0178 | Q111: шт | R111: 0.465 | S111: 0.0089
B112: C06LLW18W | C112: 4630015265949 | D112: Светильник светодиодный C06LLW18W 6000 К 18 Вт 1170 Лм 330x100 мм | E112: 2 | F112: 518.98 | G112: 749.63 | H112: 576.64 | I112: =H112*(1-$I$11/100) -> 576.64 | K112: >5000 | M112: 4 | N112: =M112*I112 -> 2306.56 | O112: =M112*R112 -> 2.356 | P112: =M112*S112 -> 0.04624 | Q112: шт | R112: 0.589 | S112: 0.01156
B113: C06LLW24W | C113: 4630015265956 | D113: Светильник светодиодный C06LLW24W 6000 К 24 Вт 1560 Лм 380x100 мм | E113: 2 | F113: 633.38 | G113: 914.89 | H113: 703.76 | I113: =H113*(1-$I$11/100) -> 703.76 | K113: >250 | M113: 4 | N113: =M113*I113 -> 2815.04 | O113: =M113*R113 -> 3.06 | P113: =M113*S113 -> 0.066924 | Q113: шт | R113: 0.765 | S113: 0.016731
A114: C10_KVAZAR
A115: Lumin'arte
B116: C10LLS12W | C116: 4260529295578 | D116: Светильник светодиодный C10LLS12W 4500 К 12 Вт 780 Лм 250x100 мм | E116: 2 | F116: 405.48 | G116: 585.69 | H116: 450.53 | I116: =H116*(1-$I$11/100) -> 450.53 | K116: >5000 | M116: 0 | N116: =M116*I116 -> 0 | O116: =M116*R116 -> 0 | P116: =M116*S116 -> 0 | Q116: кор | R116: 0.442 | S116: 0.007056
B117: C10LLW12W | C117: 4260529290016 | D117: Светильник светодиодный C10LLW12W 6000 К 12 Вт 780 Лм 250x100 мм | E117: 2 | F117: 405.48 | G117: 585.69 | H117: 450.53 | I117: =H117*(1-$I$11/100) -> 450.53 | K117: >3000 | M117: 0 | N117: =M117*I117 -> 0 | O117: =M117*R117 -> 0 | P117: =M117*S117 -> 0 | Q117: шт | R117: 0.41 | S117: 0.007056
B118: C10LLW18W | C118: 4260529290023 | D118: Светильник светодиодный C10LLW18W 6000 К 18 Вт 1170 Лм 330x100 мм | E118: 2 | F118: 518.98 | G118: 749.63 | H118: 576.64 | I118: =H118*(1-$I$11/100) -> 576.64 | K118: >3000 | M118: 0 | N118: =M118*I118 -> 0 | O118: =M118*R118 -> 0 | P118: =M118*S118 -> 0 | Q118: шт | R118: 0.589 | S118: 0.01156
B119: C10LLS24W | C119: 4260529295585 | D119: Светильник светодиодный C10LLS24W 4500 К 24 Вт 1560 Лм 380x100 мм | E119: 2 | F119: 633.38 | G119: 914.89 | H119: 703.76 | I119: =H119*(1-$I$11/100) -> 703.76 | K119: >5000 | M119: 0 | N119: =M119*I119 -> 0 | O119: =M119*R119 -> 0 | P119: =M119*S119 -> 0 | Q119: шт | R119: 0.765 | S119: 0.016731
A120: CLL_KIDS
A121: Lumin'arte
B122: C11LLS24W | C122: 4260529290368 | D122: Светильник светодиодный C11LLS24W 4000 К 24 Вт 1560 Лм 380x100 мм | E122: 2 | F122: 633.38 | G122: 914.89 | H122: 703.76 | I122: =H122*(1-$I$11/100) -> 703.76 | K122: >3000 | M122: 0 | N122: =M122*I122 -> 0 | O122: =M122*R122 -> 0 | P122: =M122*S122 -> 0 | Q122: шт | R122: 0.765 | S122: 0.016731
B123: C12LLS24W | C123: 4260529290375 | D123: Светильник светодиодный C12LLS24W 4000 К 24 Вт 1560 Лм 380x100 мм | E123: 2 | F123: 633.38 | G123: 914.89 | H123: 703.76 | I123: =H123*(1-$I$11/100) -> 703.76 | K123: >3000 | M123: 0 | N123: =M123*I123 -> 0 | O123: =M123*R123 -> 0 | P123: =M123*S123 -> 0 | Q123: шт | R123: 0.765 | S123: 0.016731
L124: ИТОГО: | M124: =SUM(M12:M123) -> 24 | N124: =SUM(N12:N123) -> 13845.42 | O124: =SUM(O12:O123) -> 14.392 | P124: =SUM(P12:P123) -> 0.292506

Sheet Точечные светильники,Люстры
S1: ООО «Вольта Русланд»
S2: ИНН/КПП/ОГРН 7716662181 / 771901001 / 1107746281323
S3: 119361, г. Москва, ул. Наташи Ковшовой, д. 4, стр. 1, офис 23
S4: Тел.: +7(495) 651-87-22, факс: +7 (495) 721-24-20, info@wolta.ru
M6: Дата формирования прайс-листа: | R6: 30.05.2019
A7: Номенклатура | M7: Заказ
A8: Фото | B8: Ссылка на сайт | C8: Штрихкод / Артикул | D8: Наименование | E8: Гарантия, г. | F8: МРОЦ, руб | G8: РРЦ, руб Интернет цена | H8: Базовая цена, руб. | I8: Ваша цена со скидкой, руб. | J8: Спец Цена, руб. | K8: Остаток | L8: Ближайшее поступление | M8: Кол-во, шт | N8: Сумма, руб. | O8: Вес, кг | P8: Объем, м3 | Q8: Ед. изм. | R8: Вес, кг | S8: Объем, м3
H11: Укажите свою скидку % | I11: 0
A13: Споты
A14: Lumin'arte
B15: SPOT01-CLL5W-BL | C15: 4260375488537 | D15: Светильник накладной SPOT01 Тип ламп 5W LED 375 LM 4000K материал: металл d70*h130 | E15: 24 | F15: 633.15 | G15: 914.55 | H15: 703.5 | I15: =H15*(1-$I$11/100) -> 703.5 | K15: >250 | M15: 0 | N15: =M15*I15 -> 0 | O15: =M15*R15 -> 0 | P15: =M15*S15 -> 0 | Q15: шт | R15: 0.353 | S15: 0.002457
B16: SPOT02-CLL10W-BL | C16: 4260375488551 | D16: Светильник накладной SPOT02 Тип ламп 10 W LED 800LM 4000K материал: металл d70*h190 | E16: 24 | F16: 1102.54 | G16: 1592.55 | H16: 1225.04 | I16: 1225.04 | K16: >500 | M16: 0 | N16: 0 | O16: 0 | P16: 0 | Q16: шт | R16: 0.578 | S16: 0.001607
B17: SPOT02-CLL10W-WH | C17: 4260375488575 | D17: Светильник накладной SPOT02 Тип ламп 10 W LED материал: металл d70*h190 | E17: 24 | F17: 1102.54 | G17: 1592.55 | H17: 1225.04 | I17: 1225.04 | K17: >500 | M17: 0 | N17: 0 | O17: 0 | P17: 0 | Q17: шт | R17: 0.578 | S17: 0.001607
B18: SPOT03-CLL5W-WH | C18: 4260529291983 | D18: Светильник накладной Lumin'arte SPOT03 Тип ламп 5W LED 375 LM 4000K поворотный материал: металл d90*h130 | E18: 24 | F18: 690.69 | G18: 997.66 | H18: 767.43 | I18: 767.43 | K18: >1000 | M18: 0 | N18: 0 | O18: 0 | P18: 0 | Q18: шт | R18: 0.342 | S18: 0.001807
B19: SPOT05-CLL10W-WH | C19: 4260529292065 | D19: Светильник накладной SPOT05 Тип ламп 10 W LED 750LM 4000K поворотный материал: металл d50*h162 | E19: 24 | F19: 1709.8 | G19: 2469.71 | H19: 1899.78 | I19: 1899.78 | K19: >1000 | M19: 0 | N19: 0 | O19: 0 | P19: 0 | Q19: шт | R19: 0.49 | S19: 0.000811
B20: SPOT06-CLL5W-1 | C20: 4260529292669 | D20: Светильник накладной Lumin'arte SPOT06 Тип ламп 5W LED 375LM 4000K поворотный материал: металл d70*h146 | E20: 24 | F20: 772.44 | G20: 1115.75 | H20: 858.27 | I20: 858.27 | K20: 87 | M20: 0 | N20: 0 | O20: 0 | P20: 0 | Q20: шт | R20: 0.346 | S20: 0.001178
B21: SPOT06-DLL5W-1 | C21: 4260529292942 | D21: Светильник встраиваемый Lumin'arte SPOT06 Тип ламп 5 W 375LM 4000K LED поворотный материал: металл d70*h133 | E21: 24 | F21: 666.72 | G21: 963.04 | H21: 740.8 | I21: 740.8 | K21: >500 | M21: 0 | N21: 0 | O21: 0 | P21: 0 | Q21: шт | R21: 0.339 | S21: 0.001518
B22: SPOT06-CLL10W-2 | C22: 4260529292683 | D22: Светильник накладной Lumin'arte SPOT06 Тип ламп 10W LED 750LM 4000K поворотный материал: металл l260*w70*h160 | E22: 24 | F22: 1698.53 | G22: 2453.43 | H22: 1887.25 | I22: 1887.25 | K22: >500 | M22: 0 | N22: 0 | O22: 0 | P22: 0 | Q22: шт | R22: 0.808 | S22: 0.003235
B23: SPOT06-CLL15W-3 | C23: 4260529292706 | D23: Светильник накладной Lumin'arte SPOT06 Тип ламп 15W LED 1125LM 4000K поворотный материал: металл l410*w70*h160 | E23: 24 | F23: 2435.72 | G23: 3518.27 | H23: 2706.36 | I23: 2706.36 | K23: >1000 | M23: 0 | N23: 0 | O23: 0 | P23: 0 | Q23: шт | R23: 1.182 | S23: 0.004794
B24: SPOT06-CLL20W-4 | C24: 4260529292720 | D24: Светильник накладной Lumin'arte SPOT06 Тип ламп 20W LED 1500LM 4000K поворотный материал: металл l250*w250*h160 | E24: 24 | F24: 3264.54 | G24: 4715.45 | H24: 3627.27 | I24: 3627.27 | K24: >1000 | M24: 0 | N24: 0 | O24: 0 | P24: 0 | Q24: шт | R24: 1.724 | S24: 0.008653
B25: SPOT07-CLL5W-1 | C25: 4260529292980 | D25: Светильник накладной Lumin'arte SPOT07 Тип ламп 5W LED 375LM 4000K материал: металл d68*h75 | E25: 24 | F25: 501.8 | G25: 724.83 | H25: 557.56 | I25: 557.56 | K25: 5 | M25: 0 | N25: 0 | O25: 0 | P25: 0 | Q25: шт | R25: 0.199 | S25: 0.000536
B26: SPOT07-CLL10W-1 | C26: 4260529293000 | D26: Светильник накладной SPOT07 Тип ламп 10W LED 750LM 4000K материал: металл d88*h75 | E26: 24 | F26: 670.95 | G26: 969.15 | H26: 745.5 | I26: 745.5 | K26: 66 | M26: 0 | N26: 0 | O26: 0 | P26: 0 | Q26: шт | R26: 0.295 | S26: 0.000956
B27: ECLIPSE-WLL6W-R | C27: 4260529292003 | D27: Светильник накладной Lumin'arte ECLIPSE Тип ламп 6W LED 4000K 450LM поворотный материал: металл, акрил d150*h430MM круг | E27: 24 | F27: 792.17 | G27: 1144.25 | H27: 880.19 | I27: 880.19 | K27: >1000 | M27: 0 | N27: 0 | O27: 0 | P27: 0 | Q27: шт | R27: 0.545 | S27: 0.001426
B28: ECLIPSE-WLL6W-S | C28: 4260529292027 | D28: Светильник накладной Lumin'arte ECLIPSE Тип ламп 6W LED 4000K 450LM поворотный материал: металл, акрил d150*h430MM квадрат | E28: 24 | F28: 821.77 | G28: 1187 | H28: 913.08 | I28: 913.08 | K28: >100 | M28: 0 | N28: 0 | O28: 0 | P28: 0 | Q28: шт | R28: 0.66 | S28: 0.001515
B29: SN-WLL1-10W-CH | C29: 4260529292782 | D29: Светильник LED накладной 10W 630LM 4000K хром 100x380x70MM | E29: 1 | F29: 2083.24 | G29: 3009.12 | H29: 2314.71 | I29: 2314.71 | K29: >250 | M29: 0 | N29: 0 | O29: 0 | P29: 0 | Q29: шт | R29: 0.833 | S29: 0.004592
A30: Точечные светильники
A31: SUPERNOVA-DLL
A32: Lumin'arte
B33: SN-DLL9W | C33: 4260375489848 | D33: Светильник LED встраиваемый 9W 630LM 4000K белый 40x127MM | E33: 1 | F33: 302.36 | G33: 436.74 | H33: 335.95 | I33: =H33*(1-$I$11/100) -> 335.95 | K33: >5000 | M33: 0 | N33: =M33*I33 -> 0 | O33: =M33*R33 -> 0 | P33: =M33*S33 -> 0 | Q33: шт | R33: 0.211 | S33: 0.001229
B34: SN-DLL9W-CH | C34: 4260529292751 | D34: Светильник LED встраиваемый 9W 630LM 4000K хром 40x127MM | E34: 1 | F34: 432.04 | G34: 624.05 | H34: 480.04 | I34: =H34*(1-$I$11/100) -> 480.04 | K34: >5000 | M34: 0 | N34: =M34*I34 -> 0 | O34: =M34*R34 -> 0 | P34: =M34*S34 -> 0 | Q34: шт | R34: 0.195 | S34: 0.001254
B35: SN-DLL24W | C35: 4260375489855 | D35: Светильник LED встраиваемый 24W 1800LM 4000K белый 40x230MM | E35: 1 | F35: 688.42 | G35: 994.38 | H35: 764.91 | I35: =H35*(1-$I$11/100) -> 764.91 | K35: >5000 | M35: 0 | N35: =M35*I35 -> 0 | O35: =M35*R35 -> 0 | P35: =M35*S35 -> 0 | Q35: шт | R35: 0.562 | S35: 0.003899
B36: SN-DLL24W-CH | C36: 4260529292775 | D36: Светильник LED встраиваемый 24W 1800LM 4000K хром 40x230MM | E36: 1 | F36: 937.54 | G36: 1354.22 | H36: 1041.71 | I36: =H36*(1-$I$11/100) -> 1041.71 | K36: >5000 | M36: 0 | N36: =M36*I36 -> 0 | O36: =M36*R36 -> 0 | P36: =M36*S36 -> 0 | Q36: шт | R36: 0.521 | S36: 0.003919
A37: GX53
A38: Lumin'arte
B39: DJ01WH-DL50GX53 | C39: 4260375485703 | D39: Светильник встраиваемый GX53 белый 40*160MM | E39: 1 | F39: 78.9 | G39: 113.97 | H39: 87.67 | I39: =H39*(1-$I$11/100) -> 87.67 | K39: >1000 | M39: 30 | N39: =M39*I39 -> 2630.1 | O39: =M39*R39 -> 3.3 | P39: =M39*S39 -> 0.02484 | Q39: шт | R39: 0.11 | S39: 0.000828
B40: DJ01AB-DL50GX53 | C40: 4650001829238 | D40: Светильник встраиваемый GX53 бронза 40x106MM | E40: 1 | F40: 87.92 | G40: 127 | H40: 97.69 | I40: 97.69 | K40: >5000 | M40: 0 | N40: 0 | O40: 0 | P40: 0 | Q40: шт | R40: 0.101 | S40: 0.000696
B41: DJ01GD-DL50GX53 | C41: 4650001829276 | D41: Светильник встраиваемый GX53 золотой 40x106MM | E41: 1 | F41: 87.92 | G41: 127 | H41: 97.69 | I41: 97.69 | K41: >250 | M41: 0 | N41: 0 | O41: 0 | P41: 0 | Q41: шт | R41: 0.118 | S41: 0.001468
B42: DJ01GDM-DL50GX53 | C42: 4650001829214 | D42: Светильник встраиваемый GX53 золотой матовый 40x106MM | E42: 1 | F42: 87.92 | G42: 127 | H42: 97.69 | I42: 97.69 | K42: >3000 | M42: 0 | N42: 0 | O42: 0 | P42: 0 | Q42: шт | R42: 0.118 | S42: 0.000696
B43: DJ01NL-DL50GX53 | C43: 4650001829245 | D43: Светильник встраиваемый GX53 никель40*106MM | E43: 1 | F43: 87.92 | G43: 127 | H43: 97.69 | I43: 97.69 | K43: >3000 | M43: 0 | N43: 0 | O43: 0 | P43: 0 | Q43: шт | R43: 0.118 | S43: 0.001468
B44: DJ01GM-DL50GX53 | C44: 4650001820891 | D44: Светильник встраиваемый GX53 черный никель 40x106MM | E44: 1 | F44: 87.92 | G44: 127 | H44: 97.69 | I44: 97.69 | K44: >3000 | M44: 0 | N44: 0 | O44: 0 | P44: 0 | Q44: шт | R44: 0.118 | S44: 0.000696
B45: DJ01CH-DL50GX53 | C45: 4260375488599 | D45: Светильник встраиваемый GX53 хром 40x106MM | F45: 87.92 | G45: 127 | H45: 97.69 | I45: 97.69 | K45: >3000 | M45: 0 | N45: 0 | O45: 0 | P45: 0 | Q45: шт | R45: 0.118 | S45: 0.001079
B46: DJ02CH-DL50GX53 | C46: 4260375489350 | D46: Светильник встраиваемый GX53 хром 40x116xMM | E46: 1 | F46: 115.43 | G46: 166.74 | H46: 128.26 | I46: 128.26 | K46: >5000 | M46: 0 | N46: 0 | O46: 0 | P46: 0 | Q46: шт | R46: 0.113 | S46: 0.000884
B47: DJ04CH-DL50GX53 | C47: 4260375489275 | D47: Светильник встраиваемый GX53 хром 50x121MM | E47: 1 | F47: 215.16 | G47: 310.79 | H47: 239.07 | I47: 239.07 | K47: >5000 | M47: 0 | N47: 0 | O47: 0 | P47: 0 | Q47: шт | R47: 0.262 | S47: 0.000772
B48: DJ05CH-DL20GX53 | C48: 4630015263877 | D48: Светильник встраиваемый GX53 хром 40x105MM | E48: 1 | F48: 223.34 | G48: 322.6 | H48: 248.15 | I48: 248.15 | K48: >5000 | M48: 0 | N48: 0 | O48: 0 | P48: 0 | Q48: шт | R48: 0.161 | S48: 0.000761
A49: BASIC
A50: Lumin'arte
B51: KDOWH-DL50GU5.3 | C51: 4260375485741 | D51: Светильник встраиваемый MR16 GU5.3 белый 35x80MM | E51: 1 | F51: 33.96 | G51: 49.05 | H51: 37.73 | I51: =H51*(1-$I$11/100) -> 37.73 | K51: >5000 | M51: 0 | N51: =M51*I51 -> 0 | O51: =M51*R51 -> 0 | P51: =M51*S51 -> 0 | Q51: шт | R51: 0.067 | S51: 0.000395
B52: KDARWH-DL50GU5.3 | C52: 4670002425918 | D52: Светильник встраиваемый MR16 GU5.3 белый 35x90MM | E52: 1 | F52: 48.11 | G52: 69.49 | H52: 53.45 | I52: =H52*(1-$I$11/100) -> 53.45 | K52: 25 | M52: 0 | N52: =M52*I52 -> 0 | O52: =M52*R52 -> 0 | P52: =M52*S52 -> 0 | Q52: шт | R52: 0.094 | S52: 0.000447
B53: KDARGD-DL50GU5.3 | C53: 4670002425925 | D53: Светильник встраиваемый MR16 GU5.3 золото 35x90MM | E53: 1 | F53: 56.58 | G53: 81.73 | H53: 62.87 | I53: =H53*(1-$I$11/100) -> 62.87 | K53: >100 | M53: 0 | N53: =M53*I53 -> 0 | O53: =M53*R53 -> 0 | P53: =M53*S53 -> 0 | Q53: шт | R53: 0.09 | S53: 0.00047
B54: KDOSL-DL50GU5.3 | C54: 4260529290382 | D54: Светильник встраиваемый MR16 GU5.3 хром 35x80MM | E54: 1 | F54: 44.64 | G54: 64.48 | H54: 49.6 | I54: =H54*(1-$I$11/100) -> 49.6 | K54: >5000 | M54: 0 | N54: =M54*I54 -> 0 | O54: =M54*R54 -> 0 | P54: =M54*S54 -> 0 | Q54: шт | R54: 0.068 | S54: 0.000395
A55: ALUM
A56: Lumin'arte
B57: ALUM01WH-DL50GU5.3 | C57: 4260375485765 | D57: Светильник встраиваемый ALUM MR16 GU5.3 белый 18x95MM | E57: 1 | F57: 60.41 | G57: 87.26 | H57: 67.12 | I57: =H57*(1-$I$11/100) -> 67.12 | K57: >5000 | M57: 0 | N57: =M57*I57 -> 0 | O57: =M57*R57 -> 0 | P57: =M57*S57 -> 0 | Q57: шт | R57: 0.076 | S57: 0.000486
B58: ALUM01CH-DL50GU5.3 | C58: 4260375489299 | D58: Светильник встраиваемый ALUM MR16 GU5.3 хром 18x95MM | E58: 1 | F58: 60.41 | G58: 87.26 | H58: 67.12 | I58: 67.12 | K58: >5000 | M58: 0 | N58: 0 | O58: 0 | P58: 0 | Q58: шт | R58: 0.075 | S58: 0.000491
B59: ALUM03WH-DL50GU5.3 | C59: 4260375485802 | D59: Светильник встраиваемый ALUM MR16 GU5.3 белый 18x95MM | E59: 1 | F59: 60.41 | G59: 87.26 | H59: 67.12 | I59: 67.12 | K59: >5000 | M59: 0 | N59: 0 | O59: 0 | P59: 0 | Q59: шт | R59: 0.061 | S59: 0.000491
B60: ALUM04WH-DL50GU5.3 | C60: 4630015264669 | D60: Светильник встраиваемый ALUM MR16 GU5.3 белый 18x95MM | E60: 1 | F60: 56.22 | G60: 81.21 | H60: 62.47 | I60: 62.47 | K60: >500 | M60: 20 | N60: 1249.4 | O60: 1.04 | P60: 0.00982 | Q60: шт | R60: 0.052 | S60: 0.000491
B61: ALUM04SV-DL50GU5.3 | C61: 4630015264645 | D61: Светильник встраиваемый ALUM MR16 GU5.3 серебро 18x95MM | E61: 1 | F61: 56.22 | G61: 81.21 | H61: 62.47 | I61: 62.47 | K61: >3000 | M61: 0 | N61: 0 | O61: 0 | P61: 0 | Q61: шт | R61: 0.078 | S61: 0.000435
B62: ALUM04BL-DL50GU5.3 | C62: 4630015264706 | D62: Светильник встраиваемый ALUM MR16 GU5.3 черный 18x95MM | E62: 1 | F62: 56.22 | G62: 81.21 | H62: 62.47 | I62: 62.47 | K62: >3000 | M62: 0 | N62: 0 | O62: 0 | P62: 0 | Q62: шт | R62: 0.068 | S62: 0.00087
B63: ALUM04GD-DL50GU5.3 | C63: 4630015264652 | D63: Светильник встраиваемый ALUM MR16 GU5.3 золотой 18x95MM | E63: 1 | F63: 56.22 | G63: 81.21 | H63: 62.47 | I63: 62.47 | K63: >5000 | M63: 0 | N63: 0 | O63: 0 | P63: 0 | Q63: шт | R63: 0.058 | S63: 0.000491
B64: ALUM05CH-DL50GU5.3 | C64: 4260375489312 | D64: Светильник встраиваемый ALUM MR16 GU5.3 хром 22x802MM | E64: 1 | F64: 55.04 | G64: 79.51 | H64: 61.16 | I64: 61.16 | K64: >3000 | M64: 20 | N64: 1223.2 | O64: 1.12 | P64: 0.00814 | Q64: шт | R64: 0.056 | S64: 0.000407
B65: ALUM05BL-DL50GU5.3 | C65: 4260375489336 | D65: Светильник встраиваемый ALUM MR16 GU5.3 черный 22x80MM | E65: 1 | F65: 56.22 | G65: 81.21 | H65: 62.47 | I65: 62.47 | K65: >1000 | M65: 0 | N65: 0 | O65: 0 | P65: 0 | Q65: шт | R65: 0.07 | S65: 0.000407
B66: ALUM05GD-DL50GU5.3 | C66: 4630015264799 | D66: Светильник встраиваемый ALUM MR16 GU5.3 золотой 22x80MM | E66: 1 | F66: 55.04 | G66: 79.51 | H66: 61.16 | I66: 61.16 | K66: >1000 | M66: 0 | N66: 0 | O66: 0 | P66: 0 | Q66: шт | R66: 0.065 | S66: 0.000407
A67: MODERN
A68: Lumin'arte
B69: LUM01BL-DL50GU5.3 | C69: 4630015264836 | D69: Светильник встраиваемый MR16 GU5.3 черный 32x90MM | E69: 1 | F69: 117.75 | G69: 170.08 | H69: 130.83 | I69: =H69*(1-$I$11/100) -> 130.83 | K69: >1000 | M69: 0 | N69: =M69*I69 -> 0 | O69: =M69*R69 -> 0 | P69: =M69*S69 -> 0 | Q69: шт | R69: 0.088 | S69: 0.000412
B70: MOD02CH-DL50GU5.3 | C70: 4630015264867 | D70: Светильник встраиваемый MR16 GU5.3 хром 32x92MM | E70: 1 | F70: 117.75 | G70: 170.08 | H70: 130.83 | I70: 130.83 | K70: >1000 | M70: 0 | N70: 0 | O70: 0 | P70: 0 | Q70: шт | R70: 0.13 | S70: 0.000412
B71: MOD02BR-DL50GU5.3 | C71: 4630015264874 | D71: Светильник встраиваемый MR16 GU5.3 коричневый 32x92MM | E71: 1 | F71: 117.75 | G71: 170.08 | H71: 130.83 | I71: 130.83 | K71: >1000 | M71: 0 | N71: 0 | O71: 0 | P71: 0 | Q71: шт | R71: 0.13 | S71: 0.000412
B72: MOD03WH-DL50GU5.3 | C72: 4630015264881 | D72: Светильник встраиваемый MR16 GU5.3 белый 23x100MM | E72: 1 | F72: 149.03 | G72: 215.27 | H72: 165.59 | I72: 165.59 | K72: >3000 | M72: 0 | N72: 0 | O72: 0 | P72: 0 | Q72: шт | R72: 0.08 | S72: 0.000411
B73: MOD04BR-DL50GU5.3 | C73: 4630015264911 | D73: Светильник встраиваемый MR16 GU5.3 коричневый 23x90MM | E73: 1 | F73: 133.83 | G73: 193.31 | H73: 148.7 | I73: 148.7 | K73: >3000 | M73: 0 | N73: 0 | O73: 0 | P73: 0 | Q73: шт | R73: 0.13 | S73: 0.000416
B74: SILV03CH-DL50GU5.3 | C74: 4630015264898 | D74: Светильник встраиваемый MR16 GU5.3 хром 32x92MM | E74: 1 | F74: 107.15 | G74: 154.78 | H74: 119.06 | I74: 119.06 | K74: >3000 | M74: 0 | N74: 0 | O74: 0 | P74: 0 | Q74: шт | R74: 0.12 | S74: 0.000441
A75: POLYRESIN
A76: Lumin'arte
B77: PL01-DL50GU5.3-CH | C77: 4260529290122 | D77: Светильник встраиваемый MR16 GU5.3 прозрачный/хром 30x98MM | E77: 1 | F77: 87.45 | G77: 126.32 | H77: 97.17 | I77: =H77*(1-$I$11/100) -> 97.17 | K77: 37 | M77: 0 | N77: =M77*I77 -> 0 | O77: =M77*R77 -> 0 | P77: =M77*S77 -> 0 | Q77: шт | R77: 0.122 | S77: 0.00043
B78: PL02-DL50GU5.3-GD | C78: 4260529290146 | D78: Светильник встраиваемый MR16 GU5.3 прозрачный/золото 30x98MM | E78: 1 | F78: 91.21 | G78: 131.74 | H78: 101.34 | I78: 101.34 | K78: >500 | M78: 0 | N78: 0 | O78: 0 | P78: 0 | Q78: шт | R78: 0.118 | S78: 0.00043
B79: PL05-DL50GU5.3-GD | C79: 4260529290207 | D79: Светильник встраиваемый MR16 GU5.3 прозрачный/золото 45x100MM | E79: 1 | F79: 152.42 | G79: 220.17 | H79: 169.36 | I79: 169.36 | K79: >100 | M79: 0 | N79: 0 | O79: 0 | P79: 0 | Q79: шт | R79: 0.164 | S79: 0.000578
B80: PL06-DL50GU5.3-GD | C80: 4260529290221 | D80: Светильник встраиваемый MR16 GU5.3 прозрачный/золото 45x100MM | E80: 1 | F80: 163.67 | G80: 236.42 | H80: 181.86 | I80: 181.86 | K80: >1000 | M80: 0 | N80: 0 | O80: 0 | P80: 0 | Q80: шт | R80: 0.212 | S80: 0.000578
B81: PL07-DL50GU5.3-GD | C81: 4260529290245 | D81: Светильник встраиваемый MR16 GU5.3 прозрачный/золото 22x100MM | E81: 1 | F81: 91.21 | G81: 131.74 | H81: 101.34 | I81: 101.34 | K81: >1000 | M81: 0 | N81: 0 | O81: 0 | P81: 0 | Q81: шт | R81: 0.12 | S81: 0.00125
B82: PL08-DL50GU5.3-GD | C82: 4260529290269 | D82: Светильник встраиваемый MR16 GU5.3 прозрачный/коричневый 22x100MM | E82: 1 | F82: 96.21 | G82: 138.97 | H82: 106.9 | I82: 106.9 | K82: >1000 | M82: 0 | N82: 0 | O82: 0 | P82: 0 | Q82: шт | R82: 0.117 | S82: 0.000419
B83: PL09-DLL50GU5.3-3W | C83: 4260529290283 | D83: Светильник встраиваемый MR16 GU5.3 прозрачный/золото 22x100MM | E83: 1 | F83: 126.19 | G83: 182.27 | H83: 140.21 | I83: 140.21 | K83: >1000 | M83: 0 | N83: 0 | O83: 0 | P83: 0 | Q83: шт | R83: 0.126 | S83: 0.00043
B84: PL10-DLL50GU.53-3W | C84: 4260529290306 | D84: Светильник встраиваемый MR16 GU5.3 с LED 3W подсветкой прозрачный/золото 22x100MM | E84: 1 | F84: 124.94 | G84: 180.47 | H84: 138.82 | I84: 138.82 | K84: >500 | M84: 0 | N84: 0 | O84: 0 | P84: 0 | Q84: шт | R84: 0.157 | S84: 0.000419
B85: PL11-DLL50GU5.3-3W | C85: 4260529290320 | D85: Светильник встраиваемый MR16 GU5.3 с LED 3W подсветкой прозрачный/золото 22x100MM | E85: 1 | F85: 122.44 | G85: 176.85 | H85: 136.04 | I85: 136.04 | K85: >500 | M85: 0 | N85: 0 | O85: 0 | P85: 0 | Q85: шт | R85: 0.128 | S85: 0.00043
B86: PL12-DLL50GU5.3-3W | C86: 4260529290344 | D86: Светильник встраиваемый MR16 GU5.3 с LED 3W подсветкой прозрачный/золото 22x100MM | E86: 1 | F86: 122.44 | G86: 176.85 | H86: 136.04 | I86: 136.04 | K86: >500 | M86: 0 | N86: 0 | O86: 0 | P86: 0 | Q86: шт | R86: 0.134 | S86: 0.00043
A87: CRYSTALL
A88: Lumin'arte
B89: CT108BR-DL50GU5.3 | C89: 4630015264812 | D89: Светильник встраиваемый кристалл MR16 GU5.3 прозрачный/коричневый 55x92MM | E89: 1 | F89: 153.33 | G89: 221.48 | H89: 170.37 | I89: =H89*(1-$I$11/100) -> 170.37 | K89: >1000 | M89: 0 | N89: =M89*I89 -> 0 | O89: =M89*R89 -> 0 | P89: =M89*S89 -> 0 | Q89: шт | R89: 0.165 | S89: 0.00065
B90: CT530PP-DL50GU5.3 | C90: 4650001829931 | D90: Светильник встраиваемый кристалл MR16 GU5.3 прозрачный/фиолетовый 49x87MM | E90: 1 | F90: 310.4 | G90: 448.36 | H90: 344.89 | I90: 344.89 | K90: >100 | M90: 0 | N90: 0 | O90: 0 | P90: 0 | Q90: шт | R90: 0.174 | S90: 0.000727
B91: CT583GD-DL50GU5.3 | C91: 4260529291945 | D91: Светильник встраиваемый кристалл MR16 GU5.3 прозрачный/золото 49x85MM | E91: 1 | F91: 124.87 | G91: 180.36 | H91: 138.74 | I91: 138.74 | K91: >5000 | M91: 0 | N91: 0 | O91: 0 | P91: 0 | Q91: шт | R91: 0.13 | S91: 0.000541
B92: CT583CR-DL50GU5.3 | C92: 4260375485840 | D92: Светильник встраиваемый кристалл MR16 GU5.3 прозрачный/хром 49x85MM | E92: 1 | F92: 124.87 | G92: 180.36 | H92: 138.74 | I92: 138.74 | K92: >5000 | M92: 0 | N92: 0 | O92: 0 | P92: 0 | Q92: шт | R92: 0.132 | S92: 0.000541
B93: CT716GD-DL50GU5.3 | C93: 4260375489398 | D93: Светильник встраиваемый кристалл MR16 GU5.3 прозрачный/золото 55x87MM | E93: 1 | F93: 212.47 | G93: 306.9 | H93: 236.08 | I93: 236.08 | K93: >5000 | M93: 0 | N93: 0 | O93: 0 | P93: 0 | Q93: шт | R93: 0.158 | S93: 0.00058
B94: CT716CR-DL50GU5.3 | C94: 4260375489374 | D94: Светильник встраиваемый кристалл MR16 GU5.3 прозрачный/хром 55x87MM | E94: 1 | F94: 210.28 | G94: 303.73 | H94: 233.64 | I94: 233.64 | K94: >5000 | M94: 0 | N94: 0 | O94: 0 | P94: 0 | Q94: шт | R94: 0.158 | S94: 0.000596
B95: CT108CR-DL50GU5.3 | C95: 4630015264805 | D95: Светильник встраиваемый кристалл MR16 GU5.3 прозрачный/хром 55x92MM | E95: 1 | F95: 143.84 | G95: 207.77 | H95: 159.82 | I95: 159.82 | K95: >1000 | M95: 0 | N95: 0 | O95: 0 | P95: 0 | Q95: шт | R95: 0.165 | S95: 0.00065
A96: DLUS
A97: Lumin'arte
B98: DLUSWD-6W-4K | C98: 4260529295189 | D98: Светильник встраиваемый Luminarte DLUSWD-6W-4K 510LM 6W металл IP44 21*118ММ | E98: 1 | F98: 321.3 | G98: 464.1 | H98: 357 | I98: =H98*(1-$I$11/100) -> 357 | K98: >1000 | M98: 0 | N98: =M98*I98 -> 0 | O98: =M98*R98 -> 0 | P98: =M98*S98 -> 0 | Q98: шт | R98: 0.174 | S98: 0.000835 | T98: НОВИНКА!
B99: DLUSWD-9W-4K | C99: 4260529295202 | D99: Светильник встраиваемый Luminarte DLUSWD-9W-4K 765LM металл IP44 21*145MM | E99: 1 | F99: 437.22 | G99: 631.54 | H99: 485.8 | I99: 485.8 | K99: >3000 | M99: 0 | N99: 0 | O99: 0 | P99: 0 | Q99: кор | R99: 0.259 | S99: 0.001182 | T99: НОВИНКА!
B100: DLUSWH-DLL5W | C100: 4260375485543 | D100: Светильник LED ультратонкий встраиваемый 5W 4000K 325LM круг белый 20x89MM | E100: 1 | F100: 105.34 | G100: 152.15 | H100: 117.04 | I100: 117.04 | K100: >5000 | M100: 0 | N100: 0 | O100: 0 | P100: 0 | Q100: шт | R100: 0.106 | S100: 0.000374
B101: DLUSCH-DLL5W | C101: 4260375485529 | D101: Светильник LED ультратонкий встраиваемый 5W 4000K 325LM круг хром 20x89MM | E101: 1 | F101: 139.99 | G101: 202.2 | H101: 155.54 | I101: 155.54 | K101: >3000 | M101: 0 | N101: 0 | O101: 0 | P101: 0 | Q101: шт | R101: 0.104 | S101: 0.000374
B102: DLUSNL-DLL5W | C102: 4260375485567 | D102: Светильник LED ультратонкий встраиваемый 5W 4000K 325LM круг никель 20x89MM | E102: 1 | F102: 139.99 | G102: 202.2 | H102: 155.54 | I102: 155.54 | K102: >5000 | M102: 0 | N102: 0 | O102: 0 | P102: 0 | Q102: шт | R102: 0.104 | S102: 0.000374
B103: DLUSWH-DLL5W-S | C103: 4260529293024 | D103: Светильник LED ультратонкий встраиваемый 5W 4000K 325LM квадрат белый 20x80MM | E103: 1 | F103: 127.68 | G103: 184.43 | H103: 141.87 | I103: 141.87 | K103: >5000 | M103: 0 | N103: 0 | O103: 0 | P103: 0 | Q103: шт | R103: 0.135 | S103: 0.000572
B104: DLUSCH-DLL5W-S | C104: 4260529293048 | D104: Светильник LED ультратонкий встраиваемый 5W 4000K 325LM квадрат хром 22x85MM | E104: 1 | F104: 180.16 | G104: 260.23 | H104: 200.18 | I104: 200.18 | K104: >5000 | M104: 0 | N104: 0 | O104: 0 | P104: 0 | Q104: шт | R104: 0.135 | S104: 0.000572
B105: DLUSNL-DLL5W-S | C105: 4260529293062 | D105: Светильник LED ультратонкий встраиваемый 5W 4000K 325LM квадрат никель 20x80MM | E105: 1 | F105: 180.16 | G105: 260.23 | H105: 200.18 | I105: 200.18 | K105: >5000 | M105: 0 | N105: 0 | O105: 0 | P105: 0 | Q105: шт | R105: 0.135 | S105: 0.000572
A106: LED
A107: Lumin'arte
B108: LED01-DLL4W | C108: 4630015262429 | D108: Светильник LED мебельный 4W 4000K 325LM хром 20x60MM | E108: 1 | F108: 172.42 | G108: 249.05 | H108: 191.58 | I108: =H108*(1-$I$11/100) -> 191.58 | K108: >1000 | M108: 0 | N108: =M108*I108 -> 0 | O108: =M108*R108 -> 0 | P108: =M108*S108 -> 0 | Q108: шт | R108: 0.06 | S108: 0.000318
A109: CFL
A110: Настенные светильники
A111: Lumin'arte
B112: Velis-WL60E27*2BG | C112: 4630015263808 | D112: Светильник настенный Velis Тип ламп E27*2*60W материал: металл, стекло L400*H265*E200 | E112: 1 | F112: 895.98 | G112: 1294.19 | H112: 995.53 | I112: =H112*(1-$I$11/100) -> 995.53 | K112: 11 | M112: 0 | N112: =M112*I112 -> 0 | O112: =M112*R112 -> 0 | P112: =M112*S112 -> 0 | Q112: шт | R112: 1.46 | S112: 0.01746
B113: Rafaelo-WL60E14*2GD | C113: 4630015263310 | D113: Светильник настенный Rafaelo Тип ламп E14*60W*2 материал: металл,стекло, хрусталь W380*H340*E190 | E113: 1 | F113: 1049.89 | G113: 1516.5 | H113: 1166.54 | I113: =H113*(1-$I$11/100) -> 1166.54 | K113: 3 | M113: 0 | N113: =M113*I113 -> 0 | O113: =M113*R113 -> 0 | P113: =M113*S113 -> 0 | Q113: шт | R113: 1.085 | S113: 0.010339
A114: PANDA
A115: Lumin'arte
B116: PANDA-WL40E27-1BL | C116: 4260529290047 | D116: Светильник настенный PANDA Тип ламп 1*40W E27 материал: металл 250*130*140 голубой | E116: 1 | F116: 1069.6 | G116: 1544.97 | H116: 1188.44 | I116: =H116*(1-$I$11/100) -> 1188.44 | K116: >500 | M116: 0 | N116: =M116*I116 -> 0 | O116: =M116*R116 -> 0 | P116: =M116*S116 -> 0 | Q116: шт | R116: 0.9 | S116: 0.0081
B117: PANDA-WL40E27-1YL | C117: 4260529290054 | D117: Светильник настенный PANDA Тип ламп 1*40W E27 материал: металл 250*130*140 желтый | E117: 1 | F117: 1069.6 | G117: 1544.97 | H117: 1188.44 | I117: 1188.44 | K117: >500 | M117: 0 | N117: 0 | O117: 0 | P117: 0 | Q117: шт | R117: 0.9 | S117: 0.0081
B118: PANDA-TL40E27-1BL | C118: 4260529290085 | D118: Светильник настольный PANDA Тип ламп 1*40W E27 материал: металл 180*130*300 голубой | E118: 1 | F118: 1634.46 | G118: 2360.89 | H118: 1816.07 | I118: 1816.07 | K118: >250 | M118: 0 | N118: 0 | O118: 0 | P118: 0 | Q118: шт | R118: 1.45 | S118: 0.0132
B119: PANDA-TL40E27-1YL | C119: 4260529290092 | D119: Светильник настольный PANDA Тип ламп 1*40W E27 материал: металл 180*130*300 желтый | E119: 1 | F119: 1634.46 | G119: 2360.89 | H119: 1816.07 | I119: 1816.07 | K119: >500 | M119: 0 | N119: 0 | O119: 0 | P119: 0 | Q119: шт | R119: 1.45 | S119: 0.0132
B120: PANDA-PL40E27-3BL | C120: 4260529290061 | D120: Светильник подвесной PANDA Тип ламп 3*60W E27 материал: металл 500*500*1000 голубой | E120: 1 | F120: 3462.45 | G120: 5001.32 | H120: 3847.17 | I120: 3847.17 | K120: >250 | M120: 0 | N120: 0 | O120: 0 | P120: 0 | Q120: шт | R120: 3.3 | S120: 0.023936
B121: PANDA-PL40E27-3YL | C121: 4260529290078 | D121: Светильник подвесной PANDA Тип ламп 3*60W E27 материал: металл 500*500*1000 желтый | E121: 1 | F121: 3462.45 | G121: 5001.32 | H121: 3847.17 | I121: 3847.17 | K121: >500 | M121: 0 | N121: 0 | O121: 0 | P121: 0 | Q121: шт | R121: 2.51 | S121: 0.023936
A122: ROMANCE
A123: Lumin'arte
B124: Romance-WL60E27-1WH | C124: 4260375488391 | D124: Светильник настенный Romance Тип ламп E27 1*60W материал: металл,стекло W180*H280*E290 | E124: 1 | F124: 670.79 | G124: 968.92 | H124: 745.32 | I124: =H124*(1-$I$11/100) -> 745.32 | K124: 33 | M124: 0 | N124: =M124*I124 -> 0 | O124: =M124*R124 -> 0 | P124: =M124*S124 -> 0 | Q124: шт | R124: 1.59 | S124: 0.01849
B125: Romance-CL60E27-5WH | C125: 4260375488414 | D125: Светильник подвесной Romance Тип ламп E27 5*60W материал: металл,стекло D745*900 | E125: 1 | F125: 3590.6 | G125: 5186.42 | H125: 3989.55 | I125: =H125*(1-$I$11/100) -> 3989.55 | K125: 29 | M125: 0 | N125: =M125*I125 -> 0 | O125: =M125*R125 -> 0 | P125: =M125*S125 -> 0 | Q125: шт | R125: 7.3 | S125: 0.058968
A126: ANESSI
A127: Lumin'arte
B128: Anessi-WL60E14*1WH | C128: 4630015264355 | D128: Светильник настенный Anessi Тип ламп E14*1*60W материал: металл, акрил 170*140 | E128: 1 | F128: 409.76 | G128: 591.88 | H128: 455.29 | I128: =H128*(1-$I$11/100) -> 455.29 | K128: 9 | M128: 0 | N128: =M128*I128 -> 0 | O128: =M128*R128 -> 0 | P128: =M128*S128 -> 0 | Q128: шт | R128: 0.69 | S128: 0.007638
B129: Anessi-WL60E14*2WH | C129: 4630015263266 | D129: Светильник настенный Anessi Тип ламп E14*2*60W материал: металл, акрил L450*H200*E200 | E129: 1 | F129: 722.48 | G129: 1043.58 | H129: 802.75 | I129: =H129*(1-$I$11/100) -> 802.75 | K129: 7 | M129: 0 | N129: =M129*I129 -> 0 | O129: =M129*R129 -> 0 | P129: =M129*S129 -> 0 | Q129: шт | R129: 1.05 | S129: 0.013104
B130: Anessi-CL60E14*5WH | C130: 4630015263273 | D130: Светильник потолочный Anessi Тип ламп E14*5*60W материал: металл, акрил D600*800 | E130: 1 | F130: 1848.83 | G130: 2670.53 | H130: 2054.25 | I130: =H130*(1-$I$11/100) -> 2054.25 | K130: 7 | M130: 0 | N130: =M130*I130 -> 0 | O130: =M130*R130 -> 0 | P130: =M130*S130 -> 0 | Q130: шт | R130: 2.08 | S130: 0.022275
A131: BIRD
A132: Lumin'arte
B133: Bird-WL40G9-1BL | C133: 4260375488360 | D133: Светильник настенный Bird Тип ламп G9 материал: металл L220*W190*H240 | E133: 1 | F133: 644.68 | G133: 931.2 | H133: 716.31 | I133: =H133*(1-$I$11/100) -> 716.31 | K133: 13 | M133: 0 | N133: =M133*I133 -> 0 | O133: =M133*R133 -> 0 | P133: =M133*S133 -> 0 | Q133: шт | R133: 0.66 | S133: 0.00756
B134: Bird-CL40G9-3BL | C134: 4260375488377 | D134: Светильник потолочный Bird Тип ламп G9 материал: металл L560*W190*H250 | E134: 1 | F134: 1823.34 | G134: 2633.71 | H134: 2025.93 | I134: =H134*(1-$I$11/100) -> 2025.93 | K134: 54 | M134: 0 | N134: =M134*I134 -> 0 | O134: =M134*R134 -> 0 | P134: =M134*S134 -> 0 | Q134: шт | R134: 1.62 | S134: 0.011628
A135: Подвесные светильники
A136: Lumin'arte
B137: WOODY-PLL20W-3K | C137: 4260529293208 | D137: Cветильник Luminarte LED подвесной WOODY-PLL20W-3K | E137: 2 | F137: 3401.24 | G137: 4912.91 | H137: 3779.16 | I137: =H137*(1-$I$11/100) -> 3779.16 | K137: >250 | M137: 0 | N137: =M137*I137 -> 0 | O137: =M137*R137 -> 0 | P137: =M137*S137 -> 0 | Q137: шт | R137: 2.04 | S137: 0.016403
B138: PLM0040160E27 | C138: 4630015261705 | D138: Светильник подвесной Тип ламп 1*60W E27 материал: металл 200*200*1000 | E138: 1 | F138: 751.94 | G138: 1086.14 | H138: 835.49 | I138: 835.49 | K138: >100 | M138: 0 | N138: 0 | O138: 0 | P138: 0 | Q138: шт | R138: 0.82 | S138: 0.017248
B139: Servi-PL60E27*1BR | C139: 4630015264478 | D139: Светильник подвесной Servi Тип ламп E27*1*60W материал: металл, стекло D200*H1200 | E139: 1 | F139: 1104.79 | G139: 1595.8 | H139: 1227.54 | I139: 1227.54 | K139: 62 | M139: 0 | N139: 0 | O139: 0 | P139: 0 | Q139: шт | R139: 1.3 | S139: 0.0156
B140: Neti-PL60E27*1BR | C140: 4260375485352 | D140: Светильник подвесной Neti Тип ламп E27*1*60W материал: металл,стекло, текстиль D150*H1500 | E140: 1 | F140: 820.85 | G140: 1185.68 | H140: 912.06 | I140: 912.06 | K140: >100 | L140: >100, поставка ожидается 2019-07-03 | M140: 0 | N140: 0 | O140: 0 | P140: 0 | Q140: шт | R140: 0.7 | S140: 0.008303
B141: Prison-PL60E27*1BL | C141: 4630015264485 | D141: Светильник подвесной Prison Тип ламп E27*1*60W материал: металл D200*1000 | E141: 1 | F141: 727.15 | G141: 1050.32 | H141: 807.94 | I141: 807.94 | K141: 19 | L141: >500, поставка ожидается 2019-07-03 | M141: 0 | N141: 0 | O141: 0 | P141: 0 | Q141: шт | R141: 0.7 | S141: 0.009702
B142: CLG0020360E27 | C142: 4630015261644 | D142: Светильник подвесной Тип ламп 3*60W E27 материал: металл, стекло 450*450*1000 | E142: 1 | F142: 4110.28 | G142: 5937.07 | H142: 4566.98 | I142: 4566.98 | K142: 4 | M142: 0 | N142: 0 | O142: 0 | P142: 0 | Q142: шт | R142: 2.5 | S142: 0.062426
B143: CLC0070260E27 | C143: 4650001827371 | D143: Светильник подвесной Тип ламп 2*60W E27 материал: металл, стекло 360*340 | E143: 1 | F143: 1378.29 | G143: 1990.86 | H143: 1531.43 | I143: 1531.43 | K143: 0 | M143: 0 | N143: 0 | O143: 0 | P143: 0 | Q143: шт | R143: 2 | S143: 0.019652
B144: Mariposa-CL40E14-4WH | C144: 4260375488322 | D144: Светильник подвесной Mariposa Тип ламп E14*4*40W материал: текстиль,пластик,хрусталь D400*H250 | E144: 1 | F144: 2441.49 | G144: 3526.6 | H144: 2712.77 | I144: 2712.77 | K144: 41 | M144: 0 | N144: 0 | O144: 0 | P144: 0 | Q144: шт | R144: 3.22 | S144: 0.045387
A145: OREON
A146: Lumin'arte
B147: OREON01-CL60E27*2WH | C147: 4630015264638 | D147: Светильник потолочный OREON01 Тип ламп E27*2*60W материал: металл, стекло 280*280*100 | E147: 1 | F147: 498.21 | G147: 719.64 | H147: 553.57 | I147: =H147*(1-$I$11/100) -> 553.57 | K147: >500 | M147: 0 | N147: =M147*I147 -> 0 | O147: =M147*R147 -> 0 | P147: =M147*S147 -> 0 | Q147: шт | R147: 0.98 | S147: 0.009858
B148: OREON02-CL60E27*2BR | C148: 4630015264621 | D148: Светильник потолочный OREON02 Тип ламп E27*2*60W материал: металл, стекло 320*320*110 | E148: 1 | F148: 540.77 | G148: 781.11 | H148: 600.85 | I148: =H148*(1-$I$11/100) -> 600.85 | K148: >100 | L148: >500, поставка ожидается 2019-07-03 | M148: 0 | N148: =M148*I148 -> 0 | O148: =M148*R148 -> 0 | P148: =M148*S148 -> 0 | Q148: шт | R148: 1 | S148: 0.012614
B149: OREON03-CL60E27*2BR | C149: 4630015264614 | D149: Светильник потолочный OREON03 Тип ламп E27*2*60W материал: металл, стекло 280*280*90 | E149: 1 | F149: 445.28 | G149: 643.19 | H149: 494.76 | I149: =H149*(1-$I$11/100) -> 494.76 | K149: 58 | L149: >250, поставка ожидается 2019-07-03 | M149: 0 | N149: =M149*I149 -> 0 | O149: =M149*R149 -> 0 | P149: =M149*S149 -> 0 | Q149: шт | R149: 0.98 | S149: 0.009858
A150: VIDA
A151: Lumin'arte
B152: Vida-PL40E27-1CP | C152: 4260375488209 | D152: Светильник подвесной Vida Тип ламп E27*1*40W материал: металл,стекло D150*H1110 | E152: 1 | F152: 1071.97 | G152: 1548.4 | H152: 1191.08 | I152: =H152*(1-$I$11/100) -> 1191.08 | K152: 76 | L152: >100, поставка ожидается 2019-07-03 | M152: 0 | N152: =M152*I152 -> 0 | O152: =M152*R152 -> 0 | P152: =M152*S152 -> 0 | Q152: шт | R152: 0.9 | S152: 0.0099
B153: Vida-PL40E27-3CP | C153: 4260375488216 | D153: Светильник подвесной Vida Тип ламп E27*3*40W материал: металл,стекло L750*H1150*W150 | E153: 1 | F153: 2912.32 | G153: 4206.68 | H153: 3235.91 | I153: =H153*(1-$I$11/100) -> 3235.91 | K153: 21 | L153: <100, поставка ожидается 2019-07-03 | M153: 0 | N153: =M153*I153 -> 0 | O153: =M153*R153 -> 0 | P153: =M153*S153 -> 0 | Q153: шт | R153: 2.6 | S153: 0.04158
A154: TULUZA
A155: Lumin'arte
B156: Tuluza-CL60E14*2CH | C156: 4630015263396 | D156: Светильник потолочный Tuluza Тип ламп E14*60W*2 материал: металл, стекло L200*W140*H170 | E156: 1 | F156: 729.64 | G156: 1053.92 | H156: 810.71 | I156: =H156*(1-$I$11/100) -> 810.71 | K156: >500 | M156: 0 | N156: =M156*I156 -> 0 | O156: =M156*R156 -> 0 | P156: =M156*S156 -> 0 | Q156: шт | R156: 0.8 | S156: 0.007056
B157: Tuluza-CL60E14*3CH | C157: 4630015263402 | D157: Светильник потолочный Tuluza Тип ламп E14*60W*3 материал: металл, стекло L350*W140*H200 | E157: 1 | F157: 1012.01 | G157: 1461.79 | H157: 1124.45 | I157: =H157*(1-$I$11/100) -> 1124.45 | K157: 6 | L157: >250, поставка ожидается 2019-07-03 | M157: 0 | N157: =M157*I157 -> 0 | O157: =M157*R157 -> 0 | P157: =M157*S157 -> 0 | Q157: шт | R157: 1.05 | S157: 0.011178
A158: SIMPLE
A159: Lumin'arte
B160: Simple-CL40E14*3WN | C160: 4630015264416 | D160: Светильник потолочный Simple Тип ламп E14*3*60W материал: металл,пластик D200*H330 | E160: 1 | F160: 678.12 | G160: 979.51 | H160: 753.47 | I160: =H160*(1-$I$11/100) -> 753.47 | K160: >1000 | M160: 0 | N160: =M160*I160 -> 0 | O160: =M160*R160 -> 0 | P160: =M160*S160 -> 0 | Q160: шт | R160: 1 | S160: 0.008
B161: Simple-CL40E14*5WN | C161: 4630015264423 | D161: Светильник потолочный Simple Тип ламп E14*5*60W материал: металл,пластик D200*H330 | E161: 1 | F161: 1114.07 | G161: 1609.21 | H161: 1237.85 | I161: =H161*(1-$I$11/100) -> 1237.85 | K161: >1000 | M161: 0 | N161: =M161*I161 -> 0 | O161: =M161*R161 -> 0 | P161: =M161*S161 -> 0 | Q161: шт | R161: 1.8 | S161: 0.0096
A162: LUCKY
A163: Lumin'arte
B164: LUCKY-CL60E14*3BL | C164: 4630015265673 | D164: Светильник потолочный LUCKY Тип ламп E14*3*60W материал: металл,стекло 480*240 | E164: 1 | F164: 804.93 | G164: 1162.68 | H164: 894.37 | I164: =H164*(1-$I$11/100) -> 894.37 | K164: >1000 | M164: 0 | N164: =M164*I164 -> 0 | O164: =M164*R164 -> 0 | P164: =M164*S164 -> 0 | Q164: шт | R164: 1.02 | S164: 0.012705
B165: LUCKY-CL60E14*5BL | C165: 4630015265680 | D165: Светильник потолочный LUCKY Тип ламп E24*5*60W материал: металл,стекло 480*240 | E165: 1 | F165: 1243.14 | G165: 1795.65 | H165: 1381.27 | I165: =H165*(1-$I$11/100) -> 1381.27 | K165: >1000 | M165: 0 | N165: =M165*I165 -> 0 | O165: =M165*R165 -> 0 | P165: =M165*S165 -> 0 | Q165: шт | R165: 1.7 | S165: 0.017712
A166: AURA
A167: Lumin'arte
B168: Aura-CL40E27-3CH | C168: 4260375488247 | D168: Светильник потолочный Aura Тип ламп E14*3*40W материал: металл,стекло D550*H230 | E168: 1 | F168: 1273.13 | G168: 1838.97 | H168: 1414.59 | I168: =H168*(1-$I$11/100) -> 1414.59 | K168: 17 | L168: >100, поставка ожидается 2019-07-03 | M168: 0 | N168: =M168*I168 -> 0 | O168: =M168*R168 -> 0 | P168: =M168*S168 -> 0 | Q168: шт | R168: 1.38 | S168: 0.01904
B169: Aura-CL40E27-5CH | C169: 4260375488254 | D169: Светильник потолочный Aura Тип ламп E14*5*40W материал: металл,стекло D550*H230 | E169: 1 | F169: 2211.14 | G169: 3193.87 | H169: 2456.82 | I169: =H169*(1-$I$11/100) -> 2456.82 | K169: 47 | L169: >100, поставка ожидается 2019-07-03 | M169: 0 | N169: =M169*I169 -> 0 | O169: =M169*R169 -> 0 | P169: =M169*S169 -> 0 | Q169: шт | R169: 2.01 | S169: 0.027965
A170: PRISON
A171: Lumin'arte
B172: PRISON-CL60E14-3WB | C172: 4260529292126 | D172: Светильник подвесной PRISON Тип ламп E14*3*60W материал: металл,стекло D550*720 | F172: 2353.5 | G172: 3399.5 | H172: 2615 | I172: =H172*(1-$I$11/100) -> 2615 | K172: 91 | M172: 0 | N172: =M172*I172 -> 0 | O172: =M172*R172 -> 0 | P172: =M172*S172 -> 0 | Q172: шт | R172: 2 | S172: 0.018734
B173: PRISON-CL60E14-5WB | C173: 4260529292133 | D173: Светильник подвесной PRISON Тип ламп E14*5*60W материал: металл,стекло D550*720 | E173: 1 | F173: 3474.96 | G173: 5019.39 | H173: 3861.07 | I173: =H173*(1-$I$11/100) -> 3861.07 | K173: >100 | M173: 0 | N173: =M173*I173 -> 0 | O173: =M173*R173 -> 0 | P173: =M173*S173 -> 0 | Q173: шт | R173: 2.8 | S173: 0.026622
A174: GENEVA
A175: Lumin'arte
B176: Geneva-CL60E14*5FGD | C176: 4630015263570 | D176: Светильник потолочный Geneva Тип ламп E14*60W*5 материал: металл, стекло D500*H700 | E176: 1 | F176: 1859.09 | G176: 2685.35 | H176: 2065.65 | I176: =H176*(1-$I$11/100) -> 2065.65 | K176: >100 | M176: 0 | N176: =M176*I176 -> 0 | O176: =M176*R176 -> 0 | P176: =M176*S176 -> 0 | Q176: шт | R176: 2.71 | S176: 0.020748
A177: LUCH
A178: Lumin'arte
B179: Luch-CL40E14-1WH | C179: 4260375488261 | D179: Светильник потолочный Luch Тип ламп E14*1*40W материал: металл D100*H200 | E179: 1 | F179: 538.43 | G179: 777.74 | H179: 598.26 | I179: =H179*(1-$I$11/100) -> 598.26 | K179: 0 | L179: >100, поставка ожидается 2019-07-03 | M179: 0 | N179: =M179*I179 -> 0 | O179: =M179*R179 -> 0 | P179: =M179*S179 -> 0 | Q179: шт | R179: 0.446 | S179: 0.004466
B180: Luch-PL40E14-3WH | C180: 4260375488292 | D180: Светильник подвесной Luch Тип ламп E14*3*40W материал: металл 440*100*1000 | E180: 1 | F180: 1433.37 | G180: 2070.42 | H180: 1592.63 | I180: =H180*(1-$I$11/100) -> 1592.63 | K180: 36 | M180: 0 | N180: =M180*I180 -> 0 | O180: =M180*R180 -> 0 | P180: =M180*S180 -> 0 | Q180: шт | R180: 1 | S180: 0.008528
B181: Luch-CL40E14-3WH | C181: 4260375488285 | D181: Светильник потолочный Luch Тип ламп E14*3*40W материал: металл D400*220 | E181: 1 | F181: 1379.97 | G181: 1993.29 | H181: 1533.3 | I181: =H181*(1-$I$11/100) -> 1533.3 | K181: >100 | M181: 0 | N181: =M181*I181 -> 0 | O181: =M181*R181 -> 0 | P181: =M181*S181 -> 0 | Q181: шт | R181: 1.1 | S181: 0.0072
B182: Luch-CL40E14-5WH | C182: 4260375488308 | D182: Светильник потолочный Luch Тип ламп E14*5*40W материал: металл D400*220 | E182: 1 | F182: 1975.93 | G182: 2854.12 | H182: 2195.48 | I182: =H182*(1-$I$11/100) -> 2195.48 | K182: 49 | M182: 0 | N182: =M182*I182 -> 0 | O182: =M182*R182 -> 0 | P182: =M182*S182 -> 0 | Q182: шт | R182: 1.3 | S182: 0.012
A183: Люстры
A184: Lumin'arte
B185: Kadri-CL60E27*3SN | C185: 4630015263372 | D185: Светильник потолочный Kadri Тип ламп E27*60W*3 материал: металл, стекло D400*H250 | E185: 1 | F185: 1112.91 | G185: 1607.54 | H185: 1236.57 | I185: =H185*(1-$I$11/100) -> 1236.57 | K185: 16 | M185: 0 | N185: =M185*I185 -> 0 | O185: =M185*R185 -> 0 | P185: =M185*S185 -> 0 | Q185: шт | R185: 1.75 | S185: 0.029403
B186: Zephyr-CL40E27-5BL | C186: 4260375488230 | D186: Светильник потолочный Zephyr Тип ламп E27*5*40W материал: металл,стекло,текстиль D500*H320 | E186: 1 | F186: 2414.46 | G186: 3487.55 | H186: 2682.73 | I186: 2682.73 | K186: 74 | L186: >100, поставка ожидается 2019-07-03 | M186: 0 | N186: 0 | O186: 0 | P186: 0 | Q186: шт | R186: 2.21 | S186: 0.030634
B187: Gera-CL60E14*6CH | C187: 4630015264454 | D187: Светильник потолочный Gera Тип ламп E14*5*60W материал металл , стекло D650*225 | E187: 1 | F187: 1647.54 | G187: 2379.78 | H187: 1830.6 | I187: 1830.6 | K187: 91 | M187: 0 | N187: 0 | O187: 0 | P187: 0 | Q187: шт | R187: 2.3 | S187: 0.022032
B188: FONTANA-CL60E27-5WH | C188: 4260529292140 | D188: Светильник потолочный FONTANA Тип ламп E27*5*60W материал: металл D550*285 | F188: 3527.6 | G188: 5095.42 | H188: 3919.55 | I188: 3919.55 | K188: >100 | M188: 0 | N188: 0 | O188: 0 | P188: 0 | Q188: шт | R188: 2.1 | S188: 0.01131
B189: Dracula-CL40E27-5BL | C189: 4260375488339 | D189: Светильник потолочный Dracula Тип ламп E27 3*40W материал: металл D500*H335 | E189: 1 | F189: 2691.17 | G189: 3887.25 | H189: 2990.19 | I189: 2990.19 | K189: >250 | M189: 0 | N189: 0 | O189: 0 | P189: 0 | Q189: шт | R189: 2.21 | S189: 0.023408
B190: Christi-CL60E14*5CH | C190: 4630015263495 | D190: Люстра подвесная Christi Тип ламп 5*E14*40W материал: металл, стекло D550*H1100 | E190: 1 | F190: 5210.96 | G190: 7526.95 | H190: 5789.96 | I190: 5789.96 | K190: >100 | M190: 0 | N190: 0 | O190: 0 | P190: 0 | Q190: шт | R190: 5.3 | S190: 0.04032
A191: PRINCES
A192: Lumin'arte
B193: Princes-CL60E14*3WH | C193: 4630015264515 | D193: Светильник потолочный Princes Тип ламп E14*3*60W материал: металл, стекло D430*H1000 | E193: 1 | F193: 1375.86 | G193: 1987.35 | H193: 1528.73 | I193: =H193*(1-$I$11/100) -> 1528.73 | K193: >100 | M193: 0 | N193: =M193*I193 -> 0 | O193: =M193*R193 -> 0 | P193: =M193*S193 -> 0 | Q193: шт | R193: 1.35 | S193: 0.012
B194: Princes-CL60E14*5WH | C194: 4630015264522 | D194: Светильник потолочный Princes Тип ламп E14*5*60W материал: металл, стекло D500*H1000 | E194: 1 | F194: 1992.86 | G194: 2878.58 | H194: 2214.29 | I194: =H194*(1-$I$11/100) -> 2214.29 | K194: 8 | M194: 0 | N194: =M194*I194 -> 0 | O194: =M194*R194 -> 0 | P194: =M194*S194 -> 0 | Q194: шт | R194: 2.05 | S194: 0.014336
A195: Хрустальные люстры
A196: Lumin'arte
B197: Alegria-PL50GU10-3BG | C197: 4260375488223 | D197: Светильник подвесной Alegria Тип ламп GU10*3*50W материал: металл,хрусталь D300*H1500 | E197: 1 | F197: 2169.26 | G197: 3133.38 | H197: 2410.29 | I197: =H197*(1-$I$11/100) -> 2410.29 | K197: 26 | M197: 0 | N197: =M197*I197 -> 0 | O197: =M197*R197 -> 0 | P197: =M197*S197 -> 0 | Q197: шт | R197: 2.8 | S197: 0.026136
B198: CLK0010560E14GD | C198: 4650001827470 | D198: Люстра потолочная CRYSTELLE Тип ламп 5*60W E14 материал: металл,стекло, хрусталь 600*950 | E198: 1 | F198: 5140.16 | G198: 7424.68 | H198: 5711.29 | I198: =H198*(1-$I$11/100) -> 5711.29 | K198: 11 | M198: 0 | N198: =M198*I198 -> 0 | O198: =M198*R198 -> 0 | P198: =M198*S198 -> 0 | Q198: шт | R198: 4.8 | S198: 0.024108
B199: Christi-CL60E14*3CH | C199: 4630015263501 | D199: Люстраподвесная Christi Тип ламп 3*E14*40W материал: металл, стекло D550*H1100 | E199: 1 | F199: 3977.66 | G199: 5745.51 | H199: 4419.62 | I199: =H199*(1-$I$11/100) -> 4419.62 | K199: 8 | M199: 0 | N199: =M199*I199 -> 0 | O199: =M199*R199 -> 0 | P199: =M199*S199 -> 0 | Q199: шт | R199: 3.9 | S199: 0.03528
B200: Brilliant-CL60E14-5WH | C200: 4260375488384 | D200: Светильник потолочный Brilliant Тип ламп E14 5*60W материал: металл,хрусталь D495*310 | E200: 1 | F200: 3944.31 | G200: 5697.34 | H200: 4382.57 | I200: =H200*(1-$I$11/100) -> 4382.57 | K200: >100 | M200: 0 | N200: =M200*I200 -> 0 | O200: =M200*R200 -> 0 | P200: =M200*S200 -> 0 | Q200: шт | R200: 2.6 | S200: 0.011088
L201: ИТОГО: | M201: =SUM(M12:M200) -> 70 | N201: =SUM(N12:N200) -> 5102.7 | O201: =SUM(O12:O200) -> 5.46 | P201: =SUM(P12:P200) -> 0.0428

Sheet Распродажа
N1: ООО «Вольта Русланд»
N2: ИНН/КПП/ОГРН 7716662181 / 771901001 / 1107746281323
N3: 119361, г. Москва, ул. Наташи Ковшовой, д. 4, стр. 1, офис 23
N4: Тел.: +7(495) 651-87-22, факс: +7 (495) 721-24-20, info@wolta.ru
H6: Дата формирования прайс-листа: | M6: 30.05.2019
A7: Номенклатура | H7: Заказ
A8: Фото | B8: Ссылка на сайт | C8: Штрихкод / Артикул | D8: Наименование | E8: Гарантия, г. | F8: Цена, руб. | G8: Остаток | H8: Кол-во, шт | I8: Сумма, руб. | J8: Вес, кг | K8: Объем, м3 | L8: Ед. изм. | M8: Вес, кг | N8: Объем, м3
A12: LED Simple
A13: G45 6W
A14: WOLTA
B15: 25Y45GL6E14-S | C15: 4260375483099 | D15: Лампа LED WOLTA Simple G45 6Вт 560Лм Е14 3000К 1/50 | E15: 2 | F15: 33.56 | G15: >5000 | H15: 0 | I15: =H15*F15 -> 0 | J15: =H15*M15 -> 0 | K15: =H15*N15 -> 0 | L15: шт | M15: 0.053 | N15: 0.000295
B16: 25S45GL6E14-S | C16: 4260375483112 | D16: Лампа LED WOLTA Simple G45 6Вт 560Лм Е14 4000К 1/50 | E16: 2 | F16: 33.56 | G16: >5000 | H16: 0 | I16: =H16*F16 -> 0 | J16: =H16*M16 -> 0 | K16: =H16*N16 -> 0 | L16: шт | M16: 0.053 | N16: 0.000295
B17: 25Y45GL6E27-S | C17: 4260375483136 | D17: Лампа LED WOLTA Simple G45 6Вт 560Лм Е27 3000К 1/50 | E17: 2 | F17: 33.56 | G17: >5000 | H17: 0 | I17: =H17*F17 -> 0 | J17: =H17*M17 -> 0 | K17: =H17*N17 -> 0 | L17: шт | M17: 0.053 | N17: 0.000295
B18: 25S45GL6E27-S | C18: 4260375483150 | D18: Лампа LED WOLTA Simple G45 6Вт 560Лм Е27 4000К 1/50 | E18: 2 | F18: 33.56 | G18: >3000 | H18: 0 | I18: =H18*F18 -> 0 | J18: =H18*M18 -> 0 | K18: =H18*N18 -> 0 | L18: шт | M18: 0.053 | N18: 0.000295
A19: C37 6W
A20: WOLTA
B21: 25YC6E14-S | C21: 4260375483174 | D21: Лампа LED WOLTA Simple С37 6Вт 560Лм Е14 3000К 1/50 | E21: 2 | F21: 33.56 | G21: >5000 | H21: 0 | I21: =H21*F21 -> 0 | J21: =H21*M21 -> 0 | K21: =H21*N21 -> 0 | L21: шт | M21: 0.052 | N21: 0.000261
B22: 25SC6E14-S | C22: 4260375483198 | D22: Лампа LED WOLTA Simple С37 6Вт 560Лм Е14 4000К 1/50 | E22: 2 | F22: 33.56 | G22: >5000 | H22: 0 | I22: =H22*F22 -> 0 | J22: =H22*M22 -> 0 | K22: =H22*N22 -> 0 | L22: шт | M22: 0.052 | N22: 0.000261
B23: 25YC6E27-S | C23: 4260375483211 | D23: Лампа LED WOLTA Simple С37 6Вт 560Лм Е27 3000К 1/50 | E23: 2 | F23: 33.56 | G23: >5000 | H23: 0 | I23: =H23*F23 -> 0 | J23: =H23*M23 -> 0 | K23: =H23*N23 -> 0 | L23: шт | M23: 0.052 | N23: 0.000261
B24: 25SC6E27-S | C24: 4260375483235 | D24: Лампа LED WOLTA Simple С37 6Вт 560Лм Е27 4000К 1/50 | E24: 2 | F24: 33.56 | G24: >1000 | H24: 0 | I24: =H24*F24 -> 0 | J24: =H24*M24 -> 0 | K24: =H24*N24 -> 0 | L24: шт | M24: 0.052 | N24: 0.000261
A25: GU5.3 6W
A26: WOLTA
B27: 25YMR16-220-6GU5.3-S | C27: 4260375483259 | D27: Лампа LED WOLTA Simple MR16 6Вт 500Лм GU5.3 3000К 1/50 | E27: 2 | F27: 33.56 | G27: >5000 | H27: 0 | I27: =H27*F27 -> 0 | J27: =H27*M27 -> 0 | K27: =H27*N27 -> 0 | L27: шт | M27: 0.045 | N27: 0.000231
B28: 25SMR16-220-6GU5.3-S | C28: 4260375483273 | D28: Лампа LED WOLTA Simple MR16 6Вт 500Лм GU5.3 4000К 1/50 | E28: 2 | F28: 33.56 | G28: >3000 | H28: 0 | I28: =H28*F28 -> 0 | J28: =H28*M28 -> 0 | K28: =H28*N28 -> 0 | L28: шт | M28: 0.045 | N28: 0.000231
A29: CFL
A30: Full Spiral 12W
A31: WOLTA
B32: 10YFSP12E14 | C32: 4260258998269 | D32: Лампа CFL WOLTA Full Spiral 12Вт Е14 3000К 1/50 | E32: 1 | F32: 33.56 | G32: 71 | H32: 0 | I32: =H32*F32 -> 0 | J32: =H32*M32 -> 0 | K32: =H32*N32 -> 0 | L32: шт | M32: 0.056 | N32: 0.000235
B33: 10YFSP12E27 | C33: 4260258998320 | D33: Лампа CFL WOLTA Full Spiral 12Вт Е27 3000К 1/50 | E33: 1 | F33: 33.56 | G33: 25 | H33: 0 | I33: =H33*F33 -> 0 | J33: =H33*M33 -> 0 | K33: =H33*N33 -> 0 | L33: шт | M33: 0.076 | N33: 0.000292
A34: Full Spiral 8W
A35: WOLTA
B36: 10YFSP8E14 | C36: 4260258995886 | D36: Лампа CFL WOLTA Full Spiral 8Вт Е14 3000К 1/50 | E36: 1 | F36: 30.51 | G36: >250 | H36: 0 | I36: =H36*F36 -> 0 | J36: =H36*M36 -> 0 | K36: =H36*N36 -> 0 | L36: шт | M36: 0.052 | N36: 0.000261
A37: Точечные светильники
A38: Lumin'arte
B39: 3D-DLL35GU5.3-RD | C39: 4630015265802 | D39: Точечный светильник 3D с LED подстветкой 3W материал металл 90*40 | E39: 1 | F39: 110.85 | G39: >1000 | H39: 0 | I39: =H39*F39 -> 0 | J39: =H39*M39 -> 0 | K39: =H39*N39 -> 0 | L39: шт | M39: 0.175 | N39: 0.000805
B40: XC775-2-G | C40: 4630015261347 | D40: Точечный светильник Тип ламп MR16 G.U.5.3 материал металл ,стекло 90*61 | E40: 1 | F40: 29.49 | G40: >250 | H40: 0 | I40: 0 | J40: 0 | K40: 0 | L40: шт | M40: 0.227 | N40: 0.0008
B41: COB-DLL5W-SR | C41: 4630015264997 | D41: Точечный светильник Тип ламп COB led 5W материал металл , пластик 4000K, 375LM, поворотный | E41: 1 | F41: 76.28 | G41: >5000 | H41: 0 | I41: 0 | J41: 0 | K41: 0 | L41: шт | M41: 0.17 | N41: 0.001543
B42: COB-DLL5W-SS | C42: 4630015265017 | D42: Точечный светильник Тип ламп COB led 5W материал металл , пластик 85*38, 4000K, 375LM, поворотный | E42: 1 | F42: 76.28 | G42: >1000 | H42: 0 | I42: 0 | J42: 0 | K42: 0 | L42: шт | M42: 0.17 | N42: 0.001543
B43: COB-DLL5W-YR | C43: 4630015264980 | D43: Точечный светильник Тип ламп COB led 5W материал металл, пластик, 85*38, 3000K, 375LM, поворотный | E43: 1 | F43: 76.28 | G43: >5000 | H43: 0 | I43: 0 | J43: 0 | K43: 0 | L43: шт | M43: 0.17 | N43: 0.001543
B44: COB-DLL5W-YS | C44: 4630015265000 | D44: Точечный светильник Тип ламп COB led 5W материал металл, пластик, 85*38, 3000K, 375LM, поворотный | E44: 1 | F44: 76.28 | G44: >1000 | H44: 0 | I44: 0 | J44: 0 | K44: 0 | L44: шт | M44: 0.17 | N44: 0.001543
A45: Люстры
A46: Lumin'arte
B47: CLM0030340E14 | C47: 4630015261620 | D47: Люстра потолочная Тип ламп 3*40W E14 материал металл ,стекло , хрусталь 450*450*1200 | E47: 1 | F47: 2186.55 | G47: 64 | H47: 0 | I47: =H47*F47 -> 0 | J47: =H47*M47 -> 0 | K47: =H47*N47 -> 0 | L47: шт | M47: 3.2 | N47: 0.0675
G48: ИТОГО: | H48: =SUM(H12:H47) -> 0 | I48: =SUM(I12:I47) -> 0 | J48: =SUM(J12:J47) -> 0 | K48: =SUM(K12:K47) -> 0

Sheet Итого заказ
D1: ООО «Вольта Русланд»
D2: ИНН/КПП/ОГРН 7716662181 / 771901001 / 1107746281323
D3: 119361, г. Москва, ул. Наташи Ковшовой, д. 4, стр. 1, офис 23
D4: Тел.: +7(495) 651-87-22, факс: +7 (495) 721-24-20, info@wolta.ru
C6: ЗАКАЗ
A7: Информация контрагента:
A8: Наименование контрагента
A9: ИНН
A10: КПП
A11: ОГРН
A12: Адрес эл. почты:
A13: Контактный телефон
A14: Контактное лицо
A16: Номенклатура | E16: Заказ
A17: Ссылка на сайт | B17: Штрихкод / Артикул | C17: Наименование | D17: Ед. изм. | E17: Кол-во, шт | F17: Цена, руб. | G17: Сумма, руб. | H17: Вес, кг | I17: Объем, м3
D32: ВСЕГО: | E32: =SUM(E20:E31) -> 0 | G32: =SUM(G20:G31) -> 0 | H32: =SUM(H20:H31) -> 0 | I32: =SUM(I20:I31) -> 0
